Workbook

Sheet Instructions (hidden)
A1: Operating and Financial Statistics Report - General Instructions

Sheet Overview (hidden)
B1: ="1. OVERVIEW: "&Overview!D4 -> 1. OVERVIEW: | J1: 1 | K1: Alamance County Transportation Authority | L1: =CONCATENATE(K1," (",J1,")") -> Alamance County Transportation Authority (1)
B2: FY2024 | D2: A | E2: B | F2: C | J2: 53 | K2: Albemarle Regional Health Services | L2: =CONCATENATE(K2," (",J2,")") -> Albemarle Regional Health Services (53)
B3: System Information | J3: 4 | K3: Alexander | L3: Alexander (4)
A4: 1 | B4: CTP Grantee's Legal Name | G4: 1 | J4: 5 | K4: Alleghany County | L4: Alleghany County (5)
D5: First Name | E5: Middle Initial | F5: Last Name | J5: 7 | K5: Anson County | L5: Anson County (7)
A6: =A4+1 -> 2 | B6: Transit's Contact Person | G6: =G4+1 -> 2 | J6: 189 | K6: AppalCART | L6: AppalCART (189)
A7: =A6+1 -> 3 | B7: Contact Email | G7: =G6+1 -> 3 | J7: 9 | K7: Ashe County Transportation Authority, Inc. | L7: Ashe County Transportation Authority, Inc. (9)
A8: =A7+1 -> 4 | B8: Transit's Website Address http:// | G8: =G7+1 -> 4 | J8: 11 | K8: Avery County Transportation Authority | L8: Avery County Transportation Authority (11)
J9: 13 | K9: Beaufort County Developmental Center Inc. | L9: Beaufort County Developmental Center Inc. (13)
A10: =A8+1 -> 5 | B10: Transit's Telephone Number | G10: =G8+1 -> 5 | J10: 17 | K10: Bladen County | L10: Bladen County (17)
J11: 19 | K11: Brunswick Transit System, Inc. | L11: Brunswick Transit System, Inc. (19)
B12: Service Area | J12: 21 | K12: Buncombe County | L12: Buncombe County (21)
A13: =A10+1 -> 6 | B13: Select service area | G13: =G10+1 -> 6 | J13: 23 | K13: Burke | L13: Burke (23)
D14: List counties in Multi-County System (if applicable) | J14: 25 | K14: Cabarrus County | L14: Cabarrus County (25)
A15: =A13+1 -> 7 | G15: =G13+1 -> 7 | J15: 27 | K15: Caldwell | L15: Caldwell (27)
J16: 129 | K16: Cape Fear Public Transportation Authority - WAVE Transit | L16: Cape Fear Public Transportation Authority - WAVE Transit (129)
B17: Operating Modes | J17: 31 | K17: Carteret County | L17: Carteret County (31)
E18: Operating Modes | F18: Route types | J18: 33 | K18: Caswell County | L18: Caswell County (33)
A19: =A15+1 -> 8 | B19: Demand Response Directly Operated (DR DO) | E19: 0 | G19: =G15+1 -> 8 | J19: 35 | K19: Catawba | L19: Catawba (35)
A20: =A19+1 -> 9 | B20: Demand Response Purchased (DR PT) | E20: 0 | G20: =G19+1 -> 9 | J20: 37 | K20: Chatham Transit Network | L20: Chatham Transit Network (37)
A21: =A20+1 -> 10 | B21: Fixed Route Directly Operated (MB DO) | E21: 0 | G21: =G20+1 -> 10 | J21: 39 | K21: Cherokee County | L21: Cherokee County (39)
A22: =A21+1 -> 11 | B22: Fixed Route Purchased (MB PT) | E22: 0 | G22: =G21+1 -> 11 | J22: 91 | K22: Choanoke Public Transportation Authority | L22: Choanoke Public Transportation Authority (91)
A23: =A22+1 -> 12 | D23: Microtransit Directly Operated (MT DO) | E23: 0 | G23: =G22+1 -> 12 | J23: 127 | K23: City of Rocky Mount | L23: City of Rocky Mount (127)
A24: 13 | D24: Microtransit Purchased (MT PT) | E24: 0 | G24: 13 | J24: 43 | K24: Clay County | L24: Clay County (43)
J25: 47 | K25: Columbus County | L25: Columbus County (47)
B26: Operating Hours | J26: 49 | K26: Craven County | L26: Craven County (49)
D27: Begin Time | E27: End Time | J27: 51 | K27: Cumberland County | L27: Cumberland County (51)
A28: =A24+1 -> 14 | B28: Weekday | G28: =G24+1 -> 14 | J28: 55 | K28: Dare County | L28: Dare County (55)
A29: =A28+1 -> 15 | B29: Saturday (if applicable) | G29: =G28+1 -> 15 | J29: 57 | K29: Davidson County | L29: Davidson County (57)
A30: =A29+1 -> 16 | B30: Sunday (if applicable) | G30: =G29+1 -> 16 | J30: 61 | K30: Duplin County | L30: Duplin County (61)
J31: 63 | K31: Durham County | L31: Durham County (63)
B32: Management/Operations Contractor (For PT Mode Only) | J32: 2 | K32: Eastern Band of Cherokee Indians | L32: Eastern Band of Cherokee Indians (2)
A33: =A30+1 -> 17 | C33: Contractor Name (For PT Mode Only) | G33: =G30+1 -> 17 | J33: 71 | K33: Gaston County | L33: Gaston County (71)
A34: =A33+1 -> 18 | C34: Contract Start Date (For PT Mode Only) | E34: Contract End Date | G34: =G33+1 -> 18 | J34: 73 | K34: Gates County | L34: Gates County (73)
J35: 191 | K35: Goldsboro-Wayne Transportation Authority | L35: Goldsboro-Wayne Transportation Authority (191)
B36: Out of Service Area Operations | J36: 75 | K36: Graham County | L36: Graham County (75)
A37: =A34+1 -> 19 | B37: Do you provide trips to out of service area destinations? | E37: No | G37: =G34+1 -> 19 | J37: 79 | K37: Greene County | L37: Greene County (79)
D38: List out of service area destinations list counties and state only (if applicable) | J38: 81 | K38: Guilford County | L38: Guilford County (81)
A39: =A37+1 -> 20 | G39: =G37+1 -> 20 | J39: 85 | K39: Harnett County | L39: Harnett County (85)
J40: 93 | K40: Hoke County | L40: Hoke County (93)
B41: Coordination | J41: 95 | K41: Hyde County Non-Profit Private Transportation Corp Inc. | L41: Hyde County Non-Profit Private Transportation Corp Inc. (95)
A42: =A39+1 -> 21 | B42: Do you coordinate with other Community Transportation systems? | E42: No | G42: =G39+1 -> 21 | J42: 97 | K42: Iredell County | L42: Iredell County (97)
D43: List Community Transportations systems (if applicable) | J43: 99 | K43: Jackson County | L43: Jackson County (99)
A44: =A42+1 -> 22 | G44: =G42+1 -> 22 | J44: 101 | K44: Johnston County Council on Aging, Inc. | L44: Johnston County Council on Aging, Inc. (101)
J45: 185 | K45: Kerr Area Transportation Authority | L45: Kerr Area Transportation Authority (185)
J46: 105 | K46: Lee County | L46: Lee County (105)
D47: A | E47: B | F47: C | J47: 107 | K47: Lenoir County | L47: Lenoir County (107)
J48: 109 | K48: Lincoln County | L48: Lincoln County (109)
J49: 113 | K49: Macon County | L49: Macon County (113)
J50: 115 | K50: Madison County Transportation Authority | L50: Madison County Transportation Authority (115)
J51: 117 | K51: Martin County | L51: Martin County (117)
J52: 111 | K52: McDowell Transit | L52: McDowell Transit (111)
J53: 119 | K53: Mecklenburg County | L53: Mecklenburg County (119)
J54: 121 | K54: Mitchell County Transportation Authority | L54: Mitchell County Transportation Authority (121)
J55: 125 | K55: Moore County | L55: Moore County (125)
J56: 87 | K56: Mountain Projects Inc. | L56: Mountain Projects Inc. (87)
J57: 10 | K57: NCDOT Ferry | L57: NCDOT Ferry (10)
J58: 6 | K58: Ocracoke Passenger Ferry | L58: Ocracoke Passenger Ferry (6)
J59: 8 | K59: Ocracoke Tram | L59: Ocracoke Tram (8)
J60: 133 | K60: Onslow United Transit System, Inc. | L60: Onslow United Transit System, Inc. (133)
J61: 135 | K61: Orange County | L61: Orange County (135)
J62: 141 | K62: Pender Adult Services Inc. | L62: Pender Adult Services Inc. (141)
J63: 145 | K63: Person County | L63: Person County (145)
J64: 147 | K64: Pitt County/Pitt Area Transit System | L64: Pitt County/Pitt Area Transit System (147)
J65: 149 | K65: Polk County Transportation Authority | L65: Polk County Transportation Authority (149)
J66: 151 | K66: Randolph County Senior Adults Assoc. Inc. | L66: Randolph County Senior Adults Assoc. Inc. (151)
J67: 153 | K67: Richmond Interagency Transportation, Inc. | L67: Richmond Interagency Transportation, Inc. (153)
J68: 155 | K68: Robeson County | L68: Robeson County (155)
J69: 157 | K69: Rockingham County Council on Aging Inc. | L69: =CONCATENATE(K69," (",J69,")") -> Rockingham County Council on Aging Inc. (157)
J70: 159 | K70: Rowan County | L70: Rowan County (159)
J71: 161 | K71: Rutherford County | L71: Rutherford County (161)
J72: 163 | K72: Sampson County | L72: Sampson County (163)
J73: 165 | K73: Scotland County | L73: Scotland County (165)
J74: 167 | K74: Stanly County | L74: Stanly County (167)
J75: 173 | K75: Swain County Focal Point on Aging Inc. | L75: Swain County Focal Point on Aging Inc. (173)
J76: 45 | K76: Transportation Administration of Cleveland County Inc. | L76: Transportation Administration of Cleveland County Inc. (45)
J77: 175 | K77: Transylvania County | L77: Transylvania County (175)
J78: 177 | K78: Tyrrell County | L78: Tyrrell County (177)
J79: 179 | K79: Union County | L79: Union County (179)
J80: 183 | K80: Wake County | L80: Wake County (183)
J81: 187 | K81: Washington County | L81: Washington County (187)
J82: 89 | K82: Western Carolina Community Action Inc. | L82: Western Carolina Community Action Inc. (89)
J83: 3 | K83: Western Piedmont Regional Transportation Authority | L83: Western Piedmont Regional Transportation Authority (3)
J84: 193 | K84: Wilkes Transportation Authority | L84: Wilkes Transportation Authority (193)
J85: 196 | K85: Wilson City | L85: Wilson City (196)
J86: 195 | K86: Wilson County | L86: Wilson County (195)
J87: 171 | K87: Yadkin Valley Economic Development District Inc. | L87: Yadkin Valley Economic Development District Inc. (171)
J88: 199 | K88: Yancey County Transportation Authority | L88: Yancey County Transportation Authority (199)

Sheet Weekday (hidden)
B1: ="2. WEEKDAY: "&Overview!D4 -> 2. WEEKDAY:
D2: A | E2: B | F2: C | G2: D | H2: E | I2: F | J2: G | K2: H | L2: I | M2: J | N2: K | O2: L | P2: M | Q2: N | R2: O | S2: P
B3: =Overview!B2 -> FY2024 | D3: July | E3: August | F3: September | G3: October | H3: November | I3: December | J3: January | K3: February | L3: March | M3: April | N3: May | O3: June | P3: Quarter 1 | Q3: Quarter 2 | R3: Quarter 3 | S3: Quarter 4 | T3: YTD Totals
A4: =Overview!A44+1 -> 23 | C4: Operating Days | P4: =D4+E4+F4 -> 0 | Q4: =G4+H4+I4 -> 0 | R4: =J4+K4+L4 -> 0 | S4: =M4+N4+O4 -> 0 | T4: =SUM(D4:O4) -> 0 | U4: =Overview!G44+1 -> 23
B5: Demand Response Directly Operated (DR DO)
A6: =A4+1 -> 24 | C6: Hours | P6: =D6+E6+F6 -> 0 | Q6: =G6+H6+I6 -> 0 | R6: =J6+K6+L6 -> 0 | S6: =M6+N6+O6 -> 0 | T6: =SUM(D6:O6) -> 0 | U6: =U4+1 -> 24
A7: =A6+1 -> 25 | C7: Miles | P7: 0 | Q7: 0 | R7: 0 | S7: 0 | T7: 0 | U7: =U6+1 -> 25
A8: =A7+1 -> 26 | C8: Passenger Trips: Non-Contract | P8: 0 | Q8: 0 | R8: 0 | S8: 0 | T8: 0 | U8: =U7+1 -> 26
A9: =A8+1 -> 27 | C9: Medicaid Contract | P9: 0 | Q9: 0 | R9: 0 | S9: 0 | T9: 0 | U9: =U8+1 -> 27
A10: =A9+1 -> 28 | C10: Non-Medicaid Contract | P10: 0 | Q10: 0 | R10: 0 | S10: 0 | T10: 0 | U10: =U9+1 -> 28
C11: Total Passenger Trips for This Mode | D11: =SUM(D8:D10) -> 0 | E11: 0 | F11: 0 | G11: 0 | H11: 0 | I11: 0 | J11: 0 | K11: 0 | L11: 0 | M11: 0 | N11: 0 | O11: 0 | P11: 0 | Q11: 0 | R11: 0 | S11: 0 | T11: 0
B12: Demand Response Purchased (DR PT)
A13: =A10+1 -> 29 | C13: Hours | P13: =D13+E13+F13 -> 0 | Q13: =G13+H13+I13 -> 0 | R13: =J13+K13+L13 -> 0 | S13: =M13+N13+O13 -> 0 | T13: =SUM(D13:O13) -> 0 | U13: =U10+1 -> 29
A14: =A13+1 -> 30 | C14: Miles | P14: 0 | Q14: 0 | R14: 0 | S14: 0 | T14: 0 | U14: =U13+1 -> 30
A15: =A14+1 -> 31 | C15: Passenger Trips: Non-Contract | P15: 0 | Q15: 0 | R15: 0 | S15: 0 | T15: 0 | U15: =U14+1 -> 31
A16: =A15+1 -> 32 | C16: Medicaid Contract | P16: 0 | Q16: 0 | R16: 0 | S16: 0 | T16: 0 | U16: =U15+1 -> 32
A17: =A16+1 -> 33 | C17: Non-Medicaid Contract | P17: 0 | Q17: 0 | R17: 0 | S17: 0 | T17: 0 | U17: =U16+1 -> 33
C18: Total Passenger Trips for This Mode | D18: =SUM(D15:D17) -> 0 | E18: =SUM(E15:E17) -> 0 | F18: 0 | G18: 0 | H18: 0 | I18: 0 | J18: 0 | K18: 0 | L18: 0 | M18: 0 | N18: 0 | O18: 0 | P18: 0 | Q18: 0 | R18: 0 | S18: 0 | T18: 0
B19: Fixed Route Directly Operated (MB DO)
A20: =A17+1 -> 34 | C20: Hours | P20: =D20+E20+F20 -> 0 | Q20: =G20+H20+I20 -> 0 | R20: =J20+K20+L20 -> 0 | S20: =M20+N20+O20 -> 0 | T20: =SUM(D20:O20) -> 0 | U20: =U17+1 -> 34
A21: =A20+1 -> 35 | C21: Miles | P21: =D21+E21+F21 -> 0 | Q21: =G21+H21+I21 -> 0 | R21: =J21+K21+L21 -> 0 | S21: =M21+N21+O21 -> 0 | T21: =SUM(D21:O21) -> 0 | U21: =U20+1 -> 35
A22: =A21+1 -> 36 | C22: Passenger Trips: Non-Contract | P22: =D22+E22+F22 -> 0 | Q22: =G22+H22+I22 -> 0 | R22: =J22+K22+L22 -> 0 | S22: =M22+N22+O22 -> 0 | T22: =SUM(D22:O22) -> 0 | U22: =U21+1 -> 36
A23: =A22+1 -> 37 | C23: Medicaid Contract | P23: 0 | Q23: 0 | R23: 0 | S23: 0 | T23: 0 | U23: =U22+1 -> 37
A24: =A23+1 -> 38 | C24: Non-Medicaid Contract | P24: 0 | Q24: 0 | R24: 0 | S24: 0 | T24: 0 | U24: =U23+1 -> 38
C25: Total Passenger Trips for This Mode | D25: =SUM(D22:D24) -> 0 | E25: 0 | F25: 0 | G25: 0 | H25: 0 | I25: 0 | J25: 0 | K25: 0 | L25: 0 | M25: 0 | N25: 0 | O25: 0 | P25: 0 | Q25: 0 | R25: 0 | S25: 0 | T25: 0
B26: Fixed Route Purchased (MB PT)
A27: =A24+1 -> 39 | C27: Hours | P27: =D27+E27+F27 -> 0 | Q27: =G27+H27+I27 -> 0 | R27: =J27+K27+L27 -> 0 | S27: =M27+N27+O27 -> 0 | T27: =SUM(D27:O27) -> 0 | U27: =U24+1 -> 39
A28: =A27+1 -> 40 | C28: Miles | P28: 0 | Q28: 0 | R28: 0 | S28: 0 | T28: 0 | U28: =U27+1 -> 40
A29: =A28+1 -> 41 | C29: Passenger Trips: Non-Contract | P29: 0 | Q29: 0 | R29: 0 | S29: 0 | T29: 0 | U29: =U28+1 -> 41
A30: =A29+1 -> 42 | C30: Medicaid Contract | P30: 0 | Q30: 0 | R30: 0 | S30: 0 | T30: 0 | U30: =U29+1 -> 42
A31: =A30+1 -> 43 | C31: Non-Medicaid Contract | P31: 0 | Q31: 0 | R31: 0 | S31: 0 | T31: 0 | U31: =U30+1 -> 43
C32: Total Passenger Trips- Other Providers | D32: =SUM(D29:D31) -> 0 | E32: =SUM(E29:E31) -> 0 | F32: 0 | G32: 0 | H32: 0 | I32: 0 | J32: 0 | K32: 0 | L32: 0 | M32: 0 | N32: 0 | O32: 0 | P32: 0 | Q32: 0 | R32: 0 | S32: 0 | T32: 0
B33: Microtransit (MT DO)
A34: =A31+1 -> 44 | C34: Hours | P34: =D34+E34+F34 -> 0 | Q34: =G34+H34+I34 -> 0 | R34: =J34+K34+L34 -> 0 | S34: =M34+N34+O34 -> 0 | T34: =SUM(D34:O34) -> 0 | U34: =U31+1 -> 44
A35: =A34+1 -> 45 | C35: Miles | P35: 0 | Q35: 0 | R35: 0 | S35: 0 | T35: 0 | U35: =U34+1 -> 45
A36: =A35+1 -> 46 | C36: Passenger Trips: Non-Contract | P36: 0 | Q36: 0 | R36: 0 | S36: 0 | T36: 0 | U36: =U35+1 -> 46
A37: =A36+1 -> 47 | C37: Medicaid Contract | P37: 0 | Q37: 0 | R37: 0 | S37: 0 | T37: 0 | U37: =U36+1 -> 47
A38: =A37+1 -> 48 | C38: Non-Medicaid Contract | P38: 0 | Q38: 0 | R38: 0 | S38: 0 | T38: 0 | U38: =U37+1 -> 48
C39: Total Passenger Trips- Other Providers | D39: =SUM(D36:D38) -> 0 | E39: =SUM(E36:E38) -> 0 | F39: 0 | G39: 0 | H39: 0 | I39: 0 | J39: 0 | K39: 0 | L39: 0 | M39: 0 | N39: 0 | O39: 0 | P39: 0 | Q39: 0 | R39: 0 | S39: 0 | T39: 0
B40: Microtransit (MT PT)
A41: =A38+1 -> 49 | C41: Hours | P41: =D41+E41+F41 -> 0 | Q41: =G41+H41+I41 -> 0 | R41: =J41+K41+L41 -> 0 | S41: =M41+N41+O41 -> 0 | T41: =SUM(D41:O41) -> 0 | U41: =U38+1 -> 49
A42: =A41+1 -> 50 | C42: Miles | P42: 0 | Q42: 0 | R42: 0 | S42: 0 | T42: 0 | U42: =U41+1 -> 50
A43: =A42+1 -> 51 | C43: Passenger Trips: Non-Contract | P43: 0 | Q43: 0 | R43: 0 | S43: 0 | T43: 0 | U43: =U42+1 -> 51
A44: =A43+1 -> 52 | C44: Medicaid Contract | P44: 0 | Q44: 0 | R44: 0 | S44: 0 | T44: 0 | U44: =U43+1 -> 52
A45: =A44+1 -> 53 | C45: Non-Medicaid Contract | P45: 0 | Q45: 0 | R45: 0 | S45: 0 | T45: 0 | U45: =U44+1 -> 53
C46: Total Passenger Trips- Other Providers | D46: =SUM(D43:D45) -> 0 | E46: =SUM(E43:E45) -> 0 | F46: 0 | G46: 0 | H46: 0 | I46: 0 | J46: 0 | K46: 0 | L46: 0 | M46: 0 | N46: 0 | O46: 0 | P46: 0 | Q46: 0 | R46: 0 | S46: 0 | T46: 0
B47: Transit Totals
C48: Hours | D48: =SUM(D6+D13+D20+D27+D34+D41) -> 0 | E48: =SUM(E6+E13+E20+E27+E34+E41) -> 0 | F48: 0 | G48: 0 | H48: 0 | I48: 0 | J48: 0 | K48: 0 | L48: 0 | M48: 0 | N48: 0 | O48: 0 | P48: =SUM(D48:F48) -> 0 | Q48: =SUM(G48:I48) -> 0 | R48: =SUM(J48:L48) -> 0 | S48: =SUM(M48:O48) -> 0 | T48: =SUM(P48:S48) -> 0
C49: Miles | D49: =SUM(D7+D14+D21+D28+D35+D42) -> 0 | E49: 0 | F49: 0 | G49: 0 | H49: 0 | I49: 0 | J49: 0 | K49: 0 | L49: 0 | M49: 0 | N49: 0 | O49: 0 | P49: =SUM(D49:F49) -> 0 | Q49: =SUM(G49:I49) -> 0 | R49: =SUM(J49:L49) -> 0 | S49: =SUM(M49:O49) -> 0 | T49: =SUM(P49:S49) -> 0
C50: Passenger Trips: Non-Contract | D50: 0 | E50: 0 | F50: 0 | G50: 0 | H50: 0 | I50: 0 | J50: 0 | K50: 0 | L50: 0 | M50: 0 | N50: 0 | O50: 0 | P50: 0 | Q50: 0 | R50: 0 | S50: 0 | T50: 0
C51: Medicaid Contract | D51: 0 | E51: 0 | F51: 0 | G51: 0 | H51: 0 | I51: 0 | J51: 0 | K51: 0 | L51: 0 | M51: 0 | N51: 0 | O51: 0 | P51: 0 | Q51: 0 | R51: 0 | S51: 0 | T51: 0
C52: Non-Medicaid Contract | D52: 0 | E52: 0 | F52: 0 | G52: 0 | H52: 0 | I52: 0 | J52: 0 | K52: 0 | L52: 0 | M52: 0 | N52: 0 | O52: 0 | P52: 0 | Q52: 0 | R52: 0 | S52: 0 | T52: 0
C53: Total Passenger Trips for All Modes | D53: =SUM(D50:D52) -> 0 | E53: =SUM(E50:E52) -> 0 | F53: =F50+F51+F52 -> 0 | G53: 0 | H53: 0 | I53: 0 | J53: 0 | K53: 0 | L53: 0 | M53: 0 | N53: 0 | O53: 0 | P53: 0 | Q53: 0 | R53: 0 | S53: 0 | T53: 0
D55: A | E55: B | F55: C | G55: D | H55: E | I55: F | J55: G | K55: H | L55: I | M55: J | N55: K | O55: L | P55: M | Q55: N | R55: O | S55: P

Sheet Saturday (hidden)
B1: ="3. SATURDAY: "&Overview!D4 -> 3. SATURDAY:
D2: A | E2: B | F2: C | G2: D | H2: E | I2: F | J2: G | K2: H | L2: I | M2: J | N2: K | O2: L
B3: =Overview!B2 -> FY2024 | D3: July | E3: August | F3: September | G3: October | H3: November | I3: December | J3: January | K3: February | L3: March | M3: April | N3: May | O3: June | P3: Quarter 1 | Q3: Quarter 2 | R3: Quarter 3 | S3: Quarter 4 | T3: YTD Totals
A4: =Weekday!A31+1 -> 44 | C4: Operating Days | P4: =D4+E4+F4 -> 0 | Q4: =G4+H4+I4 -> 0 | R4: =J4+K4+L4 -> 0 | S4: =M4+N4+O4 -> 0 | T4: =SUM(D4:O4) -> 0 | U4: =Weekday!A31+1 -> 44
B5: Demand Response Directly Operated (DR DO)
A6: =A4+1 -> 45 | C6: Hours | P6: =D6+E6+F6 -> 0 | Q6: =G6+H6+I6 -> 0 | R6: =J6+K6+L6 -> 0 | S6: =M6+N6+O6 -> 0 | T6: =SUM(D6:O6) -> 0 | U6: =U4+1 -> 45
A7: =A6+1 -> 46 | C7: Miles | P7: 0 | Q7: 0 | R7: 0 | S7: 0 | T7: =SUM(D7:O7) -> 0 | U7: =U6+1 -> 46
A8: =A7+1 -> 47 | C8: Passenger Trips: Non-Contract | P8: 0 | Q8: 0 | R8: 0 | S8: 0 | T8: =SUM(D8:O8) -> 0 | U8: =U7+1 -> 47
A9: =A8+1 -> 48 | C9: Medicaid Contract | P9: 0 | Q9: 0 | R9: 0 | S9: 0 | T9: =SUM(D9:O9) -> 0 | U9: =U8+1 -> 48
A10: =A9+1 -> 49 | C10: Non-Medicaid Contract | P10: 0 | Q10: 0 | R10: 0 | S10: 0 | T10: =SUM(D10:O10) -> 0 | U10: =U9+1 -> 49
C11: Total Passenger Trips for This Mode | D11: =SUM(D8:D10) -> 0 | E11: 0 | F11: 0 | G11: 0 | H11: 0 | I11: 0 | J11: 0 | K11: 0 | L11: 0 | M11: 0 | N11: 0 | O11: 0 | P11: 0 | Q11: 0 | R11: 0 | S11: 0 | T11: =SUM(T8:T10) -> 0
B12: Demand Response Purchased (DR PT)
A13: =A10+1 -> 50 | C13: Hours | P13: =D13+E13+F13 -> 0 | Q13: =G13+H13+I13 -> 0 | R13: =J13+K13+L13 -> 0 | S13: =M13+N13+O13 -> 0 | T13: =SUM(D13:O13) -> 0 | U13: =U10+1 -> 50
A14: =A13+1 -> 51 | C14: Miles | P14: 0 | Q14: 0 | R14: 0 | S14: 0 | T14: 0 | U14: =U13+1 -> 51
A15: =A14+1 -> 52 | C15: Passenger Trips: Non-Contract | P15: 0 | Q15: 0 | R15: 0 | S15: 0 | T15: 0 | U15: =U14+1 -> 52
A16: =A15+1 -> 53 | C16: Medicaid Contract | P16: 0 | Q16: 0 | R16: 0 | S16: 0 | T16: 0 | U16: =U15+1 -> 53
A17: =A16+1 -> 54 | C17: Non-Medicaid Contract | P17: 0 | Q17: 0 | R17: 0 | S17: 0 | T17: 0 | U17: =U16+1 -> 54
C18: Total Passenger Trips for This Mode | D18: =SUM(D15:D17) -> 0 | E18: =SUM(E15:E17) -> 0 | F18: 0 | G18: 0 | H18: 0 | I18: 0 | J18: 0 | K18: 0 | L18: 0 | M18: 0 | N18: 0 | O18: 0 | P18: 0 | Q18: 0 | R18: 0 | S18: 0 | T18: 0
B19: Fixed Route Directly Operated (MB DO)
A20: =A17+1 -> 55 | C20: Hours | P20: =D20+E20+F20 -> 0 | Q20: =G20+H20+I20 -> 0 | R20: =J20+K20+L20 -> 0 | S20: =M20+N20+O20 -> 0 | T20: =SUM(D20:O20) -> 0 | U20: =U17+1 -> 55
A21: =A20+1 -> 56 | C21: Miles | P21: 0 | Q21: 0 | R21: 0 | S21: 0 | T21: 0 | U21: =U20+1 -> 56
A22: =A21+1 -> 57 | C22: Passenger Trips: Non-Contract | P22: 0 | Q22: 0 | R22: 0 | S22: 0 | T22: 0 | U22: =U21+1 -> 57
A23: =A22+1 -> 58 | C23: Medicaid Contract | P23: 0 | Q23: 0 | R23: 0 | S23: 0 | T23: 0 | U23: =U22+1 -> 58
A24: =A23+1 -> 59 | C24: Non-Medicaid Contract | P24: 0 | Q24: 0 | R24: 0 | S24: 0 | T24: 0 | U24: =U23+1 -> 59
C25: Total Passenger Trips for This Mode | D25: =SUM(D22:D24) -> 0 | E25: 0 | F25: 0 | G25: 0 | H25: 0 | I25: 0 | J25: 0 | K25: 0 | L25: 0 | M25: 0 | N25: 0 | O25: 0 | P25: 0 | Q25: 0 | R25: 0 | S25: 0 | T25: 0
B26: Fixed Route Purchased (MB PT)
A27: =A24+1 -> 60 | C27: Hours | P27: =D27+E27+F27 -> 0 | Q27: =G27+H27+I27 -> 0 | R27: =J27+K27+L27 -> 0 | S27: =M27+N27+O27 -> 0 | T27: =SUM(D27:O27) -> 0 | U27: =U24+1 -> 60
A28: =A27+1 -> 61 | C28: Miles | P28: 0 | Q28: 0 | R28: 0 | S28: 0 | T28: 0 | U28: =U27+1 -> 61
A29: =A28+1 -> 62 | C29: Passenger Trips: Non-Contract | P29: 0 | Q29: 0 | R29: 0 | S29: 0 | T29: 0 | U29: =U28+1 -> 62
A30: =A29+1 -> 63 | C30: Medicaid Contract | P30: 0 | Q30: 0 | R30: 0 | S30: 0 | T30: 0 | U30: =U29+1 -> 63
A31: =A30+1 -> 64 | C31: Non-Medicaid Contract | P31: 0 | Q31: 0 | R31: 0 | S31: 0 | T31: 0 | U31: =U30+1 -> 64
C32: Total Passenger Trips- Other Providers | D32: =SUM(D29:D31) -> 0 | E32: 0 | F32: 0 | G32: 0 | H32: 0 | I32: 0 | J32: 0 | K32: 0 | L32: 0 | M32: 0 | N32: 0 | O32: 0 | P32: 0 | Q32: 0 | R32: 0 | S32: 0 | T32: 0
B33: Microtransit (MT DO)
A34: =A31+1 -> 65 | C34: Hours | P34: =D34+E34+F34 -> 0 | Q34: =G34+H34+I34 -> 0 | R34: =J34+K34+L34 -> 0 | S34: =M34+N34+O34 -> 0 | T34: =SUM(D34:O34) -> 0 | U34: =U31+1 -> 65
A35: =A34+1 -> 66 | C35: Miles | P35: 0 | Q35: 0 | R35: 0 | S35: 0 | T35: 0 | U35: =U34+1 -> 66
A36: =A35+1 -> 67 | C36: Passenger Trips: Non-Contract | P36: 0 | Q36: 0 | R36: 0 | S36: 0 | T36: 0 | U36: =U35+1 -> 67
A37: =A36+1 -> 68 | C37: Medicaid Contract | P37: 0 | Q37: 0 | R37: 0 | S37: 0 | T37: 0 | U37: =U36+1 -> 68
A38: =A37+1 -> 69 | C38: Non-Medicaid Contract | P38: 0 | Q38: 0 | R38: 0 | S38: 0 | T38: 0 | U38: =U37+1 -> 69
C39: Total Passenger Trips- Other Providers | D39: =SUM(D36:D38) -> 0 | E39: =SUM(E36:E38) -> 0 | F39: 0 | G39: 0 | H39: 0 | I39: 0 | J39: 0 | K39: 0 | L39: 0 | M39: 0 | N39: 0 | O39: 0 | P39: 0 | Q39: 0 | R39: 0 | S39: 0 | T39: 0
B40: Microtransit (MT PT)
A41: =A38+1 -> 70 | C41: Hours | P41: =D41+E41+F41 -> 0 | Q41: =G41+H41+I41 -> 0 | R41: =J41+K41+L41 -> 0 | S41: =M41+N41+O41 -> 0 | T41: =SUM(D41:O41) -> 0 | U41: =U38+1 -> 70
A42: =A41+1 -> 71 | C42: Miles | P42: 0 | Q42: 0 | R42: 0 | S42: 0 | T42: 0 | U42: =U41+1 -> 71
A43: =A42+1 -> 72 | C43: Passenger Trips: Non-Contract | P43: 0 | Q43: 0 | R43: 0 | S43: 0 | T43: 0 | U43: =U42+1 -> 72
A44: =A43+1 -> 73 | C44: Medicaid Contract | P44: 0 | Q44: 0 | R44: 0 | S44: 0 | T44: 0 | U44: =U43+1 -> 73
A45: =A44+1 -> 74 | C45: Non-Medicaid Contract | P45: 0 | Q45: 0 | R45: 0 | S45: 0 | T45: 0 | U45: =U44+1 -> 74
C46: Total Passenger Trips- Other Providers | D46: =SUM(D43:D45) -> 0 | E46: =SUM(E43:E45) -> 0 | F46: 0 | G46: 0 | H46: 0 | I46: 0 | J46: 0 | K46: 0 | L46: 0 | M46: 0 | N46: 0 | O46: 0 | P46: 0 | Q46: 0 | R46: 0 | S46: 0 | T46: 0
B47: Transit Totals
C48: Hours | D48: =SUM(D6+D13+D20+D27+D34+D41) -> 0 | E48: =SUM(E6+E13+E20+E27+E34+E41) -> 0 | F48: 0 | G48: 0 | H48: 0 | I48: 0 | J48: 0 | K48: 0 | L48: 0 | M48: 0 | N48: 0 | O48: 0 | P48: =SUM(D48:F48) -> 0 | Q48: =SUM(G48:I48) -> 0 | R48: =SUM(J48:L48) -> 0 | S48: =SUM(M48:O48) -> 0 | T48: =SUM(P48:S48) -> 0
C49: Miles | D49: =SUM(D7+D14+D21+D28+D35+D42) -> 0 | E49: 0 | F49: 0 | G49: 0 | H49: 0 | I49: 0 | J49: 0 | K49: 0 | L49: 0 | M49: 0 | N49: 0 | O49: 0 | P49: =SUM(D49:F49) -> 0 | Q49: =SUM(G49:I49) -> 0 | R49: =SUM(J49:L49) -> 0 | S49: =SUM(M49:O49) -> 0 | T49: =SUM(P49:S49) -> 0
C50: Passenger Trips: Non-Contract | D50: 0 | E50: 0 | F50: 0 | G50: 0 | H50: 0 | I50: 0 | J50: 0 | K50: 0 | L50: 0 | M50: 0 | N50: 0 | O50: 0 | P50: 0 | Q50: 0 | R50: 0 | S50: 0 | T50: 0
C51: Medicaid Contract | D51: 0 | E51: 0 | F51: 0 | G51: 0 | H51: 0 | I51: 0 | J51: 0 | K51: 0 | L51: 0 | M51: 0 | N51: 0 | O51: 0 | P51: 0 | Q51: 0 | R51: 0 | S51: 0 | T51: 0
C52: Non-Medicaid Contract | D52: 0 | E52: 0 | F52: 0 | G52: 0 | H52: 0 | I52: 0 | J52: 0 | K52: 0 | L52: 0 | M52: 0 | N52: 0 | O52: 0 | P52: 0 | Q52: 0 | R52: 0 | S52: 0 | T52: 0
C53: Total Passenger Trips for All Modes | D53: =SUM(D50:D52) -> 0 | E53: =SUM(E50:E52) -> 0 | F53: =F50+F51+F52 -> 0 | G53: 0 | H53: 0 | I53: 0 | J53: 0 | K53: 0 | L53: 0 | M53: 0 | N53: 0 | O53: 0 | P53: 0 | Q53: 0 | R53: 0 | S53: 0 | T53: 0
D55: A | E55: B | F55: C | G55: D | H55: E | I55: F | J55: G | K55: H | L55: I | M55: J | N55: K | O55: L

Sheet Sunday (hidden)
B1: ="4. SUNDAY: "&Overview!D4 -> 4. SUNDAY:
D2: A | E2: B | F2: C | G2: D | H2: E | I2: F | J2: G | K2: H | L2: I | M2: J | N2: K | O2: L
B3: =Overview!B2 -> FY2024 | D3: July | E3: August | F3: September | G3: October | H3: November | I3: December | J3: January | K3: February | L3: March | M3: April | N3: May | O3: June | P3: Quarter 1 | Q3: Quarter 2 | R3: Quarter 3 | S3: Quarter 4 | T3: YTD Totals
A4: =Saturday!A31+1 -> 65 | C4: Operating Days | P4: =D4+E4+F4 -> 0 | Q4: =G4+H4+I4 -> 0 | R4: =J4+K4+L4 -> 0 | S4: =M4+N4+O4 -> 0 | T4: =SUM(D4:O4) -> 0 | U4: =Saturday!A31+1 -> 65
B5: Demand Response Directly Operated (DR DO)
A6: =A4+1 -> 66 | C6: Hours | P6: =D6+E6+F6 -> 0 | Q6: =G6+H6+I6 -> 0 | R6: =J6+K6+L6 -> 0 | S6: =M6+N6+O6 -> 0 | T6: =SUM(D6:O6) -> 0 | U6: =U4+1 -> 66
A7: =A6+1 -> 67 | C7: Miles | P7: 0 | Q7: 0 | R7: 0 | S7: 0 | T7: =SUM(D7:O7) -> 0 | U7: =U6+1 -> 67
A8: =A7+1 -> 68 | C8: Passenger Trips: Non-Contract | P8: 0 | Q8: 0 | R8: 0 | S8: 0 | T8: =SUM(D8:O8) -> 0 | U8: =U7+1 -> 68
A9: =A8+1 -> 69 | C9: Medicaid Contract | P9: 0 | Q9: 0 | R9: 0 | S9: 0 | T9: =SUM(D9:O9) -> 0 | U9: =U8+1 -> 69
A10: =A9+1 -> 70 | C10: Non-Medicaid Contract | P10: 0 | Q10: 0 | R10: 0 | S10: 0 | T10: =SUM(D10:O10) -> 0 | U10: =U9+1 -> 70
C11: Total Passenger Trips for This Mode | D11: =SUM(D8:D10) -> 0 | E11: 0 | F11: 0 | G11: 0 | H11: 0 | I11: 0 | J11: 0 | K11: 0 | L11: 0 | M11: 0 | N11: 0 | O11: 0 | P11: 0 | Q11: 0 | R11: 0 | S11: 0 | T11: =SUM(T8:T10) -> 0
B12: Demand Response Purchased (DR PT)
A13: =A10+1 -> 71 | C13: Hours | P13: =D13+E13+F13 -> 0 | Q13: =G13+H13+I13 -> 0 | R13: =J13+K13+L13 -> 0 | S13: =M13+N13+O13 -> 0 | T13: =SUM(D13:O13) -> 0 | U13: =U10+1 -> 71
A14: =A13+1 -> 72 | C14: Miles | P14: 0 | Q14: 0 | R14: 0 | S14: 0 | T14: 0 | U14: =U13+1 -> 72
A15: =A14+1 -> 73 | C15: Passenger Trips: Non-Contract | P15: 0 | Q15: 0 | R15: 0 | S15: 0 | T15: 0 | U15: =U14+1 -> 73
A16: =A15+1 -> 74 | C16: Medicaid Contract | P16: 0 | Q16: 0 | R16: 0 | S16: 0 | T16: 0 | U16: =U15+1 -> 74
A17: =A16+1 -> 75 | C17: Non-Medicaid Contract | P17: 0 | Q17: 0 | R17: 0 | S17: 0 | T17: 0 | U17: =U16+1 -> 75
C18: Total Passenger Trips for This Mode | D18: =SUM(D15:D17) -> 0 | E18: =SUM(E15:E17) -> 0 | F18: 0 | G18: 0 | H18: 0 | I18: 0 | J18: 0 | K18: 0 | L18: 0 | M18: 0 | N18: 0 | O18: 0 | P18: 0 | Q18: 0 | R18: 0 | S18: 0 | T18: 0
B19: Fixed Route Directly Operated (MB DO)
A20: =A17+1 -> 76 | C20: Hours | P20: =D20+E20+F20 -> 0 | Q20: =G20+H20+I20 -> 0 | R20: =J20+K20+L20 -> 0 | S20: =M20+N20+O20 -> 0 | T20: =SUM(D20:O20) -> 0 | U20: =U17+1 -> 76
A21: =A20+1 -> 77 | C21: Miles | P21: 0 | Q21: 0 | R21: 0 | S21: 0 | T21: 0 | U21: =U20+1 -> 77
A22: =A21+1 -> 78 | C22: Passenger Trips: Non-Contract | P22: 0 | Q22: 0 | R22: 0 | S22: 0 | T22: 0 | U22: =U21+1 -> 78
A23: =A22+1 -> 79 | C23: Medicaid Contract | P23: 0 | Q23: 0 | R23: 0 | S23: 0 | T23: 0 | U23: =U22+1 -> 79
A24: =A23+1 -> 80 | C24: Non-Medicaid Contract | P24: 0 | Q24: 0 | R24: 0 | S24: 0 | T24: 0 | U24: =U23+1 -> 80
C25: Total Passenger Trips for This Mode | D25: =SUM(D22:D24) -> 0 | E25: 0 | F25: 0 | G25: 0 | H25: 0 | I25: 0 | J25: 0 | K25: 0 | L25: 0 | M25: 0 | N25: 0 | O25: 0 | P25: 0 | Q25: 0 | R25: 0 | S25: 0 | T25: 0
B26: Fixed Route Purchased (MB PT)
A27: =A24+1 -> 81 | C27: Hours | P27: =D27+E27+F27 -> 0 | Q27: =G27+H27+I27 -> 0 | R27: =J27+K27+L27 -> 0 | S27: =M27+N27+O27 -> 0 | T27: =SUM(D27:O27) -> 0 | U27: =U24+1 -> 81
A28: =A27+1 -> 82 | C28: Miles | P28: 0 | Q28: 0 | R28: 0 | S28: 0 | T28: 0 | U28: =U27+1 -> 82
A29: =A28+1 -> 83 | C29: Passenger Trips: Non-Contract | P29: 0 | Q29: 0 | R29: 0 | S29: 0 | T29: 0 | U29: =U28+1 -> 83
A30: =A29+1 -> 84 | C30: Medicaid Contract | P30: 0 | Q30: 0 | R30: 0 | S30: 0 | T30: 0 | U30: =U29+1 -> 84
A31: =A30+1 -> 85 | C31: Non-Medicaid Contract | P31: 0 | Q31: 0 | R31: 0 | S31: 0 | T31: 0 | U31: =U30+1 -> 85
C32: Total Passenger Trips- Other Providers | D32: =SUM(D29:D31) -> 0 | E32: 0 | F32: 0 | G32: 0 | H32: 0 | I32: 0 | J32: 0 | K32: 0 | L32: 0 | M32: 0 | N32: 0 | O32: 0 | P32: 0 | Q32: 0 | R32: 0 | S32: 0 | T32: 0
B33: Microtransit (MT DO)
A34: =A31+1 -> 86 | C34: Hours | P34: =D34+E34+F34 -> 0 | Q34: =G34+H34+I34 -> 0 | R34: =J34+K34+L34 -> 0 | S34: =M34+N34+O34 -> 0 | T34: =SUM(D34:O34) -> 0 | U34: =U31+1 -> 86
A35: =A34+1 -> 87 | C35: Miles | P35: 0 | Q35: 0 | R35: 0 | S35: 0 | T35: 0 | U35: =U34+1 -> 87
A36: =A35+1 -> 88 | C36: Passenger Trips: Non-Contract | P36: 0 | Q36: 0 | R36: 0 | S36: 0 | T36: 0 | U36: =U35+1 -> 88
A37: =A36+1 -> 89 | C37: Medicaid Contract | P37: 0 | Q37: 0 | R37: 0 | S37: 0 | T37: 0 | U37: =U36+1 -> 89
A38: =A37+1 -> 90 | C38: Non-Medicaid Contract | P38: 0 | Q38: 0 | R38: 0 | S38: 0 | T38: 0 | U38: =U37+1 -> 90
C39: Total Passenger Trips- Other Providers | D39: =SUM(D36:D38) -> 0 | E39: =SUM(E36:E38) -> 0 | F39: 0 | G39: 0 | H39: 0 | I39: 0 | J39: 0 | K39: 0 | L39: 0 | M39: 0 | N39: 0 | O39: 0 | P39: 0 | Q39: 0 | R39: 0 | S39: 0 | T39: 0
B40: Microtransit (MT PT)
A41: =A38+1 -> 91 | C41: Hours | P41: =D41+E41+F41 -> 0 | Q41: =G41+H41+I41 -> 0 | R41: =J41+K41+L41 -> 0 | S41: =M41+N41+O41 -> 0 | T41: =SUM(D41:O41) -> 0 | U41: =U38+1 -> 91
A42: =A41+1 -> 92 | C42: Miles | P42: 0 | Q42: 0 | R42: 0 | S42: 0 | T42: 0 | U42: =U41+1 -> 92
A43: =A42+1 -> 93 | C43: Passenger Trips: Non-Contract | P43: 0 | Q43: 0 | R43: 0 | S43: 0 | T43: 0 | U43: =U42+1 -> 93
A44: =A43+1 -> 94 | C44: Medicaid Contract | P44: 0 | Q44: 0 | R44: 0 | S44: 0 | T44: 0 | U44: =U43+1 -> 94
A45: =A44+1 -> 95 | C45: Non-Medicaid Contract | P45: 0 | Q45: 0 | R45: 0 | S45: 0 | T45: 0 | U45: =U44+1 -> 95
C46: Total Passenger Trips- Other Providers | D46: =SUM(D43:D45) -> 0 | E46: =SUM(E43:E45) -> 0 | F46: 0 | G46: 0 | H46: 0 | I46: 0 | J46: 0 | K46: 0 | L46: 0 | M46: 0 | N46: 0 | O46: 0 | P46: 0 | Q46: 0 | R46: 0 | S46: 0 | T46: 0
B47: Transit Totals
C48: Hours | D48: =SUM(D6+D13+D20+D27+D34+D41) -> 0 | E48: =SUM(E6+E13+E20+E27+E34+E41) -> 0 | F48: 0 | G48: 0 | H48: 0 | I48: 0 | J48: 0 | K48: 0 | L48: 0 | M48: 0 | N48: 0 | O48: 0 | P48: =SUM(D48:F48) -> 0 | Q48: =SUM(G48:I48) -> 0 | R48: =SUM(J48:L48) -> 0 | S48: =SUM(M48:O48) -> 0 | T48: =SUM(P48:S48) -> 0
C49: Miles | D49: =SUM(D7+D14+D21+D28+D35+D42) -> 0 | E49: 0 | F49: 0 | G49: 0 | H49: 0 | I49: 0 | J49: 0 | K49: 0 | L49: 0 | M49: 0 | N49: 0 | O49: 0 | P49: =SUM(D49:F49) -> 0 | Q49: =SUM(G49:I49) -> 0 | R49: =SUM(J49:L49) -> 0 | S49: =SUM(M49:O49) -> 0 | T49: =SUM(P49:S49) -> 0
C50: Passenger Trips: Non-Contract | D50: 0 | E50: 0 | F50: 0 | G50: 0 | H50: 0 | I50: 0 | J50: 0 | K50: 0 | L50: 0 | M50: 0 | N50: 0 | O50: 0 | P50: 0 | Q50: 0 | R50: 0 | S50: 0 | T50: 0
C51: Medicaid Contract | D51: 0 | E51: 0 | F51: 0 | G51: 0 | H51: 0 | I51: 0 | J51: 0 | K51: 0 | L51: 0 | M51: 0 | N51: 0 | O51: 0 | P51: 0 | Q51: 0 | R51: 0 | S51: 0 | T51: 0
C52: Non-Medicaid Contract | D52: 0 | E52: 0 | F52: 0 | G52: 0 | H52: 0 | I52: 0 | J52: 0 | K52: 0 | L52: 0 | M52: 0 | N52: 0 | O52: 0 | P52: 0 | Q52: 0 | R52: 0 | S52: 0 | T52: 0
C53: Total Passenger Trips for All Modes | D53: =SUM(D50:D52) -> 0 | E53: =SUM(E50:E52) -> 0 | F53: =F50+F51+F52 -> 0 | G53: 0 | H53: 0 | I53: 0 | J53: 0 | K53: 0 | L53: 0 | M53: 0 | N53: 0 | O53: 0 | P53: 0 | Q53: 0 | R53: 0 | S53: 0 | T53: 0
D55: A | E55: B | F55: C | G55: D | H55: E | I55: F | J55: G | K55: H | L55: I | M55: J | N55: K | O55: L

Sheet Weekly Totals (hidden)
B1: ="WEEKLY TOTALS: "&Overview!D4 -> WEEKLY TOTALS:
B2: NO DATA ENTRY ON THIS FORM
B3: =Overview!B2 -> FY2024 | D3: July | E3: August | F3: September | G3: October | H3: November | I3: December | J3: January | K3: February | L3: March | M3: April | N3: May | O3: June | P3: Quarter 1 | Q3: Quarter 2 | R3: Quarter 3 | S3: Quarter 4 | T3: YTD Totals
C4: Operating Days | D4: =Weekday!D4+Saturday!D4+Sunday!D4 -> 0 | E4: =Weekday!E4+Saturday!E4+Sunday!E4 -> 0 | F4: =Weekday!F4+Saturday!F4+Sunday!F4 -> 0 | G4: =Weekday!G4+Saturday!G4+Sunday!G4 -> 0 | H4: =Weekday!H4+Saturday!H4+Sunday!H4 -> 0 | I4: =Weekday!I4+Saturday!I4+Sunday!I4 -> 0 | J4: =Weekday!J4+Saturday!J4+Sunday!J4 -> 0 | K4: =Weekday!K4+Saturday!K4+Sunday!K4 -> 0 | L4: =Weekday!L4+Saturday!L4+Sunday!L4 -> 0 | M4: =Weekday!M4+Saturday!M4+Sunday!M4 -> 0 | N4: =Weekday!N4+Saturday!N4+Sunday!N4 -> 0 | O4: =Weekday!O4+Saturday!O4+Sunday!O4 -> 0 | P4: =D4+E4+F4 -> 0 | Q4: =G4+H4+I4 -> 0 | R4: =J4+K4+L4 -> 0 | S4: =M4+N4+O4 -> 0 | T4: =SUM(D4:O4) -> 0
B5: Demand Response Directly Operated (DR DO)
C6: Hours | D6: =Weekday!D6+Saturday!D6+Sunday!D6 -> 0 | E6: =Weekday!E6+Saturday!E6+Sunday!E6 -> 0 | F6: =Weekday!F6+Saturday!F6+Sunday!F6 -> 0 | G6: =Weekday!G6+Saturday!G6+Sunday!G6 -> 0 | H6: =Weekday!H6+Saturday!H6+Sunday!H6 -> 0 | I6: =Weekday!I6+Saturday!I6+Sunday!I6 -> 0 | J6: =Weekday!J6+Saturday!J6+Sunday!J6 -> 0 | K6: =Weekday!K6+Saturday!K6+Sunday!K6 -> 0 | L6: =Weekday!L6+Saturday!L6+Sunday!L6 -> 0 | M6: =Weekday!M6+Saturday!M6+Sunday!M6 -> 0 | N6: =Weekday!N6+Saturday!N6+Sunday!N6 -> 0 | O6: =Weekday!O6+Saturday!O6+Sunday!O6 -> 0 | P6: =D6+E6+F6 -> 0 | Q6: =G6+H6+I6 -> 0 | R6: =J6+K6+L6 -> 0 | S6: =M6+N6+O6 -> 0 | T6: =SUM(D6:O6) -> 0
C7: Miles | D7: =Weekday!D7+Saturday!D7+Sunday!D7 -> 0 | E7: =Weekday!E7+Saturday!E7+Sunday!E7 -> 0 | F7: =Weekday!F7+Saturday!F7+Sunday!F7 -> 0 | G7: =Weekday!G7+Saturday!G7+Sunday!G7 -> 0 | H7: =Weekday!H7+Saturday!H7+Sunday!H7 -> 0 | I7: =Weekday!I7+Saturday!I7+Sunday!I7 -> 0 | J7: =Weekday!J7+Saturday!J7+Sunday!J7 -> 0 | K7: =Weekday!K7+Saturday!K7+Sunday!K7 -> 0 | L7: =Weekday!L7+Saturday!L7+Sunday!L7 -> 0 | M7: =Weekday!M7+Saturday!M7+Sunday!M7 -> 0 | N7: =Weekday!N7+Saturday!N7+Sunday!N7 -> 0 | O7: =Weekday!O7+Saturday!O7+Sunday!O7 -> 0 | P7: 0 | Q7: 0 | R7: 0 | S7: 0 | T7: 0
C8: Passenger Trips: Non-Contract | D8: =Weekday!D8+Saturday!D8+Sunday!D8 -> 0 | E8: =Weekday!E8+Saturday!E8+Sunday!E8 -> 0 | F8: =Weekday!F8+Saturday!F8+Sunday!F8 -> 0 | G8: =Weekday!G8+Saturday!G8+Sunday!G8 -> 0 | H8: =Weekday!H8+Saturday!H8+Sunday!H8 -> 0 | I8: =Weekday!I8+Saturday!I8+Sunday!I8 -> 0 | J8: =Weekday!J8+Saturday!J8+Sunday!J8 -> 0 | K8: =Weekday!K8+Saturday!K8+Sunday!K8 -> 0 | L8: =Weekday!L8+Saturday!L8+Sunday!L8 -> 0 | M8: =Weekday!M8+Saturday!M8+Sunday!M8 -> 0 | N8: =Weekday!N8+Saturday!N8+Sunday!N8 -> 0 | O8: =Weekday!O8+Saturday!O8+Sunday!O8 -> 0 | P8: 0 | Q8: 0 | R8: 0 | S8: 0 | T8: 0
C9: Medicaid Contract | D9: =Weekday!D9+Saturday!D9+Sunday!D9 -> 0 | E9: =Weekday!E9+Saturday!E9+Sunday!E9 -> 0 | F9: =Weekday!F9+Saturday!F9+Sunday!F9 -> 0 | G9: =Weekday!G9+Saturday!G9+Sunday!G9 -> 0 | H9: =Weekday!H9+Saturday!H9+Sunday!H9 -> 0 | I9: =Weekday!I9+Saturday!I9+Sunday!I9 -> 0 | J9: =Weekday!J9+Saturday!J9+Sunday!J9 -> 0 | K9: =Weekday!K9+Saturday!K9+Sunday!K9 -> 0 | L9: =Weekday!L9+Saturday!L9+Sunday!L9 -> 0 | M9: =Weekday!M9+Saturday!M9+Sunday!M9 -> 0 | N9: =Weekday!N9+Saturday!N9+Sunday!N9 -> 0 | O9: =Weekday!O9+Saturday!O9+Sunday!O9 -> 0 | P9: 0 | Q9: 0 | R9: 0 | S9: 0 | T9: 0
C10: Non-Medicaid Contract | D10: =Weekday!D10+Saturday!D10+Sunday!D10 -> 0 | E10: =Weekday!E10+Saturday!E10+Sunday!E10 -> 0 | F10: =Weekday!F10+Saturday!F10+Sunday!F10 -> 0 | G10: =Weekday!G10+Saturday!G10+Sunday!G10 -> 0 | H10: =Weekday!H10+Saturday!H10+Sunday!H10 -> 0 | I10: =Weekday!I10+Saturday!I10+Sunday!I10 -> 0 | J10: =Weekday!J10+Saturday!J10+Sunday!J10 -> 0 | K10: =Weekday!K10+Saturday!K10+Sunday!K10 -> 0 | L10: =Weekday!L10+Saturday!L10+Sunday!L10 -> 0 | M10: =Weekday!M10+Saturday!M10+Sunday!M10 -> 0 | N10: =Weekday!N10+Saturday!N10+Sunday!N10 -> 0 | O10: =Weekday!O10+Saturday!O10+Sunday!O10 -> 0 | P10: 0 | Q10: 0 | R10: 0 | S10: 0 | T10: 0
C11: Total Passenger Trips for This Mode | D11: =SUM(D8:D10) -> 0 | E11: 0 | F11: 0 | G11: 0 | H11: 0 | I11: 0 | J11: 0 | K11: 0 | L11: 0 | M11: 0 | N11: 0 | O11: 0 | P11: 0 | Q11: 0 | R11: 0 | S11: 0 | T11: 0
B12: Demand Response Purchased (DR PT)
C13: Hours | D13: =Weekday!D13+Saturday!D13+Sunday!D13 -> 0 | E13: =Weekday!E13+Saturday!E13+Sunday!E13 -> 0 | F13: =Weekday!F13+Saturday!F13+Sunday!F13 -> 0 | G13: =Weekday!G13+Saturday!G13+Sunday!G13 -> 0 | H13: =Weekday!H13+Saturday!H13+Sunday!H13 -> 0 | I13: =Weekday!I13+Saturday!I13+Sunday!I13 -> 0 | J13: =Weekday!J13+Saturday!J13+Sunday!J13 -> 0 | K13: =Weekday!K13+Saturday!K13+Sunday!K13 -> 0 | L13: =Weekday!L13+Saturday!L13+Sunday!L13 -> 0 | M13: =Weekday!M13+Saturday!M13+Sunday!M13 -> 0 | N13: =Weekday!N13+Saturday!N13+Sunday!N13 -> 0 | O13: =Weekday!O13+Saturday!O13+Sunday!O13 -> 0 | P13: =D13+E13+F13 -> 0 | Q13: =G13+H13+I13 -> 0 | R13: =J13+K13+L13 -> 0 | S13: =M13+N13+O13 -> 0 | T13: =SUM(D13:O13) -> 0
C14: Miles | D14: =Weekday!D14+Saturday!D14+Sunday!D14 -> 0 | E14: =Weekday!E14+Saturday!E14+Sunday!E14 -> 0 | F14: =Weekday!F14+Saturday!F14+Sunday!F14 -> 0 | G14: =Weekday!G14+Saturday!G14+Sunday!G14 -> 0 | H14: =Weekday!H14+Saturday!H14+Sunday!H14 -> 0 | I14: =Weekday!I14+Saturday!I14+Sunday!I14 -> 0 | J14: =Weekday!J14+Saturday!J14+Sunday!J14 -> 0 | K14: =Weekday!K14+Saturday!K14+Sunday!K14 -> 0 | L14: =Weekday!L14+Saturday!L14+Sunday!L14 -> 0 | M14: =Weekday!M14+Saturday!M14+Sunday!M14 -> 0 | N14: =Weekday!N14+Saturday!N14+Sunday!N14 -> 0 | O14: =Weekday!O14+Saturday!O14+Sunday!O14 -> 0 | P14: 0 | Q14: 0 | R14: 0 | S14: 0 | T14: 0
C15: Passenger Trips: Non-Contract | D15: =Weekday!D15+Saturday!D15+Sunday!D15 -> 0 | E15: =Weekday!E15+Saturday!E15+Sunday!E15 -> 0 | F15: =Weekday!F15+Saturday!F15+Sunday!F15 -> 0 | G15: =Weekday!G15+Saturday!G15+Sunday!G15 -> 0 | H15: =Weekday!H15+Saturday!H15+Sunday!H15 -> 0 | I15: =Weekday!I15+Saturday!I15+Sunday!I15 -> 0 | J15: =Weekday!J15+Saturday!J15+Sunday!J15 -> 0 | K15: =Weekday!K15+Saturday!K15+Sunday!K15 -> 0 | L15: =Weekday!L15+Saturday!L15+Sunday!L15 -> 0 | M15: =Weekday!M15+Saturday!M15+Sunday!M15 -> 0 | N15: =Weekday!N15+Saturday!N15+Sunday!N15 -> 0 | O15: =Weekday!O15+Saturday!O15+Sunday!O15 -> 0 | P15: 0 | Q15: 0 | R15: 0 | S15: 0 | T15: 0
C16: Medicaid Contract | D16: =Weekday!D16+Saturday!D16+Sunday!D16 -> 0 | E16: =Weekday!E16+Saturday!E16+Sunday!E16 -> 0 | F16: =Weekday!F16+Saturday!F16+Sunday!F16 -> 0 | G16: =Weekday!G16+Saturday!G16+Sunday!G16 -> 0 | H16: =Weekday!H16+Saturday!H16+Sunday!H16 -> 0 | I16: =Weekday!I16+Saturday!I16+Sunday!I16 -> 0 | J16: =Weekday!J16+Saturday!J16+Sunday!J16 -> 0 | K16: =Weekday!K16+Saturday!K16+Sunday!K16 -> 0 | L16: =Weekday!L16+Saturday!L16+Sunday!L16 -> 0 | M16: =Weekday!M16+Saturday!M16+Sunday!M16 -> 0 | N16: =Weekday!N16+Saturday!N16+Sunday!N16 -> 0 | O16: =Weekday!O16+Saturday!O16+Sunday!O16 -> 0 | P16: 0 | Q16: 0 | R16: 0 | S16: 0 | T16: 0
C17: Non-Medicaid Contract | D17: =Weekday!D17+Saturday!D17+Sunday!D17 -> 0 | E17: =Weekday!E17+Saturday!E17+Sunday!E17 -> 0 | F17: =Weekday!F17+Saturday!F17+Sunday!F17 -> 0 | G17: =Weekday!G17+Saturday!G17+Sunday!G17 -> 0 | H17: =Weekday!H17+Saturday!H17+Sunday!H17 -> 0 | I17: =Weekday!I17+Saturday!I17+Sunday!I17 -> 0 | J17: =Weekday!J17+Saturday!J17+Sunday!J17 -> 0 | K17: =Weekday!K17+Saturday!K17+Sunday!K17 -> 0 | L17: =Weekday!L17+Saturday!L17+Sunday!L17 -> 0 | M17: =Weekday!M17+Saturday!M17+Sunday!M17 -> 0 | N17: =Weekday!N17+Saturday!N17+Sunday!N17 -> 0 | O17: =Weekday!O17+Saturday!O17+Sunday!O17 -> 0 | P17: 0 | Q17: 0 | R17: 0 | S17: 0 | T17: 0
C18: Total Passenger Trips for This Mode | D18: =SUM(D15:D17) -> 0 | E18: =SUM(E15:E17) -> 0 | F18: 0 | G18: 0 | H18: 0 | I18: 0 | J18: 0 | K18: 0 | L18: 0 | M18: 0 | N18: 0 | O18: 0 | P18: 0 | Q18: 0 | R18: 0 | S18: 0 | T18: 0
B19: Fixed Route Directly Operated (MB DO)
C20: Hours | D20: =Weekday!D20+Saturday!D20+Sunday!D20 -> 0 | E20: =Weekday!E20+Saturday!E20+Sunday!E20 -> 0 | F20: =Weekday!F20+Saturday!F20+Sunday!F20 -> 0 | G20: =Weekday!G20+Saturday!G20+Sunday!G20 -> 0 | H20: =Weekday!H20+Saturday!H20+Sunday!H20 -> 0 | I20: =Weekday!I20+Saturday!I20+Sunday!I20 -> 0 | J20: =Weekday!J20+Saturday!J20+Sunday!J20 -> 0 | K20: =Weekday!K20+Saturday!K20+Sunday!K20 -> 0 | L20: =Weekday!L20+Saturday!L20+Sunday!L20 -> 0 | M20: =Weekday!M20+Saturday!M20+Sunday!M20 -> 0 | N20: =Weekday!N20+Saturday!N20+Sunday!N20 -> 0 | O20: =Weekday!O20+Saturday!O20+Sunday!O20 -> 0 | P20: =D20+E20+F20 -> 0 | Q20: =G20+H20+I20 -> 0 | R20: =J20+K20+L20 -> 0 | S20: =M20+N20+O20 -> 0 | T20: =SUM(D20:O20) -> 0
C21: Miles | D21: =Weekday!D21+Saturday!D21+Sunday!D21 -> 0 | E21: =Weekday!E21+Saturday!E21+Sunday!E21 -> 0 | F21: =Weekday!F21+Saturday!F21+Sunday!F21 -> 0 | G21: =Weekday!G21+Saturday!G21+Sunday!G21 -> 0 | H21: =Weekday!H21+Saturday!H21+Sunday!H21 -> 0 | I21: =Weekday!I21+Saturday!I21+Sunday!I21 -> 0 | J21: =Weekday!J21+Saturday!J21+Sunday!J21 -> 0 | K21: =Weekday!K21+Saturday!K21+Sunday!K21 -> 0 | L21: =Weekday!L21+Saturday!L21+Sunday!L21 -> 0 | M21: =Weekday!M21+Saturday!M21+Sunday!M21 -> 0 | N21: =Weekday!N21+Saturday!N21+Sunday!N21 -> 0 | O21: =Weekday!O21+Saturday!O21+Sunday!O21 -> 0 | P21: 0 | Q21: 0 | R21: 0 | S21: 0 | T21: 0
C22: Passenger Trips: Non-Contract | D22: =Weekday!D22+Saturday!D22+Sunday!D22 -> 0 | E22: =Weekday!E22+Saturday!E22+Sunday!E22 -> 0 | F22: =Weekday!F22+Saturday!F22+Sunday!F22 -> 0 | G22: =Weekday!G22+Saturday!G22+Sunday!G22 -> 0 | H22: =Weekday!H22+Saturday!H22+Sunday!H22 -> 0 | I22: =Weekday!I22+Saturday!I22+Sunday!I22 -> 0 | J22: =Weekday!J22+Saturday!J22+Sunday!J22 -> 0 | K22: =Weekday!K22+Saturday!K22+Sunday!K22 -> 0 | L22: =Weekday!L22+Saturday!L22+Sunday!L22 -> 0 | M22: =Weekday!M22+Saturday!M22+Sunday!M22 -> 0 | N22: =Weekday!N22+Saturday!N22+Sunday!N22 -> 0 | O22: =Weekday!O22+Saturday!O22+Sunday!O22 -> 0 | P22: 0 | Q22: 0 | R22: 0 | S22: 0 | T22: 0
C23: Medicaid Contract | D23: =Weekday!D23+Saturday!D23+Sunday!D23 -> 0 | E23: =Weekday!E23+Saturday!E23+Sunday!E23 -> 0 | F23: =Weekday!F23+Saturday!F23+Sunday!F23 -> 0 | G23: =Weekday!G23+Saturday!G23+Sunday!G23 -> 0 | H23: =Weekday!H23+Saturday!H23+Sunday!H23 -> 0 | I23: =Weekday!I23+Saturday!I23+Sunday!I23 -> 0 | J23: =Weekday!J23+Saturday!J23+Sunday!J23 -> 0 | K23: =Weekday!K23+Saturday!K23+Sunday!K23 -> 0 | L23: =Weekday!L23+Saturday!L23+Sunday!L23 -> 0 | M23: =Weekday!M23+Saturday!M23+Sunday!M23 -> 0 | N23: =Weekday!N23+Saturday!N23+Sunday!N23 -> 0 | O23: =Weekday!O23+Saturday!O23+Sunday!O23 -> 0 | P23: 0 | Q23: 0 | R23: 0 | S23: 0 | T23: 0
C24: Non-Medicaid Contract | D24: =Weekday!D24+Saturday!D24+Sunday!D24 -> 0 | E24: =Weekday!E24+Saturday!E24+Sunday!E24 -> 0 | F24: =Weekday!F24+Saturday!F24+Sunday!F24 -> 0 | G24: =Weekday!G24+Saturday!G24+Sunday!G24 -> 0 | H24: =Weekday!H24+Saturday!H24+Sunday!H24 -> 0 | I24: =Weekday!I24+Saturday!I24+Sunday!I24 -> 0 | J24: =Weekday!J24+Saturday!J24+Sunday!J24 -> 0 | K24: =Weekday!K24+Saturday!K24+Sunday!K24 -> 0 | L24: =Weekday!L24+Saturday!L24+Sunday!L24 -> 0 | M24: =Weekday!M24+Saturday!M24+Sunday!M24 -> 0 | N24: =Weekday!N24+Saturday!N24+Sunday!N24 -> 0 | O24: =Weekday!O24+Saturday!O24+Sunday!O24 -> 0 | P24: 0 | Q24: 0 | R24: 0 | S24: 0 | T24: 0
C25: Total Passenger Trips for This Mode | D25: =SUM(D22:D24) -> 0 | E25: 0 | F25: 0 | G25: 0 | H25: 0 | I25: 0 | J25: 0 | K25: 0 | L25: 0 | M25: 0 | N25: 0 | O25: 0 | P25: 0 | Q25: 0 | R25: 0 | S25: 0 | T25: 0
B26: Fixed Route Purchased (MB PT)
C27: Hours | D27: =Weekday!D27+Saturday!D27+Sunday!D27 -> 0 | E27: =Weekday!E27+Saturday!E27+Sunday!E27 -> 0 | F27: =Weekday!F27+Saturday!F27+Sunday!F27 -> 0 | G27: =Weekday!G27+Saturday!G27+Sunday!G27 -> 0 | H27: =Weekday!H27+Saturday!H27+Sunday!H27 -> 0 | I27: =Weekday!I27+Saturday!I27+Sunday!I27 -> 0 | J27: =Weekday!J27+Saturday!J27+Sunday!J27 -> 0 | K27: =Weekday!K27+Saturday!K27+Sunday!K27 -> 0 | L27: =Weekday!L27+Saturday!L27+Sunday!L27 -> 0 | M27: =Weekday!M27+Saturday!M27+Sunday!M27 -> 0 | N27: =Weekday!N27+Saturday!N27+Sunday!N27 -> 0 | O27: =Weekday!O27+Saturday!O27+Sunday!O27 -> 0 | P27: =D27+E27+F27 -> 0 | Q27: =G27+H27+I27 -> 0 | R27: =J27+K27+L27 -> 0 | S27: =M27+N27+O27 -> 0 | T27: =SUM(D27:O27) -> 0
C28: Miles | D28: =Weekday!D28+Saturday!D28+Sunday!D28 -> 0 | E28: =Weekday!E28+Saturday!E28+Sunday!E28 -> 0 | F28: =Weekday!F28+Saturday!F28+Sunday!F28 -> 0 | G28: =Weekday!G28+Saturday!G28+Sunday!G28 -> 0 | H28: =Weekday!H28+Saturday!H28+Sunday!H28 -> 0 | I28: =Weekday!I28+Saturday!I28+Sunday!I28 -> 0 | J28: =Weekday!J28+Saturday!J28+Sunday!J28 -> 0 | K28: =Weekday!K28+Saturday!K28+Sunday!K28 -> 0 | L28: =Weekday!L28+Saturday!L28+Sunday!L28 -> 0 | M28: =Weekday!M28+Saturday!M28+Sunday!M28 -> 0 | N28: =Weekday!N28+Saturday!N28+Sunday!N28 -> 0 | O28: =Weekday!O28+Saturday!O28+Sunday!O28 -> 0 | P28: 0 | Q28: 0 | R28: 0 | S28: 0 | T28: 0
C29: Passenger Trips: Non-Contract | D29: =Weekday!D29+Saturday!D29+Sunday!D29 -> 0 | E29: =Weekday!E29+Saturday!E29+Sunday!E29 -> 0 | F29: =Weekday!F29+Saturday!F29+Sunday!F29 -> 0 | G29: =Weekday!G29+Saturday!G29+Sunday!G29 -> 0 | H29: =Weekday!H29+Saturday!H29+Sunday!H29 -> 0 | I29: =Weekday!I29+Saturday!I29+Sunday!I29 -> 0 | J29: =Weekday!J29+Saturday!J29+Sunday!J29 -> 0 | K29: =Weekday!K29+Saturday!K29+Sunday!K29 -> 0 | L29: =Weekday!L29+Saturday!L29+Sunday!L29 -> 0 | M29: =Weekday!M29+Saturday!M29+Sunday!M29 -> 0 | N29: =Weekday!N29+Saturday!N29+Sunday!N29 -> 0 | O29: =Weekday!O29+Saturday!O29+Sunday!O29 -> 0 | P29: 0 | Q29: 0 | R29: 0 | S29: 0 | T29: 0
C30: Medicaid Contract | D30: =Weekday!D30+Saturday!D30+Sunday!D30 -> 0 | E30: =Weekday!E30+Saturday!E30+Sunday!E30 -> 0 | F30: =Weekday!F30+Saturday!F30+Sunday!F30 -> 0 | G30: =Weekday!G30+Saturday!G30+Sunday!G30 -> 0 | H30: =Weekday!H30+Saturday!H30+Sunday!H30 -> 0 | I30: =Weekday!I30+Saturday!I30+Sunday!I30 -> 0 | J30: =Weekday!J30+Saturday!J30+Sunday!J30 -> 0 | K30: =Weekday!K30+Saturday!K30+Sunday!K30 -> 0 | L30: =Weekday!L30+Saturday!L30+Sunday!L30 -> 0 | M30: =Weekday!M30+Saturday!M30+Sunday!M30 -> 0 | N30: =Weekday!N30+Saturday!N30+Sunday!N30 -> 0 | O30: =Weekday!O30+Saturday!O30+Sunday!O30 -> 0 | P30: 0 | Q30: 0 | R30: 0 | S30: 0 | T30: 0
C31: Non-Medicaid Contract | D31: =Weekday!D31+Saturday!D31+Sunday!D31 -> 0 | E31: =Weekday!E31+Saturday!E31+Sunday!E31 -> 0 | F31: =Weekday!F31+Saturday!F31+Sunday!F31 -> 0 | G31: =Weekday!G31+Saturday!G31+Sunday!G31 -> 0 | H31: =Weekday!H31+Saturday!H31+Sunday!H31 -> 0 | I31: =Weekday!I31+Saturday!I31+Sunday!I31 -> 0 | J31: =Weekday!J31+Saturday!J31+Sunday!J31 -> 0 | K31: =Weekday!K31+Saturday!K31+Sunday!K31 -> 0 | L31: =Weekday!L31+Saturday!L31+Sunday!L31 -> 0 | M31: =Weekday!M31+Saturday!M31+Sunday!M31 -> 0 | N31: =Weekday!N31+Saturday!N31+Sunday!N31 -> 0 | O31: =Weekday!O31+Saturday!O31+Sunday!O31 -> 0 | P31: 0 | Q31: 0 | R31: 0 | S31: 0 | T31: 0
C32: Total Passenger Trips for This Mode | D32: =SUM(D29:D31) -> 0 | E32: =SUM(E29:E31) -> 0 | F32: 0 | G32: 0 | H32: 0 | I32: 0 | J32: 0 | K32: 0 | L32: 0 | M32: 0 | N32: 0 | O32: 0 | P32: 0 | Q32: 0 | R32: 0 | S32: 0 | T32: 0
B33: Microtransit (MT DO)
A34: =A31+1 -> 1 | C34: Hours | D34: =Weekday!D34+Saturday!D34+Sunday!D34 -> 0 | E34: =Weekday!E34+Saturday!E34+Sunday!E34 -> 0 | F34: =Weekday!F34+Saturday!F34+Sunday!F34 -> 0 | G34: =Weekday!G34+Saturday!G34+Sunday!G34 -> 0 | H34: =Weekday!H34+Saturday!H34+Sunday!H34 -> 0 | I34: =Weekday!I34+Saturday!I34+Sunday!I34 -> 0 | J34: =Weekday!J34+Saturday!J34+Sunday!J34 -> 0 | K34: =Weekday!K34+Saturday!K34+Sunday!K34 -> 0 | L34: =Weekday!L34+Saturday!L34+Sunday!L34 -> 0 | M34: =Weekday!M34+Saturday!M34+Sunday!M34 -> 0 | N34: =Weekday!N34+Saturday!N34+Sunday!N34 -> 0 | O34: =Weekday!O34+Saturday!O34+Sunday!O34 -> 0 | P34: =D34+E34+F34 -> 0 | Q34: =G34+H34+I34 -> 0 | R34: =J34+K34+L34 -> 0 | S34: =M34+N34+O34 -> 0 | T34: =SUM(D34:O34) -> 0 | U34: =U31+1 -> 1
A35: =A34+1 -> 2 | C35: Miles | D35: =Weekday!D35+Saturday!D35+Sunday!D35 -> 0 | E35: =Weekday!E35+Saturday!E35+Sunday!E35 -> 0 | F35: =Weekday!F35+Saturday!F35+Sunday!F35 -> 0 | G35: =Weekday!G35+Saturday!G35+Sunday!G35 -> 0 | H35: =Weekday!H35+Saturday!H35+Sunday!H35 -> 0 | I35: =Weekday!I35+Saturday!I35+Sunday!I35 -> 0 | J35: =Weekday!J35+Saturday!J35+Sunday!J35 -> 0 | K35: =Weekday!K35+Saturday!K35+Sunday!K35 -> 0 | L35: =Weekday!L35+Saturday!L35+Sunday!L35 -> 0 | M35: =Weekday!M35+Saturday!M35+Sunday!M35 -> 0 | N35: =Weekday!N35+Saturday!N35+Sunday!N35 -> 0 | O35: =Weekday!O35+Saturday!O35+Sunday!O35 -> 0 | P35: 0 | Q35: 0 | R35: 0 | S35: 0 | T35: 0 | U35: =U34+1 -> 2
A36: =A35+1 -> 3 | C36: Passenger Trips: Non-Contract | D36: =Weekday!D36+Saturday!D36+Sunday!D36 -> 0 | E36: =Weekday!E36+Saturday!E36+Sunday!E36 -> 0 | F36: =Weekday!F36+Saturday!F36+Sunday!F36 -> 0 | G36: =Weekday!G36+Saturday!G36+Sunday!G36 -> 0 | H36: =Weekday!H36+Saturday!H36+Sunday!H36 -> 0 | I36: =Weekday!I36+Saturday!I36+Sunday!I36 -> 0 | J36: =Weekday!J36+Saturday!J36+Sunday!J36 -> 0 | K36: =Weekday!K36+Saturday!K36+Sunday!K36 -> 0 | L36: =Weekday!L36+Saturday!L36+Sunday!L36 -> 0 | M36: =Weekday!M36+Saturday!M36+Sunday!M36 -> 0 | N36: =Weekday!N36+Saturday!N36+Sunday!N36 -> 0 | O36: =Weekday!O36+Saturday!O36+Sunday!O36 -> 0 | P36: 0 | Q36: 0 | R36: 0 | S36: 0 | T36: 0 | U36: =U35+1 -> 3
A37: =A36+1 -> 4 | C37: Medicaid Contract | D37: =Weekday!D37+Saturday!D37+Sunday!D37 -> 0 | E37: =Weekday!E37+Saturday!E37+Sunday!E37 -> 0 | F37: =Weekday!F37+Saturday!F37+Sunday!F37 -> 0 | G37: =Weekday!G37+Saturday!G37+Sunday!G37 -> 0 | H37: =Weekday!H37+Saturday!H37+Sunday!H37 -> 0 | I37: =Weekday!I37+Saturday!I37+Sunday!I37 -> 0 | J37: =Weekday!J37+Saturday!J37+Sunday!J37 -> 0 | K37: =Weekday!K37+Saturday!K37+Sunday!K37 -> 0 | L37: =Weekday!L37+Saturday!L37+Sunday!L37 -> 0 | M37: =Weekday!M37+Saturday!M37+Sunday!M37 -> 0 | N37: =Weekday!N37+Saturday!N37+Sunday!N37 -> 0 | O37: =Weekday!O37+Saturday!O37+Sunday!O37 -> 0 | P37: 0 | Q37: 0 | R37: 0 | S37: 0 | T37: 0 | U37: =U36+1 -> 4
A38: =A37+1 -> 5 | C38: Non-Medicaid Contract | D38: =Weekday!D38+Saturday!D38+Sunday!D38 -> 0 | E38: =Weekday!E38+Saturday!E38+Sunday!E38 -> 0 | F38: =Weekday!F38+Saturday!F38+Sunday!F38 -> 0 | G38: =Weekday!G38+Saturday!G38+Sunday!G38 -> 0 | H38: =Weekday!H38+Saturday!H38+Sunday!H38 -> 0 | I38: =Weekday!I38+Saturday!I38+Sunday!I38 -> 0 | J38: =Weekday!J38+Saturday!J38+Sunday!J38 -> 0 | K38: =Weekday!K38+Saturday!K38+Sunday!K38 -> 0 | L38: =Weekday!L38+Saturday!L38+Sunday!L38 -> 0 | M38: =Weekday!M38+Saturday!M38+Sunday!M38 -> 0 | N38: =Weekday!N38+Saturday!N38+Sunday!N38 -> 0 | O38: =Weekday!O38+Saturday!O38+Sunday!O38 -> 0 | P38: 0 | Q38: 0 | R38: 0 | S38: 0 | T38: 0 | U38: =U37+1 -> 5
C39: Total Passenger Trips- Other Providers | D39: =SUM(D36:D38) -> 0 | E39: =SUM(E36:E38) -> 0 | F39: 0 | G39: 0 | H39: 0 | I39: 0 | J39: 0 | K39: 0 | L39: 0 | M39: 0 | N39: 0 | O39: 0 | P39: 0 | Q39: 0 | R39: 0 | S39: 0 | T39: 0
B40: Microtransit (MT PT)
A41: =A38+1 -> 6 | C41: Hours | D41: =Weekday!D41+Saturday!D41+Sunday!D41 -> 0 | E41: =Weekday!E41+Saturday!E41+Sunday!E41 -> 0 | F41: =Weekday!F41+Saturday!F41+Sunday!F41 -> 0 | G41: =Weekday!G41+Saturday!G41+Sunday!G41 -> 0 | H41: =Weekday!H41+Saturday!H41+Sunday!H41 -> 0 | I41: =Weekday!I41+Saturday!I41+Sunday!I41 -> 0 | J41: =Weekday!J41+Saturday!J41+Sunday!J41 -> 0 | K41: =Weekday!K41+Saturday!K41+Sunday!K41 -> 0 | L41: =Weekday!L41+Saturday!L41+Sunday!L41 -> 0 | M41: =Weekday!M41+Saturday!M41+Sunday!M41 -> 0 | N41: =Weekday!N41+Saturday!N41+Sunday!N41 -> 0 | O41: =Weekday!O41+Saturday!O41+Sunday!O41 -> 0 | P41: =D41+E41+F41 -> 0 | Q41: =G41+H41+I41 -> 0 | R41: =J41+K41+L41 -> 0 | S41: =M41+N41+O41 -> 0 | T41: =SUM(D41:O41) -> 0 | U41: =U38+1 -> 6
A42: =A41+1 -> 7 | C42: Miles | D42: =Weekday!D42+Saturday!D42+Sunday!D42 -> 0 | E42: =Weekday!E42+Saturday!E42+Sunday!E42 -> 0 | F42: =Weekday!F42+Saturday!F42+Sunday!F42 -> 0 | G42: =Weekday!G42+Saturday!G42+Sunday!G42 -> 0 | H42: =Weekday!H42+Saturday!H42+Sunday!H42 -> 0 | I42: =Weekday!I42+Saturday!I42+Sunday!I42 -> 0 | J42: =Weekday!J42+Saturday!J42+Sunday!J42 -> 0 | K42: =Weekday!K42+Saturday!K42+Sunday!K42 -> 0 | L42: =Weekday!L42+Saturday!L42+Sunday!L42 -> 0 | M42: =Weekday!M42+Saturday!M42+Sunday!M42 -> 0 | N42: =Weekday!N42+Saturday!N42+Sunday!N42 -> 0 | O42: =Weekday!O42+Saturday!O42+Sunday!O42 -> 0 | P42: 0 | Q42: 0 | R42: 0 | S42: 0 | T42: 0 | U42: =U41+1 -> 7
A43: =A42+1 -> 8 | C43: Passenger Trips: Non-Contract | D43: =Weekday!D43+Saturday!D43+Sunday!D43 -> 0 | E43: =Weekday!E43+Saturday!E43+Sunday!E43 -> 0 | F43: =Weekday!F43+Saturday!F43+Sunday!F43 -> 0 | G43: =Weekday!G43+Saturday!G43+Sunday!G43 -> 0 | H43: =Weekday!H43+Saturday!H43+Sunday!H43 -> 0 | I43: =Weekday!I43+Saturday!I43+Sunday!I43 -> 0 | J43: =Weekday!J43+Saturday!J43+Sunday!J43 -> 0 | K43: =Weekday!K43+Saturday!K43+Sunday!K43 -> 0 | L43: =Weekday!L43+Saturday!L43+Sunday!L43 -> 0 | M43: =Weekday!M43+Saturday!M43+Sunday!M43 -> 0 | N43: =Weekday!N43+Saturday!N43+Sunday!N43 -> 0 | O43: =Weekday!O43+Saturday!O43+Sunday!O43 -> 0 | P43: 0 | Q43: 0 | R43: 0 | S43: 0 | T43: 0 | U43: =U42+1 -> 8
A44: =A43+1 -> 9 | C44: Medicaid Contract | D44: =Weekday!D44+Saturday!D44+Sunday!D44 -> 0 | E44: =Weekday!E44+Saturday!E44+Sunday!E44 -> 0 | F44: =Weekday!F44+Saturday!F44+Sunday!F44 -> 0 | G44: =Weekday!G44+Saturday!G44+Sunday!G44 -> 0 | H44: =Weekday!H44+Saturday!H44+Sunday!H44 -> 0 | I44: =Weekday!I44+Saturday!I44+Sunday!I44 -> 0 | J44: =Weekday!J44+Saturday!J44+Sunday!J44 -> 0 | K44: =Weekday!K44+Saturday!K44+Sunday!K44 -> 0 | L44: =Weekday!L44+Saturday!L44+Sunday!L44 -> 0 | M44: =Weekday!M44+Saturday!M44+Sunday!M44 -> 0 | N44: =Weekday!N44+Saturday!N44+Sunday!N44 -> 0 | O44: =Weekday!O44+Saturday!O44+Sunday!O44 -> 0 | P44: 0 | Q44: 0 | R44: 0 | S44: 0 | T44: 0 | U44: =U43+1 -> 9
A45: =A44+1 -> 10 | C45: Non-Medicaid Contract | D45: =Weekday!D45+Saturday!D45+Sunday!D45 -> 0 | E45: =Weekday!E45+Saturday!E45+Sunday!E45 -> 0 | F45: =Weekday!F45+Saturday!F45+Sunday!F45 -> 0 | G45: =Weekday!G45+Saturday!G45+Sunday!G45 -> 0 | H45: =Weekday!H45+Saturday!H45+Sunday!H45 -> 0 | I45: =Weekday!I45+Saturday!I45+Sunday!I45 -> 0 | J45: =Weekday!J45+Saturday!J45+Sunday!J45 -> 0 | K45: =Weekday!K45+Saturday!K45+Sunday!K45 -> 0 | L45: =Weekday!L45+Saturday!L45+Sunday!L45 -> 0 | M45: =Weekday!M45+Saturday!M45+Sunday!M45 -> 0 | N45: =Weekday!N45+Saturday!N45+Sunday!N45 -> 0 | O45: =Weekday!O45+Saturday!O45+Sunday!O45 -> 0 | P45: 0 | Q45: 0 | R45: 0 | S45: 0 | T45: 0 | U45: =U44+1 -> 10
C46: Total Passenger Trips- Other Providers | D46: =SUM(D43:D45) -> 0 | E46: =SUM(E43:E45) -> 0 | F46: 0 | G46: 0 | H46: 0 | I46: 0 | J46: 0 | K46: 0 | L46: 0 | M46: 0 | N46: 0 | O46: 0 | P46: 0 | Q46: 0 | R46: 0 | S46: 0 | T46: 0
B47: Transit Totals
C48: Hours | D48: =SUM(D6+D13+D20+D27+D34+D41) -> 0 | E48: =SUM(E6+E13+E20+E27+E34+E41) -> 0 | F48: 0 | G48: 0 | H48: 0 | I48: 0 | J48: 0 | K48: 0 | L48: 0 | M48: 0 | N48: 0 | O48: 0 | P48: =SUM(D48:F48) -> 0 | Q48: =SUM(G48:I48) -> 0 | R48: =SUM(J48:L48) -> 0 | S48: =SUM(M48:O48) -> 0 | T48: =SUM(P48:S48) -> 0
C49: Miles | D49: 0 | E49: =SUM(E7+E14+E21+E28+E35+E42) -> 0 | F49: 0 | G49: 0 | H49: 0 | I49: 0 | J49: 0 | K49: 0 | L49: 0 | M49: 0 | N49: 0 | O49: 0 | P49: =SUM(D49:F49) -> 0 | Q49: =SUM(G49:I49) -> 0 | R49: =SUM(J49:L49) -> 0 | S49: =SUM(M49:O49) -> 0 | T49: =SUM(P49:S49) -> 0
C50: Passenger Trips: Non-Contract | D50: 0 | E50: =SUM(E8+E15+E22+E29+E36+E43) -> 0 | F50: 0 | G50: 0 | H50: 0 | I50: 0 | J50: 0 | K50: 0 | L50: 0 | M50: 0 | N50: 0 | O50: 0 | P50: 0 | Q50: 0 | R50: 0 | S50: 0 | T50: 0
C51: Medicaid Contract | D51: 0 | E51: =SUM(E9+E16+E23+E30+E37+E44) -> 0 | F51: 0 | G51: 0 | H51: 0 | I51: 0 | J51: 0 | K51: 0 | L51: 0 | M51: 0 | N51: 0 | O51: 0 | P51: 0 | Q51: 0 | R51: 0 | S51: 0 | T51: 0
C52: Non-Medicaid Contract | D52: 0 | E52: =SUM(E10+E17+E24+E31+E38+E45) -> 0 | F52: 0 | G52: 0 | H52: 0 | I52: 0 | J52: 0 | K52: 0 | L52: 0 | M52: 0 | N52: 0 | O52: 0 | P52: 0 | Q52: 0 | R52: 0 | S52: 0 | T52: 0
C53: Total Passenger Trips for All Modes | D53: 0 | E53: =SUM(E11+E18+E25+E32+E39+E46) -> 0 | F53: 0 | G53: 0 | H53: 0 | I53: 0 | J53: 0 | K53: 0 | L53: 0 | M53: 0 | N53: 0 | O53: 0 | P53: =SUM(D53:F53) -> 0 | Q53: =SUM(G53:I53) -> 0 | R53: =SUM(J53:L53) -> 0 | S53: =SUM(M53:O53) -> 0 | T53: =SUM(P53:S53) -> 0

Sheet Dashboard (hidden)
B1: ="TRANSIT PERFORMANCE DASHBOARD: " &Overview!D4 -> TRANSIT PERFORMANCE DASHBOARD:
A3: Passenger Trips by Month
CC30: 2
A33: Passengers per Mile
S35: PassPerMile
C36: PassPerMile | S36: Month | T36: ='Weekly Totals'!D3 -> July | U36: ='Weekly Totals'!E3 -> August | V36: ='Weekly Totals'!F3 -> September | W36: ='Weekly Totals'!G3 -> October | X36: ='Weekly Totals'!H3 -> November | Y36: ='Weekly Totals'!I3 -> December | Z36: ='Weekly Totals'!J3 -> January | AA36: ='Weekly Totals'!K3 -> February | AB36: ='Weekly Totals'!L3 -> March | AC36: ='Weekly Totals'!M3 -> April | AD36: ='Weekly Totals'!N3 -> May | AE36: ='Weekly Totals'!O3 -> June
C37: Month | D37: ='Weekly Totals'!D3 -> July | E37: ='Weekly Totals'!E3 -> August | F37: ='Weekly Totals'!F3 -> September | G37: ='Weekly Totals'!G3 -> October | H37: ='Weekly Totals'!H3 -> November | I37: ='Weekly Totals'!I3 -> December | J37: ='Weekly Totals'!J3 -> January | K37: ='Weekly Totals'!K3 -> February | L37: ='Weekly Totals'!L3 -> March | M37: ='Weekly Totals'!M3 -> April | N37: ='Weekly Totals'!N3 -> May | O37: ='Weekly Totals'!O3 -> June | S37: DO Pass | T37: ='Weekly Totals'!D11 -> 0 | U37: ='Weekly Totals'!E11 -> 0 | V37: ='Weekly Totals'!F11 -> 0 | W37: ='Weekly Totals'!G11 -> 0 | X37: ='Weekly Totals'!H11 -> 0 | Y37: ='Weekly Totals'!I11 -> 0 | Z37: ='Weekly Totals'!J11 -> 0 | AA37: ='Weekly Totals'!K11 -> 0 | AB37: ='Weekly Totals'!L11 -> 0 | AC37: ='Weekly Totals'!M11 -> 0 | AD37: ='Weekly Totals'!N11 -> 0 | AE37: ='Weekly Totals'!O11 -> 0
C38: Pass | D38: ='Weekly Totals'!D53 -> 0 | E38: ='Weekly Totals'!E53 -> 0 | F38: ='Weekly Totals'!F53 -> 0 | G38: ='Weekly Totals'!G53 -> 0 | H38: ='Weekly Totals'!H53 -> 0 | I38: ='Weekly Totals'!I53 -> 0 | J38: ='Weekly Totals'!J53 -> 0 | K38: ='Weekly Totals'!K53 -> 0 | L38: ='Weekly Totals'!L53 -> 0 | M38: ='Weekly Totals'!M53 -> 0 | N38: ='Weekly Totals'!N53 -> 0 | O38: ='Weekly Totals'!O53 -> 0 | S38: DO Mile | T38: ='Weekly Totals'!D7 -> 0 | U38: ='Weekly Totals'!E7 -> 0 | V38: ='Weekly Totals'!F7 -> 0 | W38: ='Weekly Totals'!G7 -> 0 | X38: ='Weekly Totals'!H7 -> 0 | Y38: ='Weekly Totals'!I7 -> 0 | Z38: ='Weekly Totals'!J7 -> 0 | AA38: ='Weekly Totals'!K7 -> 0 | AB38: ='Weekly Totals'!L7 -> 0 | AC38: ='Weekly Totals'!M7 -> 0 | AD38: ='Weekly Totals'!N7 -> 0 | AE38: ='Weekly Totals'!O7 -> 0
C39: Mile | D39: ='Weekly Totals'!D49 -> 0 | E39: ='Weekly Totals'!E49 -> 0 | F39: ='Weekly Totals'!F49 -> 0 | G39: ='Weekly Totals'!G49 -> 0 | H39: ='Weekly Totals'!H49 -> 0 | I39: ='Weekly Totals'!I49 -> 0 | J39: ='Weekly Totals'!J49 -> 0 | K39: ='Weekly Totals'!K49 -> 0 | L39: ='Weekly Totals'!L49 -> 0 | M39: ='Weekly Totals'!M49 -> 0 | N39: ='Weekly Totals'!N49 -> 0 | O39: ='Weekly Totals'!O49 -> 0 | S39: Pass/DO Mile | T39: =T37/T38 ->  | AJ39: PassPerMile | BA39: PassPerMile
C40: Pass/Mile | D40: =D38/D39 ->  | E40: =E38/E39 ->  | S40: PT Pass | T40: ='Weekly Totals'!D18 -> 0 | U40: ='Weekly Totals'!E18 -> 0 | V40: ='Weekly Totals'!F18 -> 0 | W40: ='Weekly Totals'!G18 -> 0 | X40: ='Weekly Totals'!H18 -> 0 | Y40: ='Weekly Totals'!I18 -> 0 | Z40: ='Weekly Totals'!J18 -> 0 | AA40: ='Weekly Totals'!K18 -> 0 | AB40: ='Weekly Totals'!L18 -> 0 | AC40: ='Weekly Totals'!M18 -> 0 | AD40: ='Weekly Totals'!N18 -> 0 | AE40: ='Weekly Totals'!O18 -> 0 | AJ40: Month | AK40: ='Weekly Totals'!D3 -> July | AL40: ='Weekly Totals'!E3 -> August | AM40: ='Weekly Totals'!F3 -> September | AN40: ='Weekly Totals'!G3 -> October | AO40: ='Weekly Totals'!H3 -> November | AP40: ='Weekly Totals'!I3 -> December | AQ40: ='Weekly Totals'!J3 -> January | AR40: ='Weekly Totals'!K3 -> February | AS40: ='Weekly Totals'!L3 -> March | AT40: ='Weekly Totals'!M3 -> April | AU40: ='Weekly Totals'!N3 -> May | AV40: ='Weekly Totals'!O3 -> June | BA40: Month | BB40: ='Weekly Totals'!D3 -> July | BC40: ='Weekly Totals'!E3 -> August | BD40: ='Weekly Totals'!F3 -> September | BE40: ='Weekly Totals'!G3 -> October | BF40: ='Weekly Totals'!H3 -> November | BG40: ='Weekly Totals'!I3 -> December | BH40: ='Weekly Totals'!J3 -> January | BI40: ='Weekly Totals'!K3 -> February | BJ40: ='Weekly Totals'!L3 -> March | BK40: ='Weekly Totals'!M3 -> April | BL40: ='Weekly Totals'!N3 -> May | BM40: ='Weekly Totals'!O3 -> June
S41: PT Mile | T41: ='Weekly Totals'!D14 -> 0 | U41: ='Weekly Totals'!E14 -> 0 | V41: ='Weekly Totals'!F14 -> 0 | W41: ='Weekly Totals'!G14 -> 0 | X41: ='Weekly Totals'!H14 -> 0 | Y41: ='Weekly Totals'!I14 -> 0 | Z41: ='Weekly Totals'!J14 -> 0 | AA41: ='Weekly Totals'!K14 -> 0 | AB41: ='Weekly Totals'!L14 -> 0 | AC41: ='Weekly Totals'!M14 -> 0 | AD41: ='Weekly Totals'!N14 -> 0 | AE41: ='Weekly Totals'!O14 -> 0 | AJ41: DO Pass | AK41: ='Weekly Totals'!D25 -> 0 | AL41: ='Weekly Totals'!E25 -> 0 | AM41: ='Weekly Totals'!F25 -> 0 | AN41: ='Weekly Totals'!G25 -> 0 | AO41: ='Weekly Totals'!H25 -> 0 | AP41: ='Weekly Totals'!I25 -> 0 | AQ41: ='Weekly Totals'!J25 -> 0 | AR41: ='Weekly Totals'!K25 -> 0 | AS41: ='Weekly Totals'!L25 -> 0 | AT41: ='Weekly Totals'!M25 -> 0 | AU41: ='Weekly Totals'!N25 -> 0 | AV41: ='Weekly Totals'!O25 -> 0 | BA41: DO Pass | BB41: ='Weekly Totals'!D39 -> 0 | BC41: ='Weekly Totals'!E39 -> 0 | BD41: ='Weekly Totals'!F39 -> 0 | BE41: ='Weekly Totals'!G39 -> 0 | BF41: ='Weekly Totals'!H39 -> 0 | BG41: ='Weekly Totals'!I39 -> 0 | BH41: ='Weekly Totals'!J39 -> 0 | BI41: ='Weekly Totals'!K39 -> 0 | BJ41: ='Weekly Totals'!L39 -> 0 | BK41: ='Weekly Totals'!M39 -> 0 | BL41: ='Weekly Totals'!N39 -> 0 | BM41: ='Weekly Totals'!O39 -> 0
S42: Pass/PT Mile | T42: =T40/T41 ->  | AJ42: DO Mile | AK42: ='Weekly Totals'!D21 -> 0 | AL42: ='Weekly Totals'!E21 -> 0 | AM42: ='Weekly Totals'!F21 -> 0 | AN42: ='Weekly Totals'!G21 -> 0 | AO42: ='Weekly Totals'!H21 -> 0 | AP42: ='Weekly Totals'!I21 -> 0 | AQ42: ='Weekly Totals'!J21 -> 0 | AR42: ='Weekly Totals'!K21 -> 0 | AS42: ='Weekly Totals'!L21 -> 0 | AT42: ='Weekly Totals'!M21 -> 0 | AU42: ='Weekly Totals'!N21 -> 0 | AV42: ='Weekly Totals'!O21 -> 0 | BA42: DO Mile | BB42: ='Weekly Totals'!D35 -> 0 | BC42: ='Weekly Totals'!E35 -> 0 | BD42: ='Weekly Totals'!F35 -> 0 | BE42: ='Weekly Totals'!G35 -> 0 | BF42: ='Weekly Totals'!H35 -> 0 | BG42: ='Weekly Totals'!I35 -> 0 | BH42: ='Weekly Totals'!J35 -> 0 | BI42: ='Weekly Totals'!K35 -> 0 | BJ42: ='Weekly Totals'!L35 -> 0 | BK42: ='Weekly Totals'!M35 -> 0 | BL42: ='Weekly Totals'!N35 -> 0 | BM42: ='Weekly Totals'!O35 -> 0
AJ43: Pass/DO Mile | AK43: =AK41/AK42 ->  | BA43: Pass/DO Mile | BB43: =BB41/BB42 -> 
AJ44: PT Pass | AK44: ='Weekly Totals'!D32 -> 0 | AL44: ='Weekly Totals'!E32 -> 0 | AM44: ='Weekly Totals'!F32 -> 0 | AN44: ='Weekly Totals'!G32 -> 0 | AO44: ='Weekly Totals'!H32 -> 0 | AP44: ='Weekly Totals'!I32 -> 0 | AQ44: ='Weekly Totals'!J32 -> 0 | AR44: ='Weekly Totals'!K32 -> 0 | AS44: ='Weekly Totals'!L32 -> 0 | AT44: ='Weekly Totals'!M32 -> 0 | AU44: ='Weekly Totals'!N32 -> 0 | AV44: ='Weekly Totals'!O32 -> 0 | BA44: PT Pass | BB44: ='Weekly Totals'!D46 -> 0 | BC44: ='Weekly Totals'!E46 -> 0 | BD44: ='Weekly Totals'!F46 -> 0 | BE44: ='Weekly Totals'!G46 -> 0 | BF44: ='Weekly Totals'!H46 -> 0 | BG44: ='Weekly Totals'!I46 -> 0 | BH44: ='Weekly Totals'!J46 -> 0 | BI44: ='Weekly Totals'!K46 -> 0 | BJ44: ='Weekly Totals'!L46 -> 0 | BK44: ='Weekly Totals'!M46 -> 0 | BL44: ='Weekly Totals'!N46 -> 0 | BM44: ='Weekly Totals'!O46 -> 0
AJ45: PT Mile | AK45: ='Weekly Totals'!D28 -> 0 | AL45: ='Weekly Totals'!E28 -> 0 | AM45: ='Weekly Totals'!F28 -> 0 | AN45: ='Weekly Totals'!G28 -> 0 | AO45: ='Weekly Totals'!H28 -> 0 | AP45: ='Weekly Totals'!I28 -> 0 | AQ45: ='Weekly Totals'!J28 -> 0 | AR45: ='Weekly Totals'!K28 -> 0 | AS45: ='Weekly Totals'!L28 -> 0 | AT45: ='Weekly Totals'!M28 -> 0 | AU45: ='Weekly Totals'!N28 -> 0 | AV45: ='Weekly Totals'!O28 -> 0 | BA45: PT Mile | BB45: ='Weekly Totals'!D42 -> 0 | BC45: ='Weekly Totals'!E42 -> 0 | BD45: ='Weekly Totals'!F42 -> 0 | BE45: ='Weekly Totals'!G42 -> 0 | BF45: ='Weekly Totals'!H42 -> 0 | BG45: ='Weekly Totals'!I42 -> 0 | BH45: ='Weekly Totals'!J42 -> 0 | BI45: ='Weekly Totals'!K42 -> 0 | BJ45: ='Weekly Totals'!L42 -> 0 | BK45: ='Weekly Totals'!M42 -> 0 | BL45: ='Weekly Totals'!N42 -> 0 | BM45: ='Weekly Totals'!O42 -> 0
AJ46: Pass/PT Mile | AK46: =AK44/AK45 ->  | BA46: Pass/PT Mile | BB46: =BB44/BB45 -> 
A54: Passengers per Hour
C56: PassPerHour | S56: PassPerHour | AJ56: PassPerHour | BA56: PassPerHour
C57: Month | D57: ='Weekly Totals'!D3 -> July | E57: ='Weekly Totals'!E3 -> August | F57: ='Weekly Totals'!F3 -> September | G57: ='Weekly Totals'!G3 -> October | H57: ='Weekly Totals'!H3 -> November | I57: ='Weekly Totals'!I3 -> December | J57: ='Weekly Totals'!J3 -> January | K57: ='Weekly Totals'!K3 -> February | L57: ='Weekly Totals'!L3 -> March | M57: ='Weekly Totals'!M3 -> April | N57: ='Weekly Totals'!N3 -> May | O57: ='Weekly Totals'!O3 -> June | S57: Month | T57: ='Weekly Totals'!D3 -> July | U57: ='Weekly Totals'!E3 -> August | V57: ='Weekly Totals'!F3 -> September | W57: ='Weekly Totals'!G3 -> October | X57: ='Weekly Totals'!H3 -> November | Y57: ='Weekly Totals'!I3 -> December | Z57: ='Weekly Totals'!J3 -> January | AA57: ='Weekly Totals'!K3 -> February | AB57: ='Weekly Totals'!L3 -> March | AC57: ='Weekly Totals'!M3 -> April | AD57: ='Weekly Totals'!N3 -> May | AE57: ='Weekly Totals'!O3 -> June | AJ57: Month | AK57: ='Weekly Totals'!D3 -> July | AL57: ='Weekly Totals'!E3 -> August | AM57: ='Weekly Totals'!F3 -> September | AN57: ='Weekly Totals'!G3 -> October | AO57: ='Weekly Totals'!H3 -> November | AP57: ='Weekly Totals'!I3 -> December | AQ57: ='Weekly Totals'!J3 -> January | AR57: ='Weekly Totals'!K3 -> February | AS57: ='Weekly Totals'!L3 -> March | AT57: ='Weekly Totals'!M3 -> April | AU57: ='Weekly Totals'!N3 -> May | AV57: ='Weekly Totals'!O3 -> June | BA57: Month | BB57: ='Weekly Totals'!D3 -> July | BC57: ='Weekly Totals'!E3 -> August | BD57: ='Weekly Totals'!F3 -> September | BE57: ='Weekly Totals'!G3 -> October | BF57: ='Weekly Totals'!H3 -> November | BG57: ='Weekly Totals'!I3 -> December | BH57: ='Weekly Totals'!J3 -> January | BI57: ='Weekly Totals'!K3 -> February | BJ57: ='Weekly Totals'!L3 -> March | BK57: ='Weekly Totals'!M3 -> April | BL57: ='Weekly Totals'!N3 -> May | BM57: ='Weekly Totals'!O3 -> June
C58: Pass | D58: ='Weekly Totals'!D53 -> 0 | E58: ='Weekly Totals'!E53 -> 0 | F58: ='Weekly Totals'!F53 -> 0 | G58: ='Weekly Totals'!G53 -> 0 | H58: ='Weekly Totals'!H53 -> 0 | I58: ='Weekly Totals'!I53 -> 0 | J58: ='Weekly Totals'!J53 -> 0 | K58: ='Weekly Totals'!K53 -> 0 | L58: ='Weekly Totals'!L53 -> 0 | M58: ='Weekly Totals'!M53 -> 0 | N58: ='Weekly Totals'!N53 -> 0 | O58: ='Weekly Totals'!O53 -> 0 | S58: DO Pass | T58: ='Weekly Totals'!D11 -> 0 | U58: ='Weekly Totals'!E11 -> 0 | V58: ='Weekly Totals'!F11 -> 0 | W58: ='Weekly Totals'!G11 -> 0 | X58: ='Weekly Totals'!H11 -> 0 | Y58: ='Weekly Totals'!I11 -> 0 | Z58: ='Weekly Totals'!J11 -> 0 | AA58: ='Weekly Totals'!K11 -> 0 | AB58: ='Weekly Totals'!L11 -> 0 | AC58: ='Weekly Totals'!M11 -> 0 | AD58: ='Weekly Totals'!N11 -> 0 | AE58: ='Weekly Totals'!O11 -> 0 | AJ58: DO Pass | AK58: ='Weekly Totals'!D25 -> 0 | AL58: ='Weekly Totals'!E25 -> 0 | AM58: ='Weekly Totals'!F25 -> 0 | AN58: ='Weekly Totals'!G25 -> 0 | AO58: ='Weekly Totals'!H25 -> 0 | AP58: ='Weekly Totals'!I25 -> 0 | AQ58: ='Weekly Totals'!J25 -> 0 | AR58: ='Weekly Totals'!K25 -> 0 | AS58: ='Weekly Totals'!L25 -> 0 | AT58: ='Weekly Totals'!M25 -> 0 | AU58: ='Weekly Totals'!N25 -> 0 | AV58: ='Weekly Totals'!O25 -> 0 | BA58: DO Pass | BB58: ='Weekly Totals'!D39 -> 0 | BC58: ='Weekly Totals'!E39 -> 0 | BD58: ='Weekly Totals'!F39 -> 0 | BE58: ='Weekly Totals'!G39 -> 0 | BF58: ='Weekly Totals'!H39 -> 0 | BG58: ='Weekly Totals'!I39 -> 0 | BH58: ='Weekly Totals'!J39 -> 0 | BI58: ='Weekly Totals'!K39 -> 0 | BJ58: ='Weekly Totals'!L39 -> 0 | BK58: ='Weekly Totals'!M39 -> 0 | BL58: ='Weekly Totals'!N39 -> 0 | BM58: ='Weekly Totals'!O39 -> 0
C59: Hour | D59: ='Weekly Totals'!D48 -> 0 | E59: ='Weekly Totals'!E48 -> 0 | F59: ='Weekly Totals'!F48 -> 0 | G59: ='Weekly Totals'!G48 -> 0 | H59: ='Weekly Totals'!H48 -> 0 | I59: ='Weekly Totals'!I48 -> 0 | J59: ='Weekly Totals'!J48 -> 0 | K59: ='Weekly Totals'!K48 -> 0 | L59: ='Weekly Totals'!L48 -> 0 | M59: ='Weekly Totals'!M48 -> 0 | N59: ='Weekly Totals'!N48 -> 0 | O59: ='Weekly Totals'!O48 -> 0 | S59: DO Hour | T59: ='Weekly Totals'!D6 -> 0 | U59: ='Weekly Totals'!E6 -> 0 | V59: ='Weekly Totals'!F6 -> 0 | W59: ='Weekly Totals'!G6 -> 0 | X59: ='Weekly Totals'!H6 -> 0 | Y59: ='Weekly Totals'!I6 -> 0 | Z59: ='Weekly Totals'!J6 -> 0 | AA59: ='Weekly Totals'!K6 -> 0 | AB59: ='Weekly Totals'!L6 -> 0 | AC59: ='Weekly Totals'!M6 -> 0 | AD59: ='Weekly Totals'!N6 -> 0 | AE59: ='Weekly Totals'!O6 -> 0 | AJ59: DO Hour | AK59: ='Weekly Totals'!D20 -> 0 | AL59: ='Weekly Totals'!E20 -> 0 | AM59: ='Weekly Totals'!F20 -> 0 | AN59: ='Weekly Totals'!G20 -> 0 | AO59: ='Weekly Totals'!H20 -> 0 | AP59: ='Weekly Totals'!I20 -> 0 | AQ59: ='Weekly Totals'!J20 -> 0 | AR59: ='Weekly Totals'!K20 -> 0 | AS59: ='Weekly Totals'!L20 -> 0 | AT59: ='Weekly Totals'!M20 -> 0 | AU59: ='Weekly Totals'!N20 -> 0 | AV59: ='Weekly Totals'!O20 -> 0 | BA59: DO Hour | BB59: ='Weekly Totals'!D35 -> 0 | BC59: ='Weekly Totals'!E35 -> 0 | BD59: ='Weekly Totals'!F35 -> 0 | BE59: ='Weekly Totals'!G35 -> 0 | BF59: ='Weekly Totals'!H35 -> 0 | BG59: ='Weekly Totals'!I35 -> 0 | BH59: ='Weekly Totals'!J35 -> 0 | BI59: ='Weekly Totals'!K35 -> 0 | BJ59: ='Weekly Totals'!L35 -> 0 | BK59: ='Weekly Totals'!M35 -> 0 | BL59: ='Weekly Totals'!N35 -> 0 | BM59: ='Weekly Totals'!O35 -> 0
C60: Pass/Hour | D60: =D58/D59 ->  | E60: =E58/E59 ->  | S60: Pass/DO Hour | T60: =T58/T59 ->  | AJ60: Pass/DO Hour | AK60: =AK58/AK59 ->  | AL60: =AL58/AL59 ->  | BA60: Pass/DO Hour | BB60: =BB58/BB59 ->  | BC60: =BC58/BC59 -> 
S61: PT Pass | T61: ='Weekly Totals'!D18 -> 0 | U61: ='Weekly Totals'!E18 -> 0 | V61: ='Weekly Totals'!F18 -> 0 | W61: ='Weekly Totals'!G18 -> 0 | X61: ='Weekly Totals'!H18 -> 0 | Y61: ='Weekly Totals'!I18 -> 0 | Z61: ='Weekly Totals'!J18 -> 0 | AA61: ='Weekly Totals'!K18 -> 0 | AB61: ='Weekly Totals'!L18 -> 0 | AC61: ='Weekly Totals'!M18 -> 0 | AD61: ='Weekly Totals'!N18 -> 0 | AE61: ='Weekly Totals'!O18 -> 0 | AJ61: PT Pass | AK61: ='Weekly Totals'!D32 -> 0 | AL61: ='Weekly Totals'!E32 -> 0 | AM61: ='Weekly Totals'!F32 -> 0 | AN61: ='Weekly Totals'!G32 -> 0 | AO61: ='Weekly Totals'!H32 -> 0 | AP61: ='Weekly Totals'!I32 -> 0 | AQ61: ='Weekly Totals'!J32 -> 0 | AR61: ='Weekly Totals'!K32 -> 0 | AS61: ='Weekly Totals'!L32 -> 0 | AT61: ='Weekly Totals'!M32 -> 0 | AU61: ='Weekly Totals'!N32 -> 0 | AV61: ='Weekly Totals'!O32 -> 0 | BA61: PT Pass | BB61: ='Weekly Totals'!D46 -> 0 | BC61: ='Weekly Totals'!E46 -> 0 | BD61: ='Weekly Totals'!F46 -> 0 | BE61: ='Weekly Totals'!G46 -> 0 | BF61: ='Weekly Totals'!H46 -> 0 | BG61: ='Weekly Totals'!I46 -> 0 | BH61: ='Weekly Totals'!J46 -> 0 | BI61: ='Weekly Totals'!K46 -> 0 | BJ61: ='Weekly Totals'!L46 -> 0 | BK61: ='Weekly Totals'!M46 -> 0 | BL61: ='Weekly Totals'!N46 -> 0 | BM61: ='Weekly Totals'!O46 -> 0
S62: PT Hour | T62: ='Weekly Totals'!D13 -> 0 | U62: ='Weekly Totals'!E13 -> 0 | V62: ='Weekly Totals'!F13 -> 0 | W62: ='Weekly Totals'!G13 -> 0 | X62: ='Weekly Totals'!H13 -> 0 | Y62: ='Weekly Totals'!I13 -> 0 | Z62: ='Weekly Totals'!J13 -> 0 | AA62: ='Weekly Totals'!K13 -> 0 | AB62: ='Weekly Totals'!L13 -> 0 | AC62: ='Weekly Totals'!M13 -> 0 | AD62: ='Weekly Totals'!N13 -> 0 | AE62: ='Weekly Totals'!O13 -> 0 | AJ62: PT Hour | AK62: ='Weekly Totals'!D27 -> 0 | AL62: ='Weekly Totals'!E27 -> 0 | AM62: ='Weekly Totals'!F27 -> 0 | AN62: ='Weekly Totals'!G27 -> 0 | AO62: ='Weekly Totals'!H27 -> 0 | AP62: ='Weekly Totals'!I27 -> 0 | AQ62: ='Weekly Totals'!J27 -> 0 | AR62: ='Weekly Totals'!K27 -> 0 | AS62: ='Weekly Totals'!L27 -> 0 | AT62: ='Weekly Totals'!M27 -> 0 | AU62: ='Weekly Totals'!N27 -> 0 | AV62: ='Weekly Totals'!O27 -> 0 | BA62: PT Hour | BB62: ='Weekly Totals'!D41 -> 0 | BC62: ='Weekly Totals'!E41 -> 0 | BD62: ='Weekly Totals'!F41 -> 0 | BE62: ='Weekly Totals'!G41 -> 0 | BF62: ='Weekly Totals'!H41 -> 0 | BG62: ='Weekly Totals'!I41 -> 0 | BH62: ='Weekly Totals'!J41 -> 0 | BI62: ='Weekly Totals'!K41 -> 0 | BJ62: ='Weekly Totals'!L41 -> 0 | BK62: ='Weekly Totals'!M41 -> 0 | BL62: ='Weekly Totals'!N41 -> 0 | BM62: ='Weekly Totals'!O41 -> 0
S63: Pass/PT Hour | T63: =T61/T62 ->  | AJ63: Pass/PT Hour | AK63: =AK61/AK62 ->  | BA63: Pass/PT Hour | BB63: =BB61/BB62 -> 
A74: Passengers per Operating Day
AK78: Transit Passengers Per Operating Day (Sunday)
C79: Transit Passengers Per Operating Day (Weekday) | AK79: Month | AL79: =Sunday!D3 -> July | AM79: =Sunday!E3 -> August | AN79: =Sunday!F3 -> September | AO79: =Sunday!G3 -> October | AP79: =Sunday!H3 -> November | AQ79: =Sunday!I3 -> December | AR79: =Sunday!J3 -> January | AS79: =Sunday!K3 -> February | AT79: =Sunday!L3 -> March | AU79: =Sunday!M3 -> April | AV79: =Sunday!N3 -> May | AW79: =Sunday!O3 -> June
C80: Month | D80: =Weekday!D3 -> July | E80: =Weekday!E3 -> August | F80: =Weekday!F3 -> September | G80: =Weekday!G3 -> October | H80: =Weekday!H3 -> November | I80: =Weekday!I3 -> December | J80: =Weekday!J3 -> January | K80: =Weekday!K3 -> February | L80: =Weekday!L3 -> March | M80: =Weekday!M3 -> April | N80: =Weekday!N3 -> May | O80: =Weekday!O3 -> June | T80: Transit Passengers Per Operating Day (Saturday) | AK80: Tot Pass | AL80: =Sunday!D53 -> 0 | AM80: =Sunday!E53 -> 0 | AN80: =Sunday!F53 -> 0 | AO80: =Sunday!G53 -> 0 | AP80: =Sunday!H53 -> 0 | AQ80: =Sunday!I53 -> 0 | AR80: =Sunday!J53 -> 0 | AS80: =Sunday!K53 -> 0 | AT80: =Sunday!L53 -> 0 | AU80: =Sunday!M53 -> 0 | AV80: =Sunday!N53 -> 0 | AW80: =Sunday!O53 -> 0
C81: Tot Pass | D81: =Weekday!D53 -> 0 | E81: =Weekday!E53 -> 0 | F81: =Weekday!F53 -> 0 | G81: =Weekday!G53 -> 0 | H81: =Weekday!H53 -> 0 | I81: =Weekday!I53 -> 0 | J81: =Weekday!J53 -> 0 | K81: =Weekday!K53 -> 0 | L81: =Weekday!L53 -> 0 | M81: =Weekday!M53 -> 0 | N81: =Weekday!N53 -> 0 | O81: =Weekday!O53 -> 0 | T81: Month | U81: =Saturday!D3 -> July | V81: =Saturday!E3 -> August | W81: =Saturday!F3 -> September | X81: =Saturday!G3 -> October | Y81: =Saturday!H3 -> November | Z81: =Saturday!I3 -> December | AA81: =Saturday!J3 -> January | AB81: =Saturday!K3 -> February | AC81: =Saturday!L3 -> March | AD81: =Saturday!M3 -> April | AE81: =Saturday!N3 -> May | AF81: =Saturday!O3 -> June | AK81: DO Pass | AL81: =Sunday!D11+Sunday!D25+Sunday!D39 -> 0 | AM81: =Sunday!E11+Sunday!E25+Sunday!E39 -> 0 | AN81: =Sunday!F11+Sunday!F25+Sunday!F39 -> 0 | AO81: =Sunday!G11+Sunday!G25+Sunday!G39 -> 0 | AP81: =Sunday!H11+Sunday!H25+Sunday!H39 -> 0 | AQ81: =Sunday!I11+Sunday!I25+Sunday!I39 -> 0 | AR81: =Sunday!J11+Sunday!J25+Sunday!J39 -> 0 | AS81: =Sunday!K11+Sunday!K25+Sunday!K39 -> 0 | AT81: =Sunday!L11+Sunday!L25+Sunday!L39 -> 0 | AU81: =Sunday!M11+Sunday!M25+Sunday!M39 -> 0 | AV81: =Sunday!N11+Sunday!N25+Sunday!N39 -> 0 | AW81: =Sunday!O11+Sunday!O25+Sunday!O39 -> 0
C82: DO Pass | D82: =Weekday!D11+Weekday!D25+Weekday!D39 -> 0 | E82: =Weekday!E11+Weekday!E25+Weekday!E39 -> 0 | F82: =Weekday!F11+Weekday!F25+Weekday!F39 -> 0 | G82: =Weekday!G11+Weekday!G25+Weekday!G39 -> 0 | H82: =Weekday!H11+Weekday!H25+Weekday!H39 -> 0 | I82: =Weekday!I11+Weekday!I25+Weekday!I39 -> 0 | J82: =Weekday!J11+Weekday!J25+Weekday!J39 -> 0 | K82: =Weekday!K11+Weekday!K25+Weekday!K39 -> 0 | L82: =Weekday!L11+Weekday!L25+Weekday!L39 -> 0 | M82: =Weekday!M11+Weekday!M25+Weekday!M39 -> 0 | N82: =Weekday!N11+Weekday!N25+Weekday!N39 -> 0 | O82: =Weekday!O11+Weekday!O25+Weekday!O39 -> 0 | T82: Tot Pass | U82: =Saturday!D53 -> 0 | V82: =Saturday!E53 -> 0 | W82: =Saturday!F53 -> 0 | X82: =Saturday!G53 -> 0 | Y82: =Saturday!H53 -> 0 | Z82: =Saturday!I53 -> 0 | AA82: =Saturday!J53 -> 0 | AB82: =Saturday!K53 -> 0 | AC82: =Saturday!L53 -> 0 | AD82: =Saturday!M53 -> 0 | AE82: =Saturday!N53 -> 0 | AF82: =Saturday!O53 -> 0 | AK82: PT Pass | AL82: =Sunday!D18+Sunday!D32+Sunday!D46 -> 0 | AM82: =Sunday!E18+Sunday!E32+Sunday!E46 -> 0 | AN82: =Sunday!F18+Sunday!F32+Sunday!F46 -> 0 | AO82: =Sunday!G18+Sunday!G32+Sunday!G46 -> 0 | AP82: =Sunday!H18+Sunday!H32+Sunday!H46 -> 0 | AQ82: =Sunday!I18+Sunday!I32+Sunday!I46 -> 0 | AR82: =Sunday!J18+Sunday!J32+Sunday!J46 -> 0 | AS82: =Sunday!K18+Sunday!K32+Sunday!K46 -> 0 | AT82: =Sunday!L18+Sunday!L32+Sunday!L46 -> 0 | AU82: =Sunday!M18+Sunday!M32+Sunday!M46 -> 0 | AV82: =Sunday!N18+Sunday!N32+Sunday!N46 -> 0 | AW82: =Sunday!O18+Sunday!O32+Sunday!O46 -> 0
C83: PT Pass | D83: =Weekday!D18+Weekday!D32+Weekday!D46 -> 0 | E83: =Weekday!E18+Weekday!E32+Weekday!E46 -> 0 | F83: =Weekday!F18+Weekday!F32+Weekday!F46 -> 0 | G83: =Weekday!G18+Weekday!G32+Weekday!G46 -> 0 | H83: =Weekday!H18+Weekday!H32+Weekday!H46 -> 0 | I83: =Weekday!I18+Weekday!I32+Weekday!I46 -> 0 | J83: =Weekday!J18+Weekday!J32+Weekday!J46 -> 0 | K83: =Weekday!K18+Weekday!K32+Weekday!K46 -> 0 | L83: =Weekday!L18+Weekday!L32+Weekday!L46 -> 0 | M83: =Weekday!M18+Weekday!M32+Weekday!M46 -> 0 | N83: =Weekday!N18+Weekday!N32+Weekday!N46 -> 0 | O83: =Weekday!O18+Weekday!O32+Weekday!O46 -> 0 | T83: DO Pass | U83: =Saturday!D11+Saturday!D25+Saturday!D39 -> 0 | V83: =Saturday!E11+Saturday!E25+Saturday!E39 -> 0 | W83: =Saturday!F11+Saturday!F25+Saturday!F39 -> 0 | X83: =Saturday!G11+Saturday!G25+Saturday!G39 -> 0 | Y83: =Saturday!H11+Saturday!H25+Saturday!H39 -> 0 | Z83: =Saturday!I11+Saturday!I25+Saturday!I39 -> 0 | AA83: =Saturday!J11+Saturday!J25+Saturday!J39 -> 0 | AB83: =Saturday!K11+Saturday!K25+Saturday!K39 -> 0 | AC83: =Saturday!L11+Saturday!L25+Saturday!L39 -> 0 | AD83: =Saturday!M11+Saturday!M25+Saturday!M39 -> 0 | AE83: =Saturday!N11+Saturday!N25+Saturday!N39 -> 0 | AF83: =Saturday!O11+Saturday!O25+Saturday!O39 -> 0 | AK83: Sundays | AL83: =Sunday!D4 -> 0 | AM83: =Sunday!E4 -> 0 | AN83: =Sunday!F4 -> 0 | AO83: =Sunday!G4 -> 0 | AP83: =Sunday!H4 -> 0 | AQ83: =Sunday!I4 -> 0 | AR83: =Sunday!J4 -> 0 | AS83: =Sunday!K4 -> 0 | AT83: =Sunday!L4 -> 0 | AU83: =Sunday!M4 -> 0 | AV83: =Sunday!N4 -> 0 | AW83: =Sunday!O4 -> 0
C84: Weekdays | D84: =Weekday!D4 -> 0 | E84: =Weekday!E4 -> 0 | F84: =Weekday!F4 -> 0 | G84: =Weekday!G4 -> 0 | H84: =Weekday!H4 -> 0 | I84: =Weekday!I4 -> 0 | J84: =Weekday!J4 -> 0 | K84: =Weekday!K4 -> 0 | L84: =Weekday!L4 -> 0 | M84: =Weekday!M4 -> 0 | N84: =Weekday!N4 -> 0 | O84: =Weekday!O4 -> 0 | T84: PT Pass | U84: =Saturday!D18+Saturday!D32+Saturday!D46 -> 0 | V84: =Saturday!E18+Saturday!E32+Saturday!E46 -> 0 | W84: =Saturday!F18+Saturday!F32+Saturday!F46 -> 0 | X84: =Saturday!G18+Saturday!G32+Saturday!G46 -> 0 | Y84: =Saturday!H18+Saturday!H32+Saturday!H46 -> 0 | Z84: =Saturday!I18+Saturday!I32+Saturday!I46 -> 0 | AA84: =Saturday!J18+Saturday!J32+Saturday!J46 -> 0 | AB84: =Saturday!K18+Saturday!K32+Saturday!K46 -> 0 | AC84: =Saturday!L18+Saturday!L32+Saturday!L46 -> 0 | AD84: =Saturday!M18+Saturday!M32+Saturday!M46 -> 0 | AE84: =Saturday!N18+Saturday!N32+Saturday!N46 -> 0 | AF84: =Saturday!O18+Saturday!O32+Saturday!O46 -> 0 | AK84: Tot Pass/Day | AL84: =AL80/AL83 ->  | AM84: =AM80/AM83 -> 
C85: Tot Pass/Day | D85: =D81/D84 ->  | T85: Saturday | U85: =Saturday!D4 -> 0 | V85: =Saturday!E4 -> 0 | W85: =Saturday!F4 -> 0 | X85: =Saturday!G4 -> 0 | Y85: =Saturday!H4 -> 0 | Z85: =Saturday!I4 -> 0 | AA85: =Saturday!J4 -> 0 | AB85: =Saturday!K4 -> 0 | AC85: =Saturday!L4 -> 0 | AD85: =Saturday!M4 -> 0 | AE85: =Saturday!N4 -> 0 | AF85: =Saturday!O4 -> 0 | AK85: DO Pass/Day | AL85: =AL81/AL83 ->  | AM85: =AM81/AM83 -> 
C86: DO Pass/Day | D86: =D82/D84 ->  | T86: Tot Pass/Day | U86: =U82/U85 ->  | V86: =V82/V85 ->  | AK86: PT Pass/Day | AL86: =AL82/AL83 ->  | AM86: =AM82/AM83 -> 
C87: PT Pass/Day | D87: =D83/D84 ->  | T87: DO Pass/Day | U87: =U83/U85 ->  | V87: =V83/V85 -> 
T88: PT Pass/Day | U88: =U84/U85 ->  | V88: =V84/V85 -> 
A105: Miles Per Hour | S105: Miles per Hour (Saturday)
T106: =Saturday!D3 -> July | U106: =Saturday!E3 -> August | V106: =Saturday!F3 -> September | W106: =Saturday!G3 -> October | X106: =Saturday!H3 -> November | Y106: =Saturday!I3 -> December | Z106: =Saturday!J3 -> January | AA106: =Saturday!K3 -> February | AB106: =Saturday!L3 -> March | AC106: =Saturday!M3 -> April | AD106: =Saturday!N3 -> May | AE106: =Saturday!O3 -> June | AJ106: Miles per Hour (Sunday)
S107: DR DO | T107: =Saturday!D7/Saturday!D6 ->  | U107: =Saturday!E7/Saturday!E6 ->  | V107: =Saturday!F7/Saturday!F6 ->  | W107: =Saturday!G7/Saturday!G6 ->  | X107: =Saturday!H7/Saturday!H6 ->  | Y107: =Saturday!I7/Saturday!I6 ->  | Z107: =Saturday!J7/Saturday!J6 ->  | AA107: =Saturday!K7/Saturday!K6 ->  | AB107: =Saturday!L7/Saturday!L6 ->  | AC107: =Saturday!M7/Saturday!M6 ->  | AD107: =Saturday!N7/Saturday!N6 ->  | AE107: =Saturday!O7/Saturday!O6 ->  | AK107: =Sunday!D3 -> July | AL107: =Sunday!E3 -> August | AM107: =Sunday!F3 -> September | AN107: =Sunday!G3 -> October | AO107: =Sunday!H3 -> November | AP107: =Sunday!I3 -> December | AQ107: =Sunday!J3 -> January | AR107: =Sunday!K3 -> February | AS107: =Sunday!L3 -> March | AT107: =Sunday!M3 -> April | AU107: =Sunday!N3 -> May | AV107: =Sunday!O3 -> June
C108: Miles per Hour (Weekday) | S108: DR PT | T108: =Saturday!D14/Saturday!D13 ->  | U108: =Saturday!E14/Saturday!E13 ->  | V108: =Saturday!F14/Saturday!F13 ->  | W108: =Saturday!G14/Saturday!G13 ->  | X108: =Saturday!H14/Saturday!H13 ->  | Y108: =Saturday!I14/Saturday!I13 ->  | Z108: =Saturday!J14/Saturday!J13 ->  | AA108: =Saturday!K14/Saturday!K13 ->  | AB108: =Saturday!L14/Saturday!L13 ->  | AC108: =Saturday!M14/Saturday!M13 ->  | AD108: =Saturday!N14/Saturday!N13 ->  | AE108: =Saturday!O14/Saturday!O13 ->  | AJ108: DR DO | AK108: =Sunday!D7/Sunday!D6 ->  | AL108: =Sunday!E7/Sunday!E6 ->  | AM108: =Sunday!F7/Sunday!F6 ->  | AN108: =Sunday!G7/Sunday!G6 ->  | AO108: =Sunday!H7/Sunday!H6 ->  | AP108: =Sunday!I7/Sunday!I6 ->  | AQ108: =Sunday!J7/Sunday!J6 ->  | AR108: =Sunday!K7/Sunday!K6 ->  | AS108: =Sunday!L7/Sunday!L6 ->  | AT108: =Sunday!M7/Sunday!M6 ->  | AU108: =Sunday!N7/Sunday!N6 ->  | AV108: =Sunday!O7/Sunday!O6 -> 
D109: ='Weekly Totals'!D3 -> July | E109: ='Weekly Totals'!E3 -> August | F109: ='Weekly Totals'!F3 -> September | G109: ='Weekly Totals'!G3 -> October | H109: ='Weekly Totals'!H3 -> November | I109: ='Weekly Totals'!I3 -> December | J109: ='Weekly Totals'!J3 -> January | K109: ='Weekly Totals'!K3 -> February | L109: ='Weekly Totals'!L3 -> March | M109: ='Weekly Totals'!M3 -> April | N109: ='Weekly Totals'!N3 -> May | O109: ='Weekly Totals'!O3 -> June | S109: MB DO | T109: =Saturday!D21/Saturday!D20 ->  | U109: =Saturday!E21/Saturday!E20 ->  | V109: =Saturday!F21/Saturday!F20 ->  | W109: =Saturday!G21/Saturday!G20 ->  | X109: =Saturday!H21/Saturday!H20 ->  | Y109: =Saturday!I21/Saturday!I20 ->  | Z109: =Saturday!J21/Saturday!J20 ->  | AA109: =Saturday!K21/Saturday!K20 ->  | AB109: =Saturday!L21/Saturday!L20 ->  | AC109: =Saturday!M21/Saturday!M20 ->  | AD109: =Saturday!N21/Saturday!N20 ->  | AE109: =Saturday!O21/Saturday!O20 ->  | AJ109: DR PT | AK109: =Sunday!D14/Sunday!D13 ->  | AL109: =Sunday!E14/Sunday!E13 ->  | AM109: =Sunday!F14/Sunday!F13 ->  | AN109: =Sunday!G14/Sunday!G13 ->  | AO109: =Sunday!H14/Sunday!H13 ->  | AP109: =Sunday!I14/Sunday!I13 ->  | AQ109: =Sunday!J14/Sunday!J13 ->  | AR109: =Sunday!K14/Sunday!K13 ->  | AS109: =Sunday!L14/Sunday!L13 ->  | AT109: =Sunday!M14/Sunday!M13 ->  | AU109: =Sunday!N14/Sunday!N13 ->  | AV109: =Sunday!O14/Sunday!O13 -> 
C110: DRDO | D110: ='Weekly Totals'!D7/'Weekly Totals'!D6 ->  | E110: ='Weekly Totals'!E7/'Weekly Totals'!E6 ->  | F110: ='Weekly Totals'!F7/'Weekly Totals'!F6 ->  | G110: ='Weekly Totals'!G7/'Weekly Totals'!G6 ->  | H110: ='Weekly Totals'!H7/'Weekly Totals'!H6 ->  | I110: ='Weekly Totals'!I7/'Weekly Totals'!I6 ->  | J110: ='Weekly Totals'!J7/'Weekly Totals'!J6 ->  | K110: ='Weekly Totals'!K7/'Weekly Totals'!K6 ->  | L110: ='Weekly Totals'!L7/'Weekly Totals'!L6 ->  | M110: ='Weekly Totals'!M7/'Weekly Totals'!M6 ->  | N110: ='Weekly Totals'!N7/'Weekly Totals'!N6 ->  | O110: ='Weekly Totals'!O7/'Weekly Totals'!O6 ->  | S110: MB PT | T110: =Saturday!D28/Saturday!D27 ->  | U110: =Saturday!E28/Saturday!E27 ->  | V110: =Saturday!F28/Saturday!F27 ->  | W110: =Saturday!G28/Saturday!G27 ->  | X110: =Saturday!H28/Saturday!H27 ->  | Y110: =Saturday!I28/Saturday!I27 ->  | Z110: =Saturday!J28/Saturday!J27 ->  | AA110: =Saturday!K28/Saturday!K27 ->  | AB110: =Saturday!L28/Saturday!L27 ->  | AC110: =Saturday!M28/Saturday!M27 ->  | AD110: =Saturday!N28/Saturday!N27 ->  | AE110: =Saturday!O28/Saturday!O27 ->  | AJ110: MB DO | AK110: =Sunday!D21/Sunday!D20 ->  | AL110: =Sunday!E21/Sunday!E20 ->  | AM110: =Sunday!F21/Sunday!F20 ->  | AN110: =Sunday!G21/Sunday!G20 ->  | AO110: =Sunday!H21/Sunday!H20 ->  | AP110: =Sunday!I21/Sunday!I20 ->  | AQ110: =Sunday!J21/Sunday!J20 ->  | AR110: =Sunday!K21/Sunday!K20 ->  | AS110: =Sunday!L21/Sunday!L20 ->  | AT110: =Sunday!M21/Sunday!M20 ->  | AU110: =Sunday!N21/Sunday!N20 ->  | AV110: =Sunday!O21/Sunday!O20 -> 
C111: DRPT | D111: ='Weekly Totals'!D14/'Weekly Totals'!D13 ->  | E111: ='Weekly Totals'!E14/'Weekly Totals'!E13 ->  | F111: ='Weekly Totals'!F14/'Weekly Totals'!F13 ->  | G111: ='Weekly Totals'!G14/'Weekly Totals'!G13 ->  | H111: ='Weekly Totals'!H14/'Weekly Totals'!H13 ->  | I111: ='Weekly Totals'!I14/'Weekly Totals'!I13 ->  | J111: ='Weekly Totals'!J14/'Weekly Totals'!J13 ->  | K111: ='Weekly Totals'!K14/'Weekly Totals'!K13 ->  | L111: ='Weekly Totals'!L14/'Weekly Totals'!L13 ->  | M111: ='Weekly Totals'!M14/'Weekly Totals'!M13 ->  | N111: ='Weekly Totals'!N14/'Weekly Totals'!N13 ->  | O111: ='Weekly Totals'!O14/'Weekly Totals'!O13 ->  | S111: MT DO | T111: =Saturday!D35/Saturday!D34 ->  | U111: =Saturday!E35/Saturday!E34 ->  | V111: =Saturday!F35/Saturday!F34 ->  | W111: =Saturday!G35/Saturday!G34 ->  | X111: =Saturday!H35/Saturday!H34 ->  | Y111: =Saturday!I35/Saturday!I34 ->  | Z111: =Saturday!J35/Saturday!J34 ->  | AA111: =Saturday!K35/Saturday!K34 ->  | AB111: =Saturday!L35/Saturday!L34 ->  | AC111: =Saturday!M35/Saturday!M34 ->  | AD111: =Saturday!N35/Saturday!N34 ->  | AE111: =Saturday!O35/Saturday!O34 ->  | AJ111: MB PT | AK111: =Sunday!D28/Sunday!D27 ->  | AL111: =Sunday!E28/Sunday!E27 ->  | AM111: =Sunday!F28/Sunday!F27 ->  | AN111: =Sunday!G28/Sunday!G27 ->  | AO111: =Sunday!H28/Sunday!H27 ->  | AP111: =Sunday!I28/Sunday!I27 ->  | AQ111: =Sunday!J28/Sunday!J27 ->  | AR111: =Sunday!K28/Sunday!K27 ->  | AS111: =Sunday!L28/Sunday!L27 ->  | AT111: =Sunday!M28/Sunday!M27 ->  | AU111: =Sunday!N28/Sunday!N27 ->  | AV111: =Sunday!O28/Sunday!O27 -> 
C112: MBDO | D112: ='Weekly Totals'!D21/'Weekly Totals'!D20 ->  | E112: ='Weekly Totals'!E21/'Weekly Totals'!E20 ->  | F112: ='Weekly Totals'!F21/'Weekly Totals'!F20 ->  | G112: ='Weekly Totals'!G21/'Weekly Totals'!G20 ->  | H112: ='Weekly Totals'!H21/'Weekly Totals'!H20 ->  | I112: ='Weekly Totals'!I21/'Weekly Totals'!I20 ->  | J112: ='Weekly Totals'!J21/'Weekly Totals'!J20 ->  | K112: ='Weekly Totals'!K21/'Weekly Totals'!K20 ->  | L112: ='Weekly Totals'!L21/'Weekly Totals'!L20 ->  | M112: ='Weekly Totals'!M21/'Weekly Totals'!M20 ->  | N112: ='Weekly Totals'!N21/'Weekly Totals'!N20 ->  | O112: ='Weekly Totals'!O21/'Weekly Totals'!O20 ->  | S112: MT PT | T112: =Saturday!D42/Saturday!D41 ->  | U112: =Saturday!E42/Saturday!E41 ->  | V112: =Saturday!F42/Saturday!F41 ->  | W112: =Saturday!G42/Saturday!G41 ->  | X112: =Saturday!H42/Saturday!H41 ->  | Y112: =Saturday!I42/Saturday!I41 ->  | Z112: =Saturday!J42/Saturday!J41 ->  | AA112: =Saturday!K42/Saturday!K41 ->  | AB112: =Saturday!L42/Saturday!L41 ->  | AC112: =Saturday!M42/Saturday!M41 ->  | AD112: =Saturday!N42/Saturday!N41 ->  | AE112: =Saturday!O42/Saturday!O41 ->  | AJ112: MT DO | AK112: =Sunday!D35/Sunday!D34 ->  | AL112: =Sunday!E35/Sunday!E34 ->  | AM112: =Sunday!F35/Sunday!F34 ->  | AN112: =Sunday!G35/Sunday!G34 ->  | AO112: =Sunday!H35/Sunday!H34 ->  | AP112: =Sunday!I35/Sunday!I34 ->  | AQ112: =Sunday!J35/Sunday!J34 ->  | AR112: =Sunday!K35/Sunday!K34 ->  | AS112: =Sunday!L35/Sunday!L34 ->  | AT112: =Sunday!M35/Sunday!M34 ->  | AU112: =Sunday!N35/Sunday!N34 ->  | AV112: =Sunday!O35/Sunday!O34 -> 
C113: MBPT | D113: ='Weekly Totals'!D28/'Weekly Totals'!D27 ->  | E113: ='Weekly Totals'!E28/'Weekly Totals'!E27 ->  | F113: ='Weekly Totals'!F28/'Weekly Totals'!F27 ->  | G113: ='Weekly Totals'!G28/'Weekly Totals'!G27 ->  | H113: ='Weekly Totals'!H28/'Weekly Totals'!H27 ->  | I113: ='Weekly Totals'!I28/'Weekly Totals'!I27 ->  | J113: ='Weekly Totals'!J28/'Weekly Totals'!J27 ->  | K113: ='Weekly Totals'!K28/'Weekly Totals'!K27 ->  | L113: ='Weekly Totals'!L28/'Weekly Totals'!L27 ->  | M113: ='Weekly Totals'!M28/'Weekly Totals'!M27 ->  | N113: ='Weekly Totals'!N28/'Weekly Totals'!N27 ->  | O113: ='Weekly Totals'!O28/'Weekly Totals'!O27 ->  | S113: TOTAL | T113: =Saturday!D49/Saturday!D48 ->  | U113: =Saturday!E49/Saturday!E48 ->  | V113: =Saturday!F49/Saturday!F48 ->  | W113: =Saturday!G49/Saturday!G48 ->  | X113: =Saturday!H49/Saturday!H48 ->  | Y113: =Saturday!I49/Saturday!I48 ->  | Z113: =Saturday!J49/Saturday!J48 ->  | AA113: =Saturday!K49/Saturday!K48 ->  | AB113: =Saturday!L49/Saturday!L48 ->  | AC113: =Saturday!M49/Saturday!M48 ->  | AD113: =Saturday!N49/Saturday!N48 ->  | AE113: =Saturday!O49/Saturday!O48 ->  | AJ113: MT PT | AK113: =Sunday!D42/Sunday!D41 ->  | AL113: =Sunday!E42/Sunday!E41 ->  | AM113: =Sunday!F42/Sunday!F41 ->  | AN113: =Sunday!G42/Sunday!G41 ->  | AO113: =Sunday!H42/Sunday!H41 ->  | AP113: =Sunday!I42/Sunday!I41 ->  | AQ113: =Sunday!J42/Sunday!J41 ->  | AR113: =Sunday!K42/Sunday!K41 ->  | AS113: =Sunday!L42/Sunday!L41 ->  | AT113: =Sunday!M42/Sunday!M41 ->  | AU113: =Sunday!N42/Sunday!N41 ->  | AV113: =Sunday!O42/Sunday!O41 -> 
C114: MTDO | D114: =Weekday!D35/Weekday!D34 ->  | E114: =Weekday!E35/Weekday!E34 ->  | F114: =Weekday!F35/Weekday!F34 ->  | G114: =Weekday!G35/Weekday!G34 ->  | H114: =Weekday!H35/Weekday!H34 ->  | I114: =Weekday!I35/Weekday!I34 ->  | J114: =Weekday!J35/Weekday!J34 ->  | K114: =Weekday!K35/Weekday!K34 ->  | L114: =Weekday!L35/Weekday!L34 ->  | M114: =Weekday!M35/Weekday!M34 ->  | N114: =Weekday!N35/Weekday!N34 ->  | O114: =Weekday!O35/Weekday!O34 ->  | AJ114: TOTAL | AK114: =Sunday!D49/Sunday!D48 ->  | AL114: =Sunday!E49/Sunday!E48 ->  | AM114: =Sunday!F49/Sunday!F48 ->  | AN114: =Sunday!G49/Sunday!G48 ->  | AO114: =Sunday!H49/Sunday!H48 ->  | AP114: =Sunday!I49/Sunday!I48 ->  | AQ114: =Sunday!J49/Sunday!J48 ->  | AR114: =Sunday!K49/Sunday!K48 ->  | AS114: =Sunday!L49/Sunday!L48 ->  | AT114: =Sunday!M49/Sunday!M48 ->  | AU114: =Sunday!N49/Sunday!N48 ->  | AV114: =Sunday!O49/Sunday!O48 -> 
C115: MTPT | D115: =Weekday!D42/Weekday!D41 ->  | E115: =Weekday!E42/Weekday!E41 ->  | F115: =Weekday!F42/Weekday!F41 ->  | G115: =Weekday!G42/Weekday!G41 ->  | H115: =Weekday!H42/Weekday!H41 ->  | I115: =Weekday!I42/Weekday!I41 ->  | J115: =Weekday!J42/Weekday!J41 ->  | K115: =Weekday!K42/Weekday!K41 ->  | L115: =Weekday!L42/Weekday!L41 ->  | M115: =Weekday!M42/Weekday!M41 ->  | N115: =Weekday!N42/Weekday!N41 ->  | O115: =Weekday!O42/Weekday!O41 -> 
A134: Trips by Contract Type
D137: Non-Contract | E137: ='Weekly Totals'!T50 -> 0 | S137: Non-Contract | U137: ='Weekly Totals'!T8+'Weekly Totals'!T15 -> 0 | AK137: Non-Contract | AM137: ='Weekly Totals'!T22+'Weekly Totals'!T29 -> 0 | AZ137: Non-Contract | BB137: ='Weekly Totals'!T36+'Weekly Totals'!T43 -> 0
D138: Medicaid Contract | E138: ='Weekly Totals'!T51 -> 0 | S138: Medicaid Contract | U138: ='Weekly Totals'!T9+'Weekly Totals'!T16 -> 0 | AK138: Medicaid Contract | AM138: ='Weekly Totals'!T23+'Weekly Totals'!T30 -> 0 | AZ138: Medicaid Contract | BB138: ='Weekly Totals'!T37+'Weekly Totals'!T44 -> 0
D139: Non-Medicaid Contract | E139: ='Weekly Totals'!T52 -> 0 | S139: Non-Medicaid Contract | U139: ='Weekly Totals'!T10+'Weekly Totals'!T17 -> 0 | AK139: Non-Medicaid Contract | AM139: ='Weekly Totals'!T24+'Weekly Totals'!T31 -> 0 | AZ139: Non-Medicaid Contract | BB139: ='Weekly Totals'!T38+'Weekly Totals'!T45 -> 0

Sheet Finance (hidden)
B1: ="5. FINANCIAL DATA: "&Overview!D4 -> 5. FINANCIAL DATA:
B2: =CONCATENATE(Overview!B2) -> FY2024
E3: A | F3: B | G3: C | H3: D | I3: E | J3: F | K3: G | L3: H | M3: I | N3: J | O3: K | P3: L | Q3: M | R3: N | S3: O
C4: Resource | E4: Admin/Operating | L4: Capital | S4: Description
E5: DR DO | F5: DR PT | G5: MB DO | H5: MB PT | I5: MT DO | J5: MT PT | K5: TOTAL | L5: DR DO | M5: DR PT | N5: MB DO | O5: MB PT | P5: MT DO | Q5: MT PT | R5: TOTAL
B6: EXPENSES | C6: ADMINISTRATIVE
A7: =Sunday!A45+1 -> 96 | D7: Personnel Salaries & Fringes - CTP Object Codes G121-189 | K7: =SUM(E7:J7) -> 0 | T7: =A7 -> 96
A8: =A7+1 -> 97 | D8: Advertising and Promotion - CTP Object Codes G371-373 | K8: =SUM(E8:J8) -> 0 | T8: =T7+1 -> 97
A9: =A8+1 -> 98 | D9: Employee Development - CTP Object Code G395 | K9: 0 | T9: =T8+1 -> 98
A10: =A9+1 -> 99 | D10: Vehicle Insurance Premiums - CTP Object Code G452 | K10: 0 | T10: =T9+1 -> 99
A11: =A10+1 -> 100 | D11: Indirect Services - CTP Object Code G481 | K11: 0 | T11: =T10+1 -> 100
A12: =A11+1 -> 101 | D12: CTP Codes G190-359; 380-394; 396-451; 454-480; 482-491 | K12: 0 | T12: =T11+1 -> 101
A13: 102 | D13: Other Admin Expense (describe to the right) | K13: 0 | T13: 102
D14: Total Administrative Expenses | E14: =SUM(E7:E13) -> 0 | F14: =SUM(F7:F13) -> 0 | G14: 0 | H14: 0 | I14: 0 | J14: 0 | K14: =SUM(K7:K13) -> 0
C15: OPERATING
A16: =A13+1 -> 103 | D16: Driver Salaries & Fringes | K16: =SUM(E16:J16) -> 0 | T16: =T13+1 -> 103
A17: =A16+1 -> 104 | D17: Other Operating Staff Salaries & Fringes | K17: =SUM(E17:J17) -> 0 | T17: =T16+1 -> 104
A18: =A17+1 -> 105 | D18: Mechanics Salaries & Fringes | K18: 0 | T18: =T17+1 -> 105
A19: =A18+1 -> 106 | D19: Indirect Services | K19: 0 | T19: =T18+1 -> 106
A20: =A19+1 -> 107 | D20: Fuel | K20: 0 | T20: =T19+1 -> 107
A21: =A20+1 -> 108 | D21: Vehicle Maintenance | K21: 0 | T21: =T20+1 -> 108
A22: 109 | D22: Payment of Insurance Deductible(s) | K22: 0 | T22: 109
A23: 110 | D23: Disposal of Vehicle(s) | K23: 0 | T23: 110
A24: =A23+1 -> 111 | D24: Management/Operation Services | K24: 0 | T24: =T23+1 -> 111
A25: =A24+1 -> 112 | D25: Volunteer Reimbursement | K25: 0 | T25: =T24+1 -> 112
A26: =A25+1 -> 113 | D26: Other Transit Provider Services | K26: 0 | T26: =T25+1 -> 113
A27: =A26+1 -> 114 | D27: Other (describe to the right) | K27: 0 | T27: =T26+1 -> 114
D28: Total Operating Expenses | E28: =SUM(E16:E27) -> 0 | F28: =SUM(F16:F27) -> 0 | G28: 0 | H28: 0 | I28: 0 | J28: 0 | K28: 0
C29: Total Admin/Operating Expenses | E29: =E14+E28 -> 0 | F29: =F14+F28 -> 0 | G29: 0 | H29: 0 | I29: 0 | J29: 0 | K29: =SUM(K14+K28) -> 0
C30: CAPITAL
A31: =A27+1 -> 115 | D31: Capital Purchases | R31: =SUM(L31:Q31) -> 0 | T31: =T27+1 -> 115
A32: =A31+1 -> 116 | D32: Body Work on Wrecked Vehicle | R32: =SUM(L32:Q32) -> 0 | T32: =T31+1 -> 116
A33: =A32+1 -> 117 | D33: Facility Renovation or Construction | R33: 0 | T33: =T32+1 -> 117
A34: =A33+1 -> 118 | D34: Advanced Technology Purchases | R34: 0 | T34: =T33+1 -> 118
A35: =A34+1 -> 119 | D35: Other (describe to the right) | R35: 0 | T35: =T34+1 -> 119
D36: Total Capital Expenses | L36: =SUM(L31:L35) -> 0 | M36: =SUM(M31:M35) -> 0 | N36: 0 | O36: 0 | P36: 0 | Q36: 0 | R36: =SUM(R31:R35) -> 0
B37: REVENUE | C37: FEDERAL
A38: =A35+1 -> 120 | D38: Urbanized Area Fomula Funding-Section 5307 | K38: =SUM(E38:J38) -> 0 | R38: =SUM(L38:Q38) -> 0 | T38: =T35+1 -> 120
A39: =A38+1 -> 121 | D39: CARES Act-Section 5307 | K39: =SUM(E39:J39) -> 0 | R39: =SUM(L39:Q39) -> 0 | T39: =T38+1 -> 121
A40: =A39+1 -> 122 | D40: CRRSA Act-Section 5307 | K40: 0 | R40: 0 | T40: =T39+1 -> 122
A41: =A40+1 -> 123 | D41: ARP Act-Section 5307 | K41: 0 | R41: 0 | T41: 123
A42: =A41+1 -> 124 | D42: FTA Capital Program Funds-Section 5309 | K42: 0 | R42: 0 | T42: 124
A43: 125 | D43: Elderly and Disabled-Section 5310 | K43: 0 | R43: 0 | T43: 125
A44: 126 | D44: Capital Assistance Spent on Operations-Section 5310 | K44: 0 | T44: 126
A45: 127 | D45: CARES Act-Section 5310 | K45: 0 | R45: =SUM(L45:Q45) -> 0 | T45: 127
A46: 128 | D46: CRRSA Act-Section 5310 | K46: 0 | R46: =SUM(L46:Q46) -> 0 | T46: 128
A47: 129 | D47: ARP Act-Section 5310 | K47: 0 | R47: 0 | T47: 129
A48: 130 | D48: CTP Funds - Administrative/Capital-Section 5311 | K48: 0 | R48: 0 | T48: 130
A49: 131 | D49: CTP Funds - Operating-Section 5311 | K49: 0 | T49: 131
A50: 132 | D50: Capital Assistance Spent on Operations-Section 5311 | K50: 0 | T50: 132
A51: 133 | D51: Appalachian-Section 5311 | K51: 0 | R51: =SUM(L51:Q51) -> 0 | T51: 133
A52: 134 | D52: Tribal Federal Assistance-Section 5311 | K52: 0 | R52: =SUM(L52:Q52) -> 0 | T52: 134
A53: 135 | D53: ARRA Assistance-Section 5311 | K53: 0 | R53: 0 | T53: 135
A54: 136 | D54: ARRA Tribal Assistance-Section 5311 | K54: 0 | R54: 0 | T54: 136
A55: 137 | D55: CARES Act-Section 5311 | K55: 0 | R55: 0 | T55: 137
A56: 138 | D56: CRRSA Act-Section 5311 | K56: 0 | R56: 0 | T56: 138
A57: 139 | D57: ARP Act-Section 5311 | K57: 0 | R57: 0 | T57: 139
A58: 140 | D58: JARC Funds-Section 5316 | K58: 0 | R58: 0 | T58: 140
A59: 141 | D59: New Freedom Funds-Section 5317 | K59: 0 | R59: 0 | T59: 141
A60: 142 | D60: Bus and Bus Facilities 5339 | R60: 0 | T60: 142
A61: 143 | D61: Other FTA Revenues (describe to the right) | K61: =SUM(E61:J61) -> 0 | R61: 0 | T61: 143
A62: 144 | D62: Other Federal Non-FTA Revenues (describe to the right) | K62: =SUM(E62:J62) -> 0 | R62: 0 | T62: 144
D63: Federal total | E63: =SUM(E38:E62) -> 0 | F63: 0 | G63: 0 | H63: 0 | I63: 0 | J63: 0 | K63: 0 | L63: 0 | M63: 0 | N63: 0 | O63: 0 | P63: 0 | Q63: 0 | R63: 0
C64: STATE
A65: =A62+1 -> 145 | D65: CTP Funds - Administrative | K65: =SUM(E65:J65) -> 0 | T65: =T62+1 -> 145
A66: =A65+1 -> 146 | D66: ROAP Funds - Suballocated to the Transit System | K66: =SUM(E66:J66) -> 0 | T66: =T65+1 -> 146
A67: =A66+1 -> 147 | D67: Vehicles & Other Capital Revenues | R67: =SUM(L67:Q67) -> 0 | T67: =T66+1 -> 147
A68: =A67+1 -> 148 | D68: Facility | R68: =SUM(L68:Q68) -> 0 | T68: =T67+1 -> 148
A69: =A68+1 -> 149 | D69: Advanced Technology | R69: 0 | T69: =T68+1 -> 149
A70: =A69+1 -> 150 | D70: Other (describe to the right) | K70: =SUM(E70:J70) -> 0 | R70: 0 | T70: =T69+1 -> 150
D71: State total | E71: =SUM(E65:E70) -> 0 | F71: 0 | G71: 0 | H71: 0 | I71: 0 | J71: 0 | K71: =SUM(K65:K70) -> 0 | L71: 0 | M71: 0 | N71: 0 | O71: 0 | P71: 0 | Q71: 0 | R71: 0
C72: LOCAL
A73: =A70+1 -> 151 | D73: Government Funds | K73: =SUM(E73:J73) -> 0 | R73: =SUM(L73:Q73) -> 0 | T73: =T70+1 -> 151
A74: =A73+1 -> 152 | D74: Medicaid Revenue | K74: =SUM(E74:J74) -> 0 | R74: =SUM(L74:Q74) -> 0 | T74: =T73+1 -> 152
A75: =A74+1 -> 153 | D75: Contract Revenue: Full Cost | K75: 0 | R75: 0 | T75: =T74+1 -> 153
A76: =A75+1 -> 154 | D76: Other Directly Generated Revenue | K76: 0 | R76: 0 | T76: =T75+1 -> 154
A77: =A76+1 -> 155 | D77: Fares from passengers | K77: 0 | R77: 0 | T77: =T76+1 -> 155
A78: =A77+1 -> 156 | D78: Donations | K78: 0 | R78: 0 | T78: =T77+1 -> 156
A79: =A78+1 -> 157 | D79: Interest Income | K79: 0 | R79: 0 | T79: =T78+1 -> 157
A80: =A79+1 -> 158 | D80: Advertising Revenue | K80: 0 | R80: 0 | T80: =T79+1 -> 158
A81: =A80+1 -> 159 | D81: Insurance Proceeds from Accident | K81: 0 | R81: 0 | T81: =T80+1 -> 159
A82: =A81+1 -> 160 | D82: Proceeds from Sale of Vehicle (used for capital only) | R82: 0 | T82: =T81+1 -> 160
A83: =A82+1 -> 161 | D83: Other Revenue (describe to the right) | K83: =SUM(E83:J83) -> 0 | R83: 0 | T83: =T82+1 -> 161
D84: Local total | E84: =SUM(E73:E83) -> 0 | F84: =SUM(F73:F83) -> 0 | G84: 0 | H84: 0 | I84: 0 | J84: 0 | K84: 0 | L84: =SUM(L73:L83) -> 0 | M84: =SUM(M73:M83) -> 0 | N84: 0 | O84: =SUM(O73:O83) -> 0 | P84: =SUM(P73:P83) -> 0 | Q84: 0 | R84: =SUM(R73:R83) -> 0
C85: Total Revenue | E85: =SUM(E63+E71+E84) -> 0 | F85: =SUM(F63+F71+F84) -> 0 | G85: 0 | H85: 0 | I85: =SUM(I63+I71+I84) -> 0 | J85: 0 | K85: 0 | L85: =SUM(L63+L71+L84) -> 0 | M85: =SUM(M63+M71+M84) -> 0 | N85: 0 | O85: 0 | P85: =SUM(P63+P71+P84) -> 0 | Q85: 0 | R85: 0
C86: Total Expenses | E86: =E29 -> 0 | F86: =F29 -> 0 | G86: =G29 -> 0 | H86: 0 | I86: =I29 -> 0 | J86: 0 | K86: 0 | L86: =L36 -> 0 | M86: =M36 -> 0 | N86: 0 | O86: 0 | P86: =P36 -> 0 | Q86: 0 | R86: 0
B87: Surplus / Deficit = Total Revenue-Total Expenses | E87: =K85-K29 -> 0 | L87: =R85-R36 -> 0
E88: A | F88: B | G88: C | H88: D | I88: E | J88: F | K88: G | L88: H | M88: I | N88: J | O88: K | P88: L | Q88: M | R88: N | S88: O
CL90: 4

Sheet Annual Statistics (hidden)
B1: ="6. ANNUAL STATS: "&Overview!D4 -> 6. ANNUAL STATS:
B2: =Overview!B2 -> FY2024 | C2: A | D2: B | E2: C | F2: D | G2: E
B3: Volunteer Resources
A4: =Finance!A83+1 -> 162 | B4: Total volunteer drivers | D4: Personal Vehicles Used | H4: =A4 -> 162
B6: Incidental Services (training, maintenance, fuel, other non-passenger services)
A7: =A4+1 -> 163 | B7: Miles | E7: Hours | H7: =H4+1 -> 163
B8: Incidental Services Description:
A9: =A7+1 -> 164 | H9: =H7+1 -> 164
B11: CARES Act Incidental Services (training, maintenance, fuel, other non-passenger services)
A12: =A9+1 -> 165 | B12: Miles | E12: Hours | H12: =H9+1 -> 165
B13: CARES Act Incidental Services Description:
A14: =A12+1 -> 166 | H14: =H12+1 -> 166
B16: Employee Information
C17: Full Time Employee | E17: Part Time Employee | G17: FTE
C18: How Many | D18: Total Pay Hours | E18: How Many | F18: Total Pay Hours
A19: =A14+1 -> 167 | B19: Administrative | G19: =(D19+F19)/2080 -> 0 | H19: =H14+1 -> 167
A20: =A19+1 -> 168 | B20: Maintenance | G20: =(D20+F20)/2080 -> 0 | H20: =H19+1 -> 168
A21: 169 | B21: Driver | G21: 0 | H21: 169
A22: =A21+1 -> 170 | B22: Other Operational | G22: 0 | H22: =H21+1 -> 170
B23: Total | C23: =SUM(C19:C22) -> 0 | D23: =SUM(D19:D22) -> 0 | E23: =SUM(E19:E22) -> 0 | F23: =SUM(F19:F22) -> 0 | G23: =SUM(G19:G22) -> 0
B25: Non-Ambulatory
A26: =A22+1 -> 171 | B26: Non-ambulatory passenger trips | H26: =H22+1 -> 171
B28: Maintenance Information
A29: =A26+1 -> 172 | B29: Select your vehicle maintenance method | H29: =H26+1 -> 172
C30: # Owned | E30: # Leased | G30: Total
A31: =A29+1 -> 173 | B31: Maintenance facilities grantee | G31: =C31+E31 -> 0 | H31: =H29+1 -> 173
B33: Safety Statistics (NTD only)
C34: NTD Events | E34: NTD Fatalities | G34: NTD Injuries
A35: =A31+1 -> 174 | B35: NTD Reportable (see instructions) | H35: =H31+1 -> 174
B37: Human Service Agency / Community Organization Trips Served
C38: Annual Trips | F38: Annual Trips
A39: =A35+1 -> 175 | B39: Vocational Rehabilitation | C39: 0 | E39: DSS Medicaid | F39: 0 | H39: =H35+1 -> 175
A40: =A39+1 -> 176 | B40: Vocational Workshop (or equivalent) | C40: 0 | E40: DSS WorkFirst | F40: 0 | H40: =H39+1 -> 176
A41: 177 | B41: Headstart | C41: 0 | E41: DSS - Other | F41: 0 | H41: 177
A42: =A41+1 -> 178 | B42: Nursing Home/Assisted Living Facility | C42: 0 | E42: Senior Services | F42: 0 | H42: =H41+1 -> 178
A43: 179 | B43: United Way Agency(ies) | C43: 0 | E43: Mental Health | F43: 0 | H43: 179
A44: 180 | B44: Parks and Recreation | C44: 0 | E44: OTHER | F44: 0 | H44: 180
A45: 181 | B45: Local Employer(s) | C45: 0 | H45: 181
B47: How has your administration and/or operations changed since last year (be detailed)?
A48: =A45+1 -> 182 | H48: =H45+1 -> 182
C49: A | D49: B | E49: C | F49: D | G49: E

Sheet Completion (hidden)
B1: ="7. COMPLETION: "&Overview!D4 -> 7. COMPLETION:
B2: =Overview!B2 -> FY2024
B3: Summary | C3: DO | D3: PT | E3: Total
B4: Administrative Expenses | C4: =Finance!E14+Finance!G14+Finance!I14 -> 0 | D4: =Finance!F14+Finance!H14+Finance!J14 -> 0 | E4: =C4+D4 -> 0
B5: Operating Expenses | C5: =Finance!E28+Finance!G28+Finance!I28 -> 0 | D5: =Finance!F28+Finance!H28+Finance!J28 -> 0 | E5: =C5+D5 -> 0
B6: Capital Expenses | C6: =Finance!L36+Finance!N36+Finance!P36 -> 0 | D6: =Finance!M36+Finance!O36+Finance!Q36 -> 0 | E6: =C6+D6 -> 0
B7: Miles | C7: ='Weekly Totals'!T7+'Weekly Totals'!T21+'Weekly Totals'!T35 -> 0 | D7: ='Weekly Totals'!T14+'Weekly Totals'!T28+'Weekly Totals'!T42 -> 0 | E7: ='Weekly Totals'!T49 -> 0
B8: Hours | C8: ='Weekly Totals'!T6+'Weekly Totals'!T20+'Weekly Totals'!T34 -> 0 | D8: ='Weekly Totals'!T13+'Weekly Totals'!T27+'Weekly Totals'!T41 -> 0 | E8: ='Weekly Totals'!T48 -> 0
B9: Passenger Trips | C9: ='Weekly Totals'!T11+'Weekly Totals'!T25+'Weekly Totals'!T39 -> 0 | D9: ='Weekly Totals'!T18+'Weekly Totals'!T32+'Weekly Totals'!T46 -> 0 | E9: ='Weekly Totals'!T53 -> 0
B11: =Overview!B25&" Vital Signs" -> Vital Signs | C11: DO | D11: PT | E11: Total
B12: Fixed Route Weekly Passenger Trips/Hour | C12: =IFERROR('Weekly Totals'!T25/'Weekly Totals'!T20, 0) -> 0 | D12: =IFERROR('Weekly Totals'!T32/'Weekly Totals'!T27, 0) -> 0 | E12: =IFERROR(('Weekly Totals'!T25+'Weekly Totals'!T32)/('Weekly Totals'!T20+'Weekly Totals'!T27), 0) -> 0
B13: Demand Response/Sub Weekly Passenger Trips/Hour | C13: =IFERROR('Weekly Totals'!T11/'Weekly Totals'!T6, 0) -> 0 | D13: =IFERROR('Weekly Totals'!T18/'Weekly Totals'!T13, 0) -> 0 | E13: =IFERROR(('Weekly Totals'!T11+'Weekly Totals'!T18)/('Weekly Totals'!T6+'Weekly Totals'!T13), 0) -> 0
B14: Microtransit Weekday Passenger Trips/Hour | C14: =IFERROR('Weekly Totals'!T39/'Weekly Totals'!T34,0) -> 0 | D14: =IFERROR('Weekly Totals'!T46/'Weekly Totals'!T41,0) -> 0 | E14: =IFERROR(('Weekly Totals'!T39+'Weekly Totals'!T46)/('Weekly Totals'!T34+'Weekly Totals'!T41),0) -> 0
B15: Fixed Route Weekly Passenger Trips/Mile | C15: =IFERROR('Weekly Totals'!T25/'Weekly Totals'!T21, 0) -> 0 | D15: =IFERROR('Weekly Totals'!T32/'Weekly Totals'!T28, 0) -> 0 | E15: =IFERROR(('Weekly Totals'!T25+'Weekly Totals'!T32)/('Weekly Totals'!T21+'Weekly Totals'!T28), 0) -> 0
B16: Demand Response/Sub Weekly Passenger Trips/Mile | C16: =IFERROR('Weekly Totals'!T11/'Weekly Totals'!T7, 0) -> 0 | D16: =IFERROR('Weekly Totals'!T18/'Weekly Totals'!T14, 0) -> 0 | E16: =IFERROR(('Weekly Totals'!T11+'Weekly Totals'!T18)/('Weekly Totals'!T7+'Weekly Totals'!T14), 0) -> 0
B17: Microtransit Weekly Passenger Trips/Mile | C17: =IFERROR('Weekly Totals'!T39/'Weekly Totals'!T35,0) -> 0 | D17: =IFERROR('Weekly Totals'!T46/'Weekly Totals'!T42,0) -> 0 | E17: =IFERROR(('Weekly Totals'!T39+'Weekly Totals'!T46)/('Weekly Totals'!T35+'Weekly Totals'!T42),0) -> 0
B18: Operating Cost per Passenger Trips | C18: =IFERROR(($C$4+$C$5)/C9,0) -> 0 | D18: =IFERROR(($D$4+$D$5)/D9,0) -> 0 | E18: =IFERROR(($E$4+$E$5)/E9,0) -> 0
B19: Operating Cost per Hour | C19: =IFERROR(($C$4+$C$5)/C8,0) -> 0 | D19: =IFERROR(($D$4+$D$5)/D8,0) -> 0 | E19: =IFERROR(($E$4+$E$5)/E8,0) -> 0
B20: Operating Cost per Mile | C20: =IFERROR(($C$4+$C$5)/C7,0) -> 0 | D20: =IFERROR(($D$4+$D$5)/D7,0) -> 0 | E20: =IFERROR(($E$4+$E$5)/E7,0) -> 0
B21: Transit Trips per Driver FTE | C21: =IFERROR(('Weekly Totals'!T11+'Weekly Totals'!T25+'Weekly Totals'!T39)/'Annual Statistics'!G21, 0) -> 0 | E21: =C21 -> 0
A24: ='Annual Statistics'!A48+1 -> 183 | B24: How much money was in the Operating Reserve at the end of the year? | F24: ='Annual Statistics'!H48+1 -> 183
A25: =A24+1 -> 184 | B25: After reviewing the system's vital signs, what has the system been doing well? | F25: =F24+1 -> 184
A27: =A25+1 -> 185 | B27: After reviewing the system's vital signs, what should the system do to improve it's performance? | F27: =F25+1 -> 185
B29: I hereby certify that, to the best of my knowledge, the information in this report is accurate and complete.
B31: Signature of Authorized Official | E31: Date
B33: Signature of TAB Chairperson | E33: Date
B35: Signature of Financial Manager | E35: Date
B36: ITRE Comments about the data
B39: Upload the original excel file and scanned version of the signed completion tab to partner connect

Sheet Definitions (hidden)
A1: Worksheet | B1: Line Number(s) | C1: Description | D1: Instruction/Definition
A2: OVERVIEW | B2: 1 | C2: Grantee's Legal Name | D2: Select the legal name of the community transit system from drop down list.
B3: =B2+1 -> 2 | C3: Transit's Contact Person | D3: Enter the name of the contact person.
B4: =B3+1 -> 3 | C4: Contact Email | D4: Enter the email of the contact person.
B5: 4 | C5: Transit's Website Address | D5: Enter the URL of the transit system's Website.
B6: 5 | C6: Transit's Telephone Number | D6: Enter the system's phone number, including area code.
B7: 6 | C7: Select Service Area | D7: Click on the cell, then select from the drop down box the category that best fits your service area.
B8: 7 | C8: List Counties in Multi-County System (if applicable) | D8: If applicable, list the counties in your multi-county system.
B9: 8 | C9: Demand Response Directly Operated (DR DO) | D9: Select relevant operating modes for your transit system. Demand Response Directly Operated (DR DO) transit service is provided directly by a transit agency. This shared use system operates in response to calls from passengers or their agents to the transit operator, who schedules a vehicle to pick up the passengers to transport them to their destinations. Transportation agencies use their employees to supply the necessary labor to operate the revenue vehicles. This includes instances where an agency's employees provide purchased transportation (PT) services to the agency through a contractual agreement.
B10: =B9+1 -> 9 | C10: Demand Response Purchased (DR PT) | D10: Select relevant operating modes for your transit system. Demand Response Purchased (DR PT) transit service is provided to a public transit agency or governmental unit from a public or private transportation provider based on a written contract. The provider operates this shared use system in response to calls from passengers or their agents to the transit operator, who schedules a vehicle to pick up the passengers to transport them to their destinations.
B11: 10B | C11: Fixed Route Directly Operated (MB DO) | D11: Select relevant operating modes for your transit system. Fixed Route Directly Operated (MB DO) transit service is provided directly by a transit agency. MB DO systems operate on a repetitive, fixed schedule basis along a specific route with vehicles stopping to pickup and deliver passengers to specific locations; each fixed route trip serves the same origins and destinations. This designated mode includes deviated route and deviated point services.
B12: 10C, 11C | C12: MB DO/MB PT Description | D12: Using drop-down menu, select fixed route, deviated fixed route, or both.
B13: 11B | C13: Fixed Route Purchased (MB PT) | D13: Select relevant operating modes for your transit system. Fixed Route Purchased (MB PT) transit service is provided to a public transit agency or governmental unit from a public or private transportation provider based on a written contract. MB PT systems operate on a repetitive, fixed schedule basis along a specific route with vehicles stopping to pickup and deliver passengers to specific locations; each fixed route trip serves the same origins and destinations. This designated mode includes deviated route and deviated point services.
B14: 12 | C14: Microtransit Directly Operated (MT DO) | D14: Select the relevant operating modes for your transit system. Microtransit Directly Operated (MT DO) service is provided directly by a transit agency. This shared use system operates in an on-demand environment and trips are generally booked through a mobile application. Transportation agencies use their employees to supply the necessary labor to operate the revenue vehicles. This includes instances where an agency's employees provide purchased transportation (PT) services to another agency through a contractual agreement.
B15: 13 | C15: Microtransit Purchased (MT PT) | D15: Select the relevant operating modes for your transit system. Microtransit Purchased (MT PT) service is provided to a public transit agency or governmental unit from a public or private transportation provider base on a written contract. Microtransit systems operate on an on-demand schedule where trips are usually booked through a mobile application.
B16: 14 | C16: Weekday Operating Hours | D16: Enter the begin time and end time of your publicly available weekday service.
B17: 15 | C17: Saturday Operating Hours | D17: Enter the begin time and end time of your publicly available Saturday service (if applicable).
B18: 16 | C18: Sunday Operating Hours | D18: Enter the begin time and end time of your publicly available Sunday service (if applicable).
B19: 17 | C19: Contractor Name (For PT Mode Only) | D19: Enter the name of your management/operations contractor, if applicable.
B20: 18 | C20: Contract Start / End Date (For PT Mode Only) | D20: Enter the dates your management/operations contract is in effect.
B21: 19 | C21: Do You Provide Trips to Out-of-Service Area Destinations? | D21: Click on the checkbox if applicable.
B22: 20 | C22: List Out-of-Service Area Destinations | D22: If applicable, list the cities to which you provide out-of-service area trips.
B23: 21 | C23: Do You Coordinate with Other Transportation Systems | D23: Click on the checkbox if applicable.
B24: 22 | C24: List the Community Transportation Systems (if applicable) | D24: If applicable, list the Transportation Systems with which you coordinate service.
A26: WEEKDAY | B26: =B24+1 -> 23 | C26: Operating Days | D26: Enter the number of weekdays that your system provided service in the month indicated.
B27: =B26+1 -> 24 | C27: Hours | D27: The hours calculation differs by mode. For demand response mode (DR), hours are accounted from pull out to pull in. For fixed-route mode (MB), hours are the total time in hours for the reporting period from first scheduled stop to the last scheduled stop. For microtransit mode (MT), hours are the total time in hours for the reporting period from pull out to pull in. All three hour definitions exclude operator training, and vehicle maintenance testing, as well as school bus and charter services. Do not include hours spent providing incidental services such as meal or service delivery.
B28: =B27+1 -> 25 | C28: Miles | D28: The miles calculation differs by mode. For demand response mode (DR), miles are accounted from pull out to pull in. For fixed-route mode (MB), miles are the total distance driven for the reporting period from the first scheduled stop to the last scheduled stop. For microtransit mode (MT), miles are the total distance in miles for the reporting period from pull out to pull in. All three mile definitions exclude operator training, and vehicle maintenance testing, as well as school bus and charter services. Do not include miles spent providing incidental services such as meal or service delivery.
B29: =B28+1 -> 26 | C29: Passenger Trips: Non-Contract | D29: Enter the number of non-contract unlinked passenger trips (HYPERLINK within Doc - 341). The cost of non-contract trips are not billed to outside organizations or agencies, rather are typically drawn down from funds controlled by the Transit System or its
B30: 27 | C30: Passenger Trips: Medicaid Contract | D30: Enter the number of unlinked passenger trips carried for DSS that are sponsored by Medicaid.
B31: 28 | C31: Passenger Trips: Non-Medicaid Contract | D31: Enter the number of non-Medicaid unlinked passenger trips carried for human service agencies or others with whom the system has a contractual relationship.
B32: =B31+1 -> 29 | C32: Hours | D32: The hours calculation differs by mode. For fixed-route mode (MB), hours are the total time in hours for the reporting period from first scheduled stop to the last scheduled stop. For demand response mode (DR), hours are accounted from pull out to pull in. For microtransit (M), hours are the total time in hours for the reporting period from pull out to pull in. All three hour definitions exclude operator training, and vehicle maintenance testing, as well as school bus and charter services. Do not include hours spent providing incidental services such as meal or service delivery.
B33: =B32+1 -> 30 | C33: Miles | D33: The miles calculation differs by mode. For fixed-route mode (MB), miles are the total distance driven for the reporting period from the first scheduled stop to the last scheduled stop. For demand response mode (DR), miles are accounted from pull out to pull in. For microtransit (M), miles are the total distance in miles for the reporting period from pull out to pull in. All three mile definitions exclude operator training, and vehicle maintenance testing, as well as school bus and charter services. Do not include miles spent providing incidental services such as meal or service delivery.
B34: =B33+1 -> 31 | C34: Passenger Trips: Non-Contract | D34: Enter the number of non-contract unlinked passenger trips (HYPERLINK within Doc - 341). The cost of non-contract trips are not billed to outside organizations or agencies, rather are typically drawn down from funds controlled by the Transit System or its parent organization.
B35: =B34+1 -> 32 | C35: Passenger Trips: Medicaid Contract | D35: Enter the number of unlinked passenger trips carried for DSS that are sponsored by Medicaid.
B36: =B35+1 -> 33 | C36: Passenger Trips: Non-Medicaid Contract | D36: Enter the number of non-Medicaid unlinked passenger trips carried for human service agencies or others with whom the system has a contractual relationship.
B37: =B36+1 -> 34 | C37: Hours | D37: The hours calculation differs by mode. For fixed-route mode (MB), hours are the total time in hours for the reporting period from first scheduled stop to the last scheduled stop. For demand response mode (DR), hours are accounted from pull out to pull in. For microtransit (M), hours are the total time in hours for the reporting period from pull out to pull in. All three hour definitions exclude operator training, and vehicle maintenance testing, as well as school bus and charter services. Do not include hours spent providing incidental services such as meal or service delivery.
B38: 35 | C38: Miles | D38: The miles calculation differs by mode. For fixed-route mode (MB), miles are the total distance driven for the reporting period from the first scheduled stop to the last scheduled stop. For demand response mode (DR), miles are accounted from pull out to pull in. For microtransit (M), miles are the total distance in miles for the reporting period from pull out to pull in. All three mile definitions exclude operator training, and vehicle maintenance testing, as well as school bus and charter services. Do not include miles spent providing incidental services such as meal or service delivery.
B39: =B38+1 -> 36 | C39: Passenger Trips: Non-Contract | D39: Enter the number of non-contract unlinked passenger trips (HYPERLINK within Doc - 341). The cost of non-contract trips are not billed to outside organizations or agencies, rather are typically drawn down from funds controlled by the Transit System or its parent organization.
B40: =B39+1 -> 37 | C40: Passenger Trips: Medicaid Contract | D40: Enter the number of unlinked passenger trips carried for DSS that are sponsored by Medicaid.
B41: =B40+1 -> 38 | C41: Passenger Trips: Non-Medicaid Contract | D41: Enter the number of non-Medicaid unlinked passenger trips carried for human service agencies or others with whom the system has a contractual relationship.
B42: 39 | C42: Hours | D42: The hours calculation differs by mode. For fixed-route mode (MB), hours are the total time in hours for the reporting period from first scheduled stop to the last scheduled stop. For demand response mode (DR), hours are accounted from pull out to pull in. For microtransit (M), hours are the total time in hours for the reporting period from pull out to pull in. All three hour definitions exclude operator training, and vehicle maintenance testing, as well as school bus and charter services. Do not include hours spent providing incidental services such as meal or service delivery.
B43: 40 | C43: Miles | D43: The miles calculation differs by mode. For fixed-route mode (MB), miles are the total distance driven for the reporting period from the first scheduled stop to the last scheduled stop. For demand response mode (DR), miles are accounted from pull out to pull in. For microtransit (M), miles are the total distance in miles for the reporting period from pull out to pull in. All three mile definitions exclude operator training, and vehicle maintenance testing, as well as school bus and charter services. Do not include miles spent providing incidental services such as meal or service delivery.
B44: =B43+1 -> 41 | C44: Passenger Trips: Non-Contract | D44: Enter the number of non-contract unlinked passenger trips (HYPERLINK within Doc - 341). The cost of non-contract trips are not billed to outside organizations or agencies, rather are typically drawn down from funds controlled by the Transit System or its parent organization.
B45: =B44+1 -> 42 | C45: Passenger Trips: Medicaid Contract | D45: Enter the number of unlinked passenger trips carried for DSS that are sponsored by Medicaid.
B46: =B45+1 -> 43 | C46: Passenger Trips: Non-Medicaid Contract | D46: Enter the number of non-Medicaid unlinked passenger trips carried for human service agencies or others with whom the system has a contractual relationship.
B47: =B46+1 -> 44 | C47: Hours | D47: The hours calculation differs by mode. For fixed-route mode (MB), hours are the total time in hours for the reporting period from first scheduled stop to the last scheduled stop. For demand response mode (DR), hours are accounted from pull out to pull in. For microtransit (M), hours are the total time in hours for the reporting period from pull out to pull in. All three hour definitions exclude operator training, and vehicle maintenance testing, as well as school bus and charter services. Do not include hours spent providing incidental services such as meal or service delivery.
B48: 45 | C48: Miles | D48: The miles calculation differs by mode. For fixed-route mode (MB), miles are the total distance driven for the reporting period from the first scheduled stop to the last scheduled stop. For demand response mode (DR), miles are accounted from pull out to pull in. For microtransit (M), miles are the total distance in miles for the reporting period from pull out to pull in. All three mile definitions exclude operator training, and vehicle maintenance testing, as well as school bus and charter services. Do not include miles spent providing incidental services such as meal or service delivery.
B49: =B48+1 -> 46 | C49: Passenger Trips: Non-Contract | D49: Enter the number of non-contract unlinked passenger trips (HYPERLINK within Doc - 341). The cost of non-contract trips are not billed to outside organizations or agencies, rather are typically drawn down from funds controlled by the Transit System or its parent organization.
B50: =B49+1 -> 47 | C50: Passenger Trips: Medicaid Contract | D50: Enter the number of unlinked passenger trips carried for DSS that are sponsored by Medicaid.
B51: =B50+1 -> 48 | C51: Passenger Trips: Non-Medicaid Contract | D51: Enter the number of non-Medicaid unlinked passenger trips carried for human service agencies or others with whom the system has a contractual relationship.
A53: SATURDAY | B53: =B46+1 -> 44 | C53: Operating Days | D53: Enter the number of Saturdays that your system provided service in the month indicated.
B54: =B53+1 -> 45 | C54: Hours | D54: The hours calculation differs by mode. For fixed-route mode (MB), hours are the total time in hours for the reporting period from first scheduled stop to the last scheduled stop. For demand response mode (DR), hours are accounted from pull out to pull in. Both hour definitions exclude operator training, and vehicle maintenance testing, as well as school bus and charter services. Do not include hours spent providing incidental services such as meal or service delivery.
B55: =B54+1 -> 46 | C55: Miles | D55: The miles calculation differs by mode. For fixed-route mode (MB), miles are the total distance driven for the reporting period from the first scheduled stop to the last scheduled stop. For demand response mode (DR), miles are accounted from pull out to pull in. Both mile definitions exclude operator training, and vehicle maintenance testing, as well as school bus and charter services. Do not include miles spent providing incidental services such as meal or service delivery.
B56: =B55+1 -> 47 | C56: Passenger Trips: Non-Contract | D56: Enter the number of non-contract unlinked passenger trips (HYPERLINK within Doc - 341). The cost of non-contract trips are not billed to outside organizations or agencies, rather are typically drawn down from funds controlled by the Transit System or its
B57: 48 | C57: Passenger Trips: Medicaid Contract | D57: Enter the number of unlinked passenger trips carried for DSS that are sponsored by Medicaid.
B58: 49 | C58: Passenger Trips: Non-Medicaid Contract | D58: Enter the number of non-Medicaid unlinked passenger trips carried for human service agencies or others with whom the system has a contractual relationship.
B59: =B58+1 -> 50 | C59: Hours | D59: The hours calculation differs by mode. For fixed-route mode (MB), hours are the total time in hours for the reporting period from first scheduled stop to the last scheduled stop. For demand response mode (DR), hours are accounted from pull out to pull in. Both hour definitions exclude operator training, and vehicle maintenance testing, as well as school bus and charter services. Do not include hours spent providing incidental services such as meal or service delivery.
B60: =B59+1 -> 51 | C60: Miles | D60: The miles calculation differs by mode. For fixed-route mode (MB), miles are the total distance driven for the reporting period from the first scheduled stop to the last scheduled stop. For demand response mode (DR), miles are accounted from pull out to pull in. Both mile definitions exclude operator training, and vehicle maintenance testing, as well as school bus and charter services. Do not include miles spent providing incidental services such as meal or service delivery.
B61: =B60+1 -> 52 | C61: Passenger Trips: Non-Contract | D61: Enter the number of non-contract unlinked passenger trips (HYPERLINK within Doc - 341). The cost of non-contract trips are not billed to outside organizations or agencies, rather are typically drawn down from funds controlled by the Transit System or its parent organization.
B62: =B61+1 -> 53 | C62: Passenger Trips: Medicaid Contract | D62: Enter the number of unlinked passenger trips carried for DSS that are sponsored by Medicaid.
B63: =B62+1 -> 54 | C63: Passenger Trips: Non-Medicaid Contract | D63: Enter the number of non-Medicaid unlinked passenger trips carried for human service agencies or others with whom the system has a contractual relationship.
B64: =B63+1 -> 55 | C64: Hours | D64: The hours calculation differs by mode. For fixed-route mode (MB), hours are the total time in hours for the reporting period from first scheduled stop to the last scheduled stop. For demand response mode (DR), hours are accounted from pull out to pull in. Both hour definitions exclude operator training, and vehicle maintenance testing, as well as school bus and charter services. Do not include hours spent providing incidental services such as meal or service delivery.
B65: 56 | C65: Miles | D65: The miles calculation differs by mode. For fixed-route mode (MB), miles are the total distance driven for the reporting period from the first scheduled stop to the last scheduled stop. For demand response mode (DR), miles are accounted from pull out to pull in. Both mile definitions exclude operator training, and vehicle maintenance testing, as well as school bus and charter services. Do not include miles spent providing incidental services such as meal or service delivery.
B66: =B65+1 -> 57 | C66: Passenger Trips: Non-Contract | D66: Enter the number of non-contract unlinked passenger trips (HYPERLINK within Doc - 341). The cost of non-contract trips are not billed to outside organizations or agencies, rather are typically drawn down from funds controlled by the Transit System or its parent organization.
B67: =B66+1 -> 58 | C67: Passenger Trips: Medicaid Contract | D67: Enter the number of unlinked passenger trips carried for DSS that are sponsored by Medicaid.
B68: =B67+1 -> 59 | C68: Passenger Trips: Non-Medicaid Contract | D68: Enter the number of non-Medicaid unlinked passenger trips carried for human service agencies or others with whom the system has a contractual relationship.
B69: 60 | C69: Hours | D69: The hours calculation differs by mode. For fixed-route mode (MB), hours are the total time in hours for the reporting period from first scheduled stop to the last scheduled stop. For demand response mode (DR), hours are accounted from pull out to pull in. Both hour definitions exclude operator training, and vehicle maintenance testing, as well as school bus and charter services. Do not include hours spent providing incidental services such as meal or service delivery.
B70: 61 | C70: Miles | D70: The miles calculation differs by mode. For fixed-route mode (MB), miles are the total distance driven for the reporting period from the first scheduled stop to the last scheduled stop. For demand response mode (DR), miles are accounted from pull out to pull in. Both mile definitions exclude operator training, and vehicle maintenance testing, as well as school bus and charter services. Do not include miles spent providing incidental services such as meal or service delivery.
B71: =B70+1 -> 62 | C71: Passenger Trips: Non-Contract | D71: Enter the number of non-contract unlinked passenger trips (HYPERLINK within Doc - 341). The cost of non-contract trips are not billed to outside organizations or agencies, rather are typically drawn down from funds controlled by the Transit System or its parent organization.
B72: =B71+1 -> 63 | C72: Passenger Trips: Medicaid Contract | D72: Enter the number of unlinked passenger trips carried for DSS that are sponsored by Medicaid.
B73: =B72+1 -> 64 | C73: Passenger Trips: Non-Medicaid Contract | D73: Enter the number of non-Medicaid unlinked passenger trips carried for human service agencies or others with whom the system has a contractual relationship.
A75: SUNDAY | B75: =B73+1 -> 65 | C75: Operating Days | D75: Enter the number of Sundays that your system provided service in the month indicated.
B76: =B75+1 -> 66 | C76: Hours | D76: The hours calculation differs by mode. For fixed-route mode (MB), hours are the total time in hours for the reporting period from first scheduled stop to the last scheduled stop. For demand response mode (DR), hours are accounted from pull out to pull in. Both hour definitions exclude operator training, and vehicle maintenance testing, as well as school bus and charter services. Do not include hours spent providing incidental services such as meal or service delivery.
B77: =B76+1 -> 67 | C77: Miles | D77: The miles calculation differs by mode. For fixed-route mode (MB), miles are the total distance driven for the reporting period from the first scheduled stop to the last scheduled stop. For demand response mode (DR), miles are accounted from pull out to pull in. Both mile definitions exclude operator training, and vehicle maintenance testing, as well as school bus and charter services. Do not include miles spent providing incidental services such as meal or service delivery.
B78: =B77+1 -> 68 | C78: Passenger Trips: Non-Contract | D78: Enter the number of non-contract unlinked passenger trips (HYPERLINK within Doc - 341). The cost of non-contract trips are not billed to outside organizations or agencies, rather are typically drawn down from funds controlled by the Transit System or its
B79: 69 | C79: Passenger Trips: Medicaid Contract | D79: Enter the number of unlinked passenger trips carried for DSS that are sponsored by Medicaid.
B80: 70 | C80: Passenger Trips: Non-Medicaid Contract | D80: Enter the number of non-Medicaid unlinked passenger trips carried for human service agencies or others with whom the system has a contractual relationship.
B81: =B80+1 -> 71 | C81: Hours | D81: The hours calculation differs by mode. For fixed-route mode (MB), hours are the total time in hours for the reporting period from first scheduled stop to the last scheduled stop. For demand response mode (DR), hours are accounted from pull out to pull in. Both hour definitions exclude operator training, and vehicle maintenance testing, as well as school bus and charter services. Do not include hours spent providing incidental services such as meal or service delivery.
B82: =B81+1 -> 72 | C82: Miles | D82: The miles calculation differs by mode. For fixed-route mode (MB), miles are the total distance driven for the reporting period from the first scheduled stop to the last scheduled stop. For demand response mode (DR), miles are accounted from pull out to pull in. Both mile definitions exclude operator training, and vehicle maintenance testing, as well as school bus and charter services. Do not include miles spent providing incidental services such as meal or service delivery.
B83: =B82+1 -> 73 | C83: Passenger Trips: Non-Contract | D83: Enter the number of non-contract unlinked passenger trips (HYPERLINK within Doc - 341). The cost of non-contract trips are not billed to outside organizations or agencies, rather are typically drawn down from funds controlled by the Transit System or its parent organization.
B84: =B83+1 -> 74 | C84: Passenger Trips: Medicaid Contract | D84: Enter the number of unlinked passenger trips carried for DSS that are sponsored by Medicaid.
B85: =B84+1 -> 75 | C85: Passenger Trips: Non-Medicaid Contract | D85: Enter the number of non-Medicaid unlinked passenger trips carried for human service agencies or others with whom the system has a contractual relationship.
B86: =B85+1 -> 76 | C86: Hours | D86: The hours calculation differs by mode. For fixed-route mode (MB), hours are the total time in hours for the reporting period from first scheduled stop to the last scheduled stop. For demand response mode (DR), hours are accounted from pull out to pull in. Both hour definitions exclude operator training, and vehicle maintenance testing, as well as school bus and charter services. Do not include hours spent providing incidental services such as meal or service delivery.
B87: 77 | C87: Miles | D87: The miles calculation differs by mode. For fixed-route mode (MB), miles are the total distance driven for the reporting period from the first scheduled stop to the last scheduled stop. For demand response mode (DR), miles are accounted from pull out to pull in. Both mile definitions exclude operator training, and vehicle maintenance testing, as well as school bus and charter services. Do not include miles spent providing incidental services such as meal or service delivery.
B88: =B87+1 -> 78 | C88: Passenger Trips: Non-Contract | D88: Enter the number of non-contract unlinked passenger trips (HYPERLINK within Doc - 341). The cost of non-contract trips are not billed to outside organizations or agencies, rather are typically drawn down from funds controlled by the Transit System or its parent organization.
B89: =B88+1 -> 79 | C89: Passenger Trips: Medicaid Contract | D89: Enter the number of unlinked passenger trips carried for DSS that are sponsored by Medicaid.
B90: =B89+1 -> 80 | C90: Passenger Trips: Non-Medicaid Contract | D90: Enter the number of non-Medicaid unlinked passenger trips carried for human service agencies or others with whom the system has a contractual relationship.
B91: 81 | C91: Hours | D91: The hours calculation differs by mode. For fixed-route mode (MB), hours are the total time in hours for the reporting period from first scheduled stop to the last scheduled stop. For demand response mode (DR), hours are accounted from pull out to pull in. Both hour definitions exclude operator training, and vehicle maintenance testing, as well as school bus and charter services. Do not include hours spent providing incidental services such as meal or service delivery.
B92: 82 | C92: Miles | D92: The miles calculation differs by mode. For fixed-route mode (MB), miles are the total distance driven for the reporting period from the first scheduled stop to the last scheduled stop. For demand response mode (DR), miles are accounted from pull out to pull in. Both mile definitions exclude operator training, and vehicle maintenance testing, as well as school bus and charter services. Do not include miles spent providing incidental services such as meal or service delivery.
B93: =B92+1 -> 83 | C93: Passenger Trips: Non-Contract | D93: Enter the number of non-contract unlinked passenger trips (HYPERLINK within Doc - 341). The cost of non-contract trips are not billed to outside organizations or agencies, rather are typically drawn down from funds controlled by the Transit System or its parent organization.
B94: =B93+1 -> 84 | C94: Passenger Trips: Medicaid Contract | D94: Enter the number of unlinked passenger trips carried for DSS that are sponsored by Medicaid.
B95: =B94+1 -> 85 | C95: Passenger Trips: Non-Medicaid Contract | D95: Enter the number of non-Medicaid unlinked passenger trips carried for human service agencies or others with whom the system has a contractual relationship.
A97: Finance | B97: =B80+26 -> 96 | C97: Personnel Salaries & Fringes--CTP Object Codes G121-189 | D97: Enter the total expense for salaries and fringe benefits of Administrative Personnel only; for example, Director, Administrative Assistant, Secretary. No operational employees’ salaries or fringe are included in this line item.
B98: =B97+1 -> 97 | C98: Advertising and Promotion--CTP Object Codes G371-373 | D98: Enter the amount the system expended on advertising and promotion activities, products and services.
B99: =B98+1 -> 98 | C99: Employee Development--CTP Object Code G395 | D99: Enter the total expenses for all training-related expenses, including travel expenditures to training sessions.
B100: 99 | C100: Vehicle Insurance Premiums--CTP Object Code G452 | D100: Enter the total expense for transit system vehicle insurance premiums. These costs should be broken out if the county charges a flat rate that includes multiple vehicle expenses.
B101: 100 | C101: Indirect Services--CTP Object Code 481 | D101: Enter the amount of indirect costs reimbursed to the county general fund or sponsoring agency for administrative indirect services.
B102: =B101+1 -> 101 | C102: CTP Object Codes G190-359; 380-394; 396-451; 454-480; 482-491 | D102: Enter other administrative expenses from CTP object codes G190 to G359, G380 to G394, G396 to G451, G454 to G480 and G482 to G491.
B103: =B102+1 -> 102 | C103: Other Administrative Expenses | D103: Enter any other funds the system may have expended for administrative support that have not been reported above. An explanation is required in Column S if an amount is entered here.
B104: =B103+1 -> 103 | C104: Driver Salaries & Fringes | D104: Enter the total expenses for driver salaries & fringes for directly operated (DO) service. No other personnel are to be considered here.
B105: 104 | C105: Other Operating Staff Salaries & Fringes | D105: Enter the total expenses for all non-driver and non-administrative transit system personnel, which includes Dispatcher, Trainer, Mechanic, Scheduler, Operations Manager, Road Supervisor, etc. If a dispatcher or other operations person is a part time driver, then that portion of the salary dedicated to driving should be included with the Driver Salaries & Fringes line item above.
B106: 105 | C106: Mechanics Salaries & Fringes | D106: Enter the total expenses for mechanic salaries and fringes associated with the transit system.
B107: =B106+1 -> 106 | C107: Indirect Services | D107: Enter the amount of indirect costs reimbursed to the county general fund or sponsoring agency for operating indirect services.
B108: =B107+1 -> 107 | C108: Fuel | D108: Enter the total expenses to purchase fuel for transit system operations. These costs should be broken out if the county charges a flat rate that includes multiple vehicle expenses.
B109: =B108+1 -> 108 | C109: Vehicle Maintenance | D109: Enter the total expenses for vehicle maintenance items such as preventative maintenance, tires, oil changes, towing, repairs, etc. associated with maintaining vehicles. These costs should be broken out if your county charges a flat rate that includes multiple vehicle expenses.
B110: 109 | C110: Payment of Insurance Deductible(s) | D110: Enter the amount the transit system expended on insurance deductibles.
B111: 110 | C111: Disposal of Vehicle(s) | D111: Enter any expense the system incurred as a result of efforts to dispose of any vehicles in their fleet. (E.g.: sale registration fees, transport of vehicle to disposal location, etc.)
B112: =B111+1 -> 111 | C112: Management/Operation Services (Applicable only for PT Modes) | D112: Enter all expenses incurred for the management or operational services of a private operator. Examples of such operators are Apple Bus, First Transit, Laidlaw Transit Services, or MV Transit.
B113: 112 | C113: Volunteer Reimbursement | D113: Enter all expenses incurred by the transit system to support volunteer drivers who use their own vehicles. Examples include mileage reimbursements or meal stipends.
B114: =B113+1 -> 113 | C114: Other Transit Provider Services (Applicable only for PT Modes) | D114: Enter all expenses incurred for the services of other providers performing some service but not full-time service for the transit system. Examples include payments to taxicab companies or other private providers, or payments to other CT systems providing coordinated out-of-county medical/employment trips.
B115: =B114+1 -> 114 | C115: Other Operating Expenses | D115: Enter all other operating expenses incurred that have not specifically been reported elsewhere. If a number is entered on this line, provide an explanation in Column S.
B116: 115 | C116: Capital Purchases | D116: Enter the total expenses incurred related to the purchase of vehicles and other capital equipment during the reporting period.
B117: 116 | C117: Body Work on Wrecked Vehicle | D117: Enter the total expense incurred for body and/or repair work required on any wrecked vehicles during the report period. These expenses should be covered by proceeds from the insurance carrier minus any deductible expense.
B118: =B117+1 -> 117 | C118: Facility Renovation or Construction | D118: Enter the total expenses incurred for the purchase of land for facility construction, facility construction activities or facility renovation during the reporting period.
B119: =B118+1 -> 118 | C119: Advanced Technology Purchases | D119: Enter the total expenses related to the purchase of technology-related items such as hardware, software or telephone systems during the reporting period.
B120: 119 | C120: Other Capital Expense | D120: Enter any other expense related to capital purchases. Provide a description of this expense in Column K.
B121: =B120+1 -> 120 | C121: Urbanized Area Formula Funding-Section 5307 | D121: Enter the amount of Section 5307 federal funds expended to assist in paying for capital and operating costs. The Urbanized Area Formula Funding program makes Federal resources available to urbanized areas and to Governors for transit capital and operating assistance in urbanized areas and for transportation related planning. These funds may originate from either the local MPO or the State DOT.
B122: =B121+1 -> 121 | C122: CARES Act-Section 5307 | D122: Enter the amount of CARES Act-Section 5307 federal funds expended to assist in paying for capital and operating costs associated with the response to COVID-19. These funds may originate from either the local MPO or the State DOT.
B123: =B122+1 -> 122 | C123: CRRSA Act-Section 5307 | D123: Enter the amount of CRRSA Act-Section 5307 federal funds expended to assist in paying for capital and operating costs associated with the response to COVID-19. These funds may originate from either the local MPO or the State DOT.
B124: 123 | C124: ARP Act-Section 5307 | D124: Enter the amount of ARP Act-Section 5307 federal funds expended to assist in paying for capital and operating costs associated with the response to COVID-19. These funds may originate from either the local MPO or the State DOT.
B125: 124 | C125: FTA Capital Program Funds-Section 5309 | D125: Enter the amount of Section 5309 federal funds expended to assist in paying for the establishment of new rail or busway projects (new starts), the improvement and maintenance of existing rail and other fixed guideway systems, and the upgrading of bus systems. These funds may originate from either the local MPO or the State DOT.
B126: =B125+1 -> 125 | C126: Section 5310--Elderly and Disabled | D126: Enter the amount of Section 5310 federal funds expended. These funds may originate from either the local MPO or the State DOT.
B127: 126 | C127: Capital Assistance Spent on Operations-Section 5310 | D127: Enter the amount of Section 5310 federal capital funds expended to assist in paying for the operating costs of providing transit service.
B128: 127 | C128: CARES Act-Section 5310 | D128: Enter the amount of CARES Act-Section 5310 federal funds expended to assist in paying for capital and operating costs associated with the response to COVID-19.
B129: 128 | C129: CRRSA Act-Section 5310 | D129: Enter the amount of CRRSA Act-Section 5310 federal funds expended to assist in paying for capital and operating costs associated with the response to COVID-19.
B130: 129 | C130: ARP Act-Section 5310 | D130: Enter the amount of ARP Act-Section 5310 federal funds expended to assist in paying for capital and operating costs associated with the response to COVID-19.
B131: 130 | C131: Section 5311--CTP Funds--Administrative/Capital | D131: Enter the amount of Section 5311 Community Transportation Program federal funds expended on administrative costs or capital costs.
B132: =B131+1 -> 131 | C132: Section 5311--CTP Funds--Operating | D132: Enter the amount of Section 5311 Community Transportation Program federal funds expended on operating costs.
B133: 132 | C133: Capital Assistance Spent on Operations-Section 5311 | D133: Enter the amount of Section 5311 federal capital funds expended to assist in paying for the operating costs of providing transit service.
B134: 133 | C134: Appalachian-Section 5311 | D134: Enter the amount of Section 5311 Appalachian federal funds expended.
B135: 134 | C135: Tribal Federal Assistance--Section 5311 | D135: Enter the amount of Section 5311 Tribal federal funds expended.
B136: =B135+1 -> 135 | C136: ARRA Assistance--Section 5311 | D136: Enter the amount of Section 5311 ARRA federal funds expended.
B137: 136 | C137: ARRA Tribal Assistance--Section 5311 | D137: Enter the amount of Section 5311 ARRA Tribal federal funds expended.
B138: 137 | C138: CARES Act-Section 5311 | D138: Enter the amount of CARES Act-Section 5311 federal funds expended to assist in paying for capital and operating costs associated with the response to COVID-19.
B139: 138 | C139: CRRSA Act-Section 5310 | D139: Enter the amount of CRRSA Act-Section 5311 federal funds expended to assist in paying for capital and operating costs associated with the response to COVID-19.
B140: 139 | C140: ARP Act-Section 5310 | D140: Enter the amount of ARP Act-Section 5311 federal funds expended to assist in paying for capital and operating costs associated with the response to COVID-19.
B141: 140 | C141: Section 5316--JARC Funds | D141: Enter the federal financial assistance the system received from the Job Access and Reverse Commute Section 5316 Program.
B142: 141 | C142: Section 5317--New Freedom Funds | D142: Enter the federal financial assistance the system received from New Freedom Section 5317 Program.
B143: 142 | C143: Section 5339--Bus and Bus Facilities | D143: Enter the federal financial assistance the system received from Bus and Bus Facilities Section 5339 Program.
B144: 143 | C144: Other FTA Revenues | D144: Enter other federal financial assistance the system expended. Provide a description in Column S.
B145: 144 | C145: Other Federal Non-FTA Revenues | D145: Enter other federal financial assistance the system expended. Provide a description in Column S.
B146: 145 | C146: CTP Funds--Administrative | D146: Enter the State financial assistance the system expended from the Community Transportation Program (CTP) to assist in paying the administrative costs of providing transit service.
B147: 146 | C147: ROAP Funds--Suballocated to the Transit System | D147: Enter the ROAP funds that are managed by and drawn down by transit systems (funds received pre-trip). ROAP funds that are held by counties for reimbursement to transit systems (funds received post-trip) are entered separately on line 111.
B148: 147 | C148: Vehicles and Other Capital Revenues | D148: Enter all state funds expended through NCDOT for capital purchases (vehicles and other capital expenses only).
B149: 148 | C149: Facility | D149: Enter all state funds expended through NCDOT for new construction or renovation of a facility.
B150: 149 | C150: Advanced Technology | D150: Enter all state funds expended through NCDOT for advanced technology.
B151: 150 | C151: Other State Funds | D151: Enter other state financial assistance expended by the transit system. Provide a description in Column S.
B152: 151 | C152: Government Funds | D152: Enter the total amount of financial assistance from local entities to assist in paying costs of the transit provider. Include: Tax Levies - a specified amount from local tax levies dedicated to supporting the capital costs of the public transit system. General Funds – Transfers from the general fund of local governments. Specified Contributions - Contributions from the local government.
B153: 152 | C153: Medicaid Revenue | D153: Enter total funds paid to the transit system by Medicaid for service provision to Medicaid trip passengers.
B154: 153 | C154: Contract Revenue | D154: Enter reimbursement by any organization, government, agency, or company, as a result of a formal contractual agreement with the transit service operator, for trips provided to a specific passenger or group of passengers. This contract revenue is only for unsubsidized trips.
B155: 154 | C155: Other Directly Generated Revenue | D155: Enter payments received from any organization, government, agency, or company, as a result of a formal contractual agreement with the transit system for trips provided to a specific passenger or group of passengers. If the system did not receive EDTAP or Work First funds directly and billed agencies for the trips, that revenue is entered here.
B156: 155 | C156: Fares from Passengers | D156: Enter the total income received directly from passengers, either paid in cash or through pre-paid tickets, passes, etc., spent on transit operations for the reporting period. Include the reduced fares paid by passengers in a user-side subsidy arrangement.
B157: 156 | C157: Donations | D157: Donations from individuals or organizations to help cover the transit system costs.
B158: 157 | C158: Interest Income | D158: Enter any funds that were earned from the investment of system reserve funds during the reporting period and transferred to current funds for administrative and operating expenses only.
B159: 158 | C159: Advertising Revenue | D159: Enter any funds paid to the transit system for advertising on the vehicles.
B160: 159 | C160: Insurance Proceeds from Accident | D160: Enter any proceeds received from insurance due to vehicle or property damages or losses during the reporting period.
B161: 160 | C161: Proceeds from Vehicle Sales (used for Capital Only) | D161: Enter any proceeds the system received from the sale of a vehicle(s). Any amount reported here must have been restricted to capital expenses only.
B162: 161 | C162: Other Revenue | D162: Enter any other local funds the system may have received that have not been reported above which were dedicated to administrative or operating support. An explanation is required in Column K if an amount is entered on this line.
A164: ANNUAL STATS | B164: =CONCATENATE(B162+1,"A") -> 162A | C164: Total Volunteer Drivers | D164: Enter the number of volunteer drivers at the end of the reporting period. Volunteer drivers are individuals who drive their personal vehicles or transit vehicles in revenue service to transport passengers for the transit system, but are not employees of the transit system and are not compensated for their labor, but may be compensated for their mileage.
B165: =CONCATENATE(B162+1,"D") -> 162D | C165: Personal Vehicles Used | D165: Enter the number of personal vehicles used in revenue service at the end of the reporting period.
B166: =CONCATENATE(B162+2,"A") -> 163A | C166: Miles (Incidental Services) | D166: Incidental service trips involve the movement of materials and goods rather than people. Examples include meal and mail delivery. If the system provides Incidental Services, enter the number of dedicated miles provided as part of this service.
B167: =CONCATENATE(B162+2,"D") -> 163D | C167: Hours (Incidental Services) | D167: Incidental service trips involve the movement of materials and goods rather than people. Examples include meal and mail delivery. If the system provides Incidental Services, enter the number of dedicated hours provided as part of this service.
B168: =B162+3 -> 164 | C168: Incidental Services Description | D168: Incidental service trips involve the movement of materials and goods rather than people. Examples include meal and mail delivery. Please describe the types of incidental service provided during the reporting period.
B169: 147A | C169: CARES Act Miles (Incidental Services) | D169: Incidental service trips involve the movement of materials and goods rather than people. Examples may include meal and pharmaceutical deliveries. If the system provides Incidental Services to support the response to COVID-19, enter the number of dedicated miles provided as part of this service.
B170: 147D | C170: CARES Act Hours (Incidental Services) | D170: Incidental service trips involve the movement of materials and goods rather than people. Examples may include meal and pharmaceutical deliveries. If the system provides Incidental Services to support the response to COVID-19, enter the number of dedicated hours provided as part of this service.
B171: 148 | C171: CARES Act Incidental Services Description | D171: Incidental service trips involve the movement of materials and goods rather than people. Examples may include meal and pharmaceutical deliveries. Please describe the types of incidental service provided in response to COVID-19 during the reporting period.
B172: =CONCATENATE(B162+6,"-",B162+9) -> 167-170 | C172: Employee Information | D172: Enter the number of full-time and part-time employees employed by the transit system in each category at the end of the FY in the “How Many” column. The "Total Pay Hours" is the amount expended for the entire FY.
B173: =B162+10 -> 171 | C173: Non-Ambulatory Passenger Trips | D173: Total number of passenger trips that required the use of a lift or ramp.
B174: =B173+1 -> 172 | C174: Vehicle Maintenance Method | D174: Click on the cell and using the drop down box, select the appropriate category.
B175: =CONCATENATE(B174+1,"A") -> 173A | C175: Maintenance Facilites Owned | D175: Enter the number of maintenance facilities owned by the grantee.
B176: =CONCATENATE(B174+1,"C") -> 173C | C176: Maintenance Facilites Leased | D176: Enter the number of maintenance facilities leased by the grantee.
B177: =CONCATENATE(B174+2,"A") -> 174A | C177: NTD Reportable Events | D177: Any event involving the operation of a transit system if, as a result, one or more of the following occurs: 1) An individual dies either at the time of the event or within 30 days of the event; 2) One or more individuals suffer bodily damage or harm as a result of the event requiring immediate medical attention away from the scene. Immediate attention includes, but is not limited to, transport to the hospital by ambulance or other vehicle. The medical attention received must be at a location other than the location at which the incident occurred; 3) A collision, personal casualty, or fire causes property damage in excess of $25,000; and/or, 4) An evacuation due to life safety reasons.
B178: =CONCATENATE(B174+2,"C") -> 174C | C178: NTD Reportable Fatalities | D178: A transit-caused fatality confirmed within 30 days of a transit event.
B179: =CONCATENATE(B174+2,"E") -> 174E | C179: NTD Reportable Injuries | D179: Any damage or harm to persons as a result of an event that requires immediate medical attention away from the scene
B180: =CONCATENATE(B174+3,"-",B174+9) -> 175-181 | C180: Human Service Agency/Community Organization Trips Served | D180: Check the appropriate box if the service is provided to the agency or program listed.
B181: =B174+10 -> 182 | C181: Changes Since Last Year | D181: Provide a detailed description of how your transit system’s administration and/or operation has changed over the past year.
A183: COMPLETION | B183: =B181+1 -> 183 | C183: Operating Reserve | D183: Enter the total amount of money available from the end of the year.
B184: =B183+1 -> 184 | C184: Doing Well | D184: Describe what your system has been doing well.
B185: =B184+1 -> 185 | C185: Needs Improvement | D185: Describe what can be done to improve your system's performance.
A187: MISCELLANEOUS | C187: Unlinked Passenger Trips (UPT) | D187: The number of passengers who board public transportation vehicles. Passengers are counted each time they board vehicles no matter how many vehicles they use to travel from their origin to their destination.

Sheet Warning
I16: You must enable macros in order to use Op Stats FY24.
I17: Please re-open this workbook and enable macros.
